Workbook

Sheet AER only (hidden)
B1: Data in these columns used for data validation and database purposes.
B2: Date last modified:
B3: 14 April 2015 | C3: merged cell C46/47
B4: 17 April 2015 | C4: adjusted dms_RYE to automate based on dms_Model (NB: EB & CA refer to CRCP_y5)
B5: 14 May 2015 | C5: adapted this cover for use in CA & EB RINs
B9: dms_Model_List | C9: dms_Worksheet_List | E9: dms_RYE_List1 | F9: dms_RYE_List2
B10: CA | C10: CATEGORY ANALYSIS | E10: dms_RYE | F10: =CONCATENATE(LEFT(CRY, 2) &IF(CRY>"2009-10",,"") &RIGHT(CRY,2)) -> 2015
B11: CAM/Service change Backcast | C11: REGULATORY REPORTING STATEMENT | E11: dms_RYE | F11: =CONCATENATE(LEFT(CRCP_y5, 2) &IF(CRCP_y5>"2009-10",,"") &RIGHT(CRCP_y5,2)) -> 2017
B12: CPI | C12: CPI | E12: dms_RYE | F12: =CONCATENATE(LEFT(CRCP_y5, 2) &IF(CRCP_y5>"2009-10",,"") &RIGHT(CRCP_y5,2)) -> 2017
B13: EB | C13: ECONOMIC BENCHMARKING | E13: dms_RYE | F13: =CONCATENATE(LEFT(CRY, 2) &IF(CRY>"2009-10",,"") &RIGHT(CRY,2)) -> 2015
B14: PTRM | C14: POST TAX REVENUE MODEL | E14: FRCP | F14: =CONCATENATE(LEFT(FRCP_y5, 2) &IF(FRCP_y1>"2009-10",,"") &RIGHT(FRCP_y5,2)) -> 2022
B15: Reset | C15: REGULATORY REPORTING STATEMENT | E15: FRCP | F15: =CONCATENATE(LEFT(FRCP_y5, 2) &IF(FRCP_y1>"2009-10",,"") &RIGHT(FRCP_y5,2)) -> 2022
B16: RFM | C16: ROLL FORWARD MODEL | E16: CRCP | F16: =CONCATENATE(LEFT(CRCP_y5, 2) &IF(CRCP_y1>"2009-10",,"") &RIGHT(CRCP_y5,2)) -> 2017
B17: WACC | C17: WEIGHTED AVERAGE COST OF CAPITAL | E17: dms_RYE | F17: =CONCATENATE(LEFT(CRCP_y5, 2) &IF(CRCP_y5>"2009-10",,"") &RIGHT(CRCP_y5,2)) -> 2017
B20: dms_TradingName_List | C20: dms_ABN_List | D20: dms_State_List | E20: dms_Sector_List | F20: dms_Segment_List | G20: dms_FormControl | H20: dms_CRCPlength_List | I20: dms_FRCPlength_List | J20: dms_JurisdictionList | K20: dms_663_List | L20: dms_DeterminationRef_List
B21: ActewAGL Distribution | C21: 76670568688 | D21: ACT | E21: Electricity | F21: Distribution | G21: Revenue cap | H21: 5 | I21: 6 | J21: ACT | K21: 5 | L21: 2014-19 Distribution Determination
B22: ActewAGL Distribution (Tx Assets) | C22: 76670568688 | D22: ACT | E22: Electricity | F22: Distribution | G22: Revenue cap | H22: 5 | I22: 5 | J22: ACT | K22: 5 | L22: distribution determination
B23: AGN | C23: 78551685 | D23: SA | E23: Gas | F23: Distribution | G23: Revenue cap | H23: 5 | I23: 5 | J23: SA | K23: 5 | L23: distribution determination
B24: Ausgrid | C24: 67505337385 | D24: NSW | E24: Electricity | F24: Distribution | G24: Revenue cap | H24: 5 | I24: 5 | J24: NSW | K24: 5 | L24: 2014-19 Distribution Determination
B25: Ausgrid (Tx Assets) | C25: 67505337385 | D25: NSW | E25: Electricity | F25: Distribution | G25: Revenue cap | H25: 5 | I25: 5 | J25: NSW | K25: 5 | L25: distribution determination
B26: AusNet (D) | C26: 91064651118 | D26: Vic | E26: Electricity | F26: Distribution | G26: Revenue cap | H26: 5 | I26: 5 | J26: Vic | K26: 2 | L26: 2016-20 Distribution Determination
B27: AusNet (T) | C27: 78079798173 | D27: Vic | E27: Electricity | F27: Transmission | G27: Revenue cap | H27: 5 | I27: 5 | J27: Vic | K27: 2 | L27: distribution determination
B28: Australian Distribution Co. | C28: 11222333444 | D28: - | E28: Electricity | F28: Distribution | G28: Revenue cap | H28: 5 | I28: 5 | J28: - | K28: 2 | L28: distribution determination
B29: Australian Transmission Co. | C29: 11222333444 | D29: - | E29: Electricity | F29: Transmission | G29: Revenue cap | H29: 5 | I29: 5 | J29: - | K29: 5 | L29: distribution determination
B30: CitiPower | C30: 76064651056 | D30: Vic | E30: Electricity | F30: Distribution | G30: Revenue cap | H30: 5 | I30: 5 | J30: Vic | K30: 2 | L30: 2016-20 Distribution Determination
B31: Directlink | C31: 16779340889 | D31: NSW | E31: Electricity | F31: Transmission | G31: Revenue cap | H31: 10 | I31: 5 | J31: Qld | K31: 5 | L31: distribution determination
B32: ElectraNet | C32: 41094482416 | D32: SA | E32: Electricity | F32: Transmission | G32: Revenue cap | H32: 5 | I32: 5 | J32: SA | K32: 5 | L32: distribution determination
B33: Endeavour Energy | C33: 59253130878 | D33: NSW | E33: Electricity | F33: Distribution | G33: Revenue cap | H33: 5 | I33: 5 | J33: NSW | K33: 5 | L33: 2014-19 Distribution Determination
B34: Energex | C34: 40078849055 | D34: Qld | E34: Electricity | F34: Distribution | G34: Revenue cap | H34: 5 | I34: 5 | J34: Qld | K34: 5 | L34: 2015-20 Distribution Determination
B35: Ergon Energy | C35: 50087646062 | D35: Qld | E35: Electricity | F35: Distribution | G35: Revenue cap | H35: 5 | I35: 5 | J35: Qld | K35: 5 | L35: 2015-20 Distribution Determination
B36: Essential Energy | C36: 37428185226 | D36: NSW | E36: Electricity | F36: Distribution | G36: Revenue cap | H36: 5 | I36: 5 | J36: NSW | K36: 5 | L36: 2014-19 Distribution Determination
B37: Jemena Electricity | C37: 82064651083 | D37: Vic | E37: Electricity | F37: Distribution | G37: Revenue cap | H37: 5 | I37: 5 | J37: Vic | K37: 2 | L37: 2016-20 Distribution Determination
B38: Murraylink | C38: 79181207909 | D38: NSW | E38: Electricity | F38: Transmission | G38: Revenue cap | H38: 5 | I38: 5 | J38: SA | K38: 5 | L38: distribution determination
B39: Powercor Australia | C39: 89064651109 | D39: Vic | E39: Electricity | F39: Distribution | G39: Revenue cap | H39: 5 | I39: 5 | J39: Vic | K39: 2 | L39: 2016-20 Distribution Determination
B40: Powerlink | C40: 82078849233 | D40: Qld | E40: Electricity | F40: Transmission | G40: Revenue cap | H40: 5 | I40: 5 | J40: Qld | K40: 5 | L40: distribution determination
B41: Qld,SA &ACT Gas Reset | C41: 22222222222 | D41: - | E41: Gas | F41: Distribution | G41: ? | H41: 5 | I41: 5 | J41: - | K41: x | L41: distribution determination
B42: SA Power Networks | C42: 13332330749 | D42: SA | E42: Electricity | F42: Distribution | G42: Revenue cap | H42: 5 | I42: 5 | J42: SA | K42: 5 | L42: 2015-20 Distribution Determination
B43: TasNetworks (D) | C43: 24167357299 | D43: Tas | E43: Electricity | F43: Distribution | G43: Revenue cap | H43: 5 | I43: 5 | J43: Tas | K43: 5 | L43: distribution determination
B44: TasNetworks (T) | C44: 24167357299 | D44: Tas | E44: Electricity | F44: Transmission | G44: Revenue cap | H44: 5 | I44: 5 | J44: Tas | K44: 5 | L44: distribution determination
B45: TransGrid | C45: 19622755774 | D45: NSW | E45: Electricity | F45: Transmission | G45: Revenue cap | H45: 5 | I45: 5 | J45: NSW | K45: 5 | L45: distribution determination
B46: United Energy | C46: 70064651029 | D46: Vic | E46: Electricity | F46: Distribution | G46: Revenue cap | H46: 5 | I46: 5 | J46: Vic | K46: 2 | L46: 2016-20 Distribution Determination
B47: Victorian DNSP Backcasting | C47: 33333333666 | D47: Vic | E47: Electricity | F47: Distribution | G47: ? | H47: 5 | I47: 5 | J47: Vic | K47: x | L47: distribution determination
B48: Victorian DNSP Reset | C48: 33333333333 | D48: Vic | E48: Electricity | F48: Distribution | G48: ? | H48: 5 | I48: 5 | J48: Vic | K48: x | L48: distribution determination
B53: dms_SourceList | C53: dms_FormControl
B54: After appeal | C54: Revenue cap
B55: Draft decision | C55: Revenue yield
B56: Final decision | C56: Weighted average price cap
B57: Pass through decision
B58: PTRM annual update
B59: PTRM interim update 1
B60: PTRM interim update 2
B61: PTRM interim update 3
B62: PTRM interim update 4
B63: Regulatory proposal
B64: Reporting
B65: Revised regulatory proposal
B66: RFM annual update
B67: WACC annual update
B71: Notes
B72: RFM - Base year is usually CRCP_y1 | C72: EG. Victorian 2016-20 - base year = 2011
B73: RFM - Form of Control Field is not relevant
B74: PTRM - capture base year input by NSP | C74: ='[Published version - PTRM - TNSP - version 3 - January 2015 - Appendix A.xlsm]PTRM input'!Q7

Sheet Contents
C1: REGULATORY REPORTING STATEMENT
C2: =dms_TradingName -> AusNet (T)
C3: =CONCATENATE(FRCP_y1," to ",FRCP_y5) -> 2017-18 to 2021-22
C4: Contents
F7: 1. Business details | M7: 2. Expenditure | T7: 3. Economic benchmarking
F26: 5. Network information | T26: 7. Other templates

Sheet Instructions
B8: =CONCATENATE(dms_Segment," Network Service Provider") -> Transmission Network Service Provider
B9: Regulatory Proposal RIN Template
C11: =CONCATENATE(dms_TradingName," must fill out and submit the regulatory templates in this workbook as part of its revenue proposal") -> AusNet (T) must fill out and submit the regulatory templates in this workbook as part of its revenue proposal
C14: INSTRUCTIONS
C15: Complete the Business & other details worksheet before entering data or values in any other worksheets. The Business & other details worksheet is linked to other cells within the workbook and automatically generates certain column headings. Please identify whether this is a regulatory proposal or revised regulatory proposal on the Business & other details worksheet.
C16: =CONCATENATE("If ",dms_TradingName," needs to amend any data please resubmit this completed workbook in its entirety after making any necessary amendments and provide a brief description of those amendments and the reason for any amendments on the Business and other details worksheet.") -> If AusNet (T) needs to amend any data please resubmit this completed workbook in its entirety after making any necessary amendments and provide a brief description of those amendments and the reason for any amendments on the Business and other details worksheet.
C18: Identifying CONFIDENTIAL INFORMATION: Please use the macro at the top of each worksheet to identify confidential information.
C19: -Do this by selecting the cell or cells that contain confidential information and then run the Mark selected cells as CONFIDENTIAL macro. This will format the cells a specific colour that is identified by the AER's database which in turn marks that information as confidential. -To reverse this, select the cell or cells and run the Return cells to NON-CONFIDENTIAL macro
C21: All amounts are to be reported on a one for one basis: that is 1000 is to be entered as '1000' not '1' as in previous templates. Colour coding of input sheets:
D22: Yellow = input cells
D23: Orange = optional Input cells
D24: Grey = Not applicable/No inputs required
D25: Leave coloured cells blank if no information exists. PLEASE DO NOT ENTER TEXT unless specifically requested to do so.
C28: Returning completed responses Please return two (2) files to the AER: 1. A confidential (consolidated) version which must contain a complete set of all responses with confidential information marked using the Mark selected cells CONFIDENTIAL macro and which has been completed using the locked template file provided by the AER. 2. A public version with confidential information either removed completely or aggregated in some form together with writtten consent to disclose the public version of the response. Use the drop down box on the Business & other details worksheet to identify the file as either confidential ('consolidated') or public

Sheet Business & other details
A1: HIDE THIS COLUMN | C1: =(LOOKUP(dms_Model,dms_Model_List,dms_Worksheet_List)) -> REGULATORY REPORTING STATEMENT
C2: =dms_TradingName -> AusNet (T)
C3: =CONCATENATE(FRCP_y1," to ",FRCP_y5) -> 2017-18 to 2021-22
C4: BUSINESS & OTHER DETAILS
C7: Instructions
C8: Complete the following business details regulatory template before entering data or values in any other regulatory template. This regulatory template is linked to other cells within the spreadsheet and automatically generates column headings.
C10: SUBMISSION PARTICULARS INPUT SHEETS
C12: Entity details
C14: Trading name | D14: AusNet (T)
C15: ACN / ABN | D15: =INDEX(dms_ABN_List,MATCH(dms_TradingName,dms_TradingName_List)) -> 78079798173
C18: Business address | D18: Address 1 | F18: 2 Southbank Boulevard
E19: Address 2
D20: Suburb | F20: Southbank
E21: State | F21: =INDEX(dms_State_List,MATCH(dms_TradingName,dms_TradingName_List)) -> Vic | G21: p/code | H21: 3008
C23: Postal address | D23: Address 1 | F23: 2 Southbank Boulevard
E24: Address 2
D25: Suburb | F25: Southbank
E26: State | F26: Vic | G26: p/code | H26: 3008
C29: Contact name/s | D29: Anh Mai | G29: Charlotte Coster
C30: Contact phone/s | D30: 03 96956627 | G30: 03 96956309
C31: Contact email address/s | D31: anh.mai@ausnetservices.com.au | G31: charlotte.coster@ausnetservices.com.au
A33: KEEP VISIBLE FOR RESET, PTRM & RFMS | C33: Regulatory control period details
C35: Forthcoming regulatory control period | D35: =CONCATENATE(IF(dms_RPT="Calendar",CRCP_y5+1,(LEFT(CRCP_y5,4)+1&"-"&IF(MID(CRCP_y5,6,2)<"09","0"&RIGHT(CRCP_y5,1)+1,RIGHT(CRCP_y5,2)+1)))) -> 2017-18 | E35: =CONCATENATE(IF(dms_RPT="Calendar",FRCP_y1+1,(LEFT(FRCP_y1,4)+1&"-"&IF(MID(FRCP_y1,6,2)<"09","0"&RIGHT(FRCP_y1,1)+1,RIGHT(FRCP_y1,2)+1)))) -> 2018-19 | F35: =CONCATENATE(IF(dms_RPT="Calendar",FRCP_y2+1,(LEFT(FRCP_y2,4)+1&"-"&IF(MID(FRCP_y2,6,2)<"09","0"&RIGHT(FRCP_y2,1)+1,RIGHT(FRCP_y2,2)+1)))) -> 2019-20 | G35: =CONCATENATE(IF(dms_RPT="Calendar",FRCP_y3+1,(LEFT(FRCP_y3,4)+1&"-"&IF(MID(FRCP_y3,6,2)<"09","0"&RIGHT(FRCP_y3,1)+1,RIGHT(FRCP_y3,2)+1)))) -> 2020-21 | H35: =CONCATENATE(IF(dms_RPT="Calendar",FRCP_y4+1,(LEFT(FRCP_y4,4)+1&"-"&IF(MID(FRCP_y4,6,2)<"09","0"&RIGHT(FRCP_y4,1)+1,RIGHT(FRCP_y4,2)+1)))) -> 2021-22
C38: Current regulatory control period | D38: 2012-13 | E38: =CONCATENATE(IF(dms_RPT="Calendar",CRCP_y1+1,(LEFT(CRCP_y1,4)+1&"-"&IF(MID(CRCP_y1,6,2)<"09","0"&RIGHT(CRCP_y1,1)+1,RIGHT(CRCP_y1,2)+1)))) -> 2013-14 | F38: =CONCATENATE(IF(dms_RPT="Calendar",CRCP_y2+1,(LEFT(CRCP_y2,4)+1&"-"&IF(MID(CRCP_y2,6,2)<"09","0"&RIGHT(CRCP_y2,1)+1,RIGHT(CRCP_y2,2)+1)))) -> 2014-15 | G38: =CONCATENATE(IF(dms_RPT="Calendar",CRCP_y3+1,(LEFT(CRCP_y3,4)+1&"-"&IF(MID(CRCP_y3,6,2)<"09","0"&RIGHT(CRCP_y3,1)+1,RIGHT(CRCP_y3,2)+1)))) -> 2015-16 | H38: =CONCATENATE(IF(dms_RPT="Calendar",CRCP_y4+1,(LEFT(CRCP_y4,4)+1&"-"&IF(MID(CRCP_y4,6,2)<"09","0"&RIGHT(CRCP_y4,1)+1,RIGHT(CRCP_y4,2)+1)))) -> 2016-17
C41: Previous regulatory control period | D41: =CONCATENATE(IF(dms_RPT="Calendar",PRCP_y2-1,(LEFT(PRCP_y2,4)-1&"-"&IF(MID(PRCP_y2,3,1)="0","0"&RIGHT(PRCP_y2,2)-1,RIGHT(PRCP_y2,2)-1)))) -> 2007-08 | E41: =CONCATENATE(IF(dms_RPT="Calendar",PRCP_y3-1,(LEFT(PRCP_y3,4)-1&"-"&IF(MID(PRCP_y3,3,1)="0","0"&RIGHT(PRCP_y3,2)-1,RIGHT(PRCP_y3,2)-1)))) -> 2008-09 | F41: =CONCATENATE(IF(dms_RPT="Calendar",PRCP_y4-1,(LEFT(PRCP_y4,4)-1&"-"&IF(MID(PRCP_y4,3,1)="0","0"&RIGHT(PRCP_y4,2)-1,RIGHT(PRCP_y4,2)-1)))) -> 2009-10 | G41: =CONCATENATE(IF(dms_RPT="Calendar",PRCP_y5-1,(LEFT(PRCP_y5,4)-1&"-"&IF(MID(PRCP_y5,3,1)="0","0"&RIGHT(PRCP_y5,2)-1,RIGHT(PRCP_y5,2)-1)))) -> 2010-11 | H41: =CONCATENATE(IF(dms_RPT="Calendar",CRCP_y1-1,(LEFT(CRCP_y1,4)-1&"-"&IF(MID(CRCP_y1,3,1)="0","0"&RIGHT(CRCP_y1,2)-1,RIGHT(CRCP_y1,2)-1)))) -> 2011-12
A44: KEEP VISIBLE FOR CA & EB ONLY
C45: Current regulatory year | D45: 2014-15
A50: HIDE | C50: Sector | D50: =INDEX(dms_Sector_List,MATCH(dms_TradingName,dms_TradingName_List)) -> Electricity
C51: Segment | D51: =INDEX(dms_Segment_List,MATCH(dms_TradingName,dms_TradingName_List)) -> Transmission
C52: Source | D52: Regulatory proposal
C53: Regulatory Year Ending | D53: =(LOOKUP(dms_Model,dms_Model_List,dms_RYE_List2)) -> 2022
C54: Reporting Period Type | D54: =IF(LEN(CRCP_y1)>4,"Financial","Calendar") -> Financial
C55: Model or RIN Type | D55: Reset
C56: Security Classification | D56: Public
C57: Data quality (Public, Consolidated (confidential)) | D57: Consolidated
C58: EBSS - First application of scheme in forthcoming period? | D58: No
C59: Amended RIN submission - amendment reason
A60: HIDE THESE ROWS | C60: Template - version no. | D60: 1
C61: Dollar $ real (the last month before the FRCP_y1) | D61: March 2017
C62: Form of control | D62: =INDEX(dms_FormControl_List,MATCH(dms_TradingName,dms_TradingName_List)) -> Revenue cap
C63: Length of current reg control period | D63: 3
C64: Length of forthcoming reg control period | D64: =INDEX(dms_FRCPlength_List,MATCH(dms_TradingName,dms_TradingName_List)) -> 5
C65: RIN response - version no. | D65: 1
C66: Jurisdiction | D66: =INDEX(dms_JurisdictionList,MATCH(dms_TradingName,dms_TradingName_List)) -> Vic

Sheet 2.1 Expenditure summary
B1: =(LOOKUP(dms_Model,dms_Model_List,dms_Worksheet_List)) -> REGULATORY REPORTING STATEMENT
B2: =dms_TradingName -> AusNet (T)
B3: =CONCATENATE(FRCP_y1," to ",FRCP_y5) -> 2017-18 to 2021-22
B4: 2.1 Cost summary and reconciliation
B7: Table 2.1.1 - Prescribed transmission services capex (as incurred)
C9: =CONCATENATE("Forecast ($0's. real ",dms_DollarReal,")") -> Forecast ($0's. real March 2017)
C10: =CRCP_y4 -> 2015-16 | D10: =CRCP_y5 -> 2016-17 | E10: =FRCP_y1 -> 2017-18 | F10: =FRCP_y2 -> 2018-19 | G10: =FRCP_y3 -> 2019-20 | H10: =FRCP_y4 -> 2020-21 | I10: =FRCP_y5 -> 2021-22
B11: Replacement expenditure | C11: 128078951.3 | D11: 144627716.6 | E11: 137274026.6 | F11: 115865755.3 | G11: 120906805.6 | H11: 113989345.5 | I11: 95256660.76
B12: Connections
B13: Augmentation Expenditure
B14: Non-network | C14: 13936474.1 | D14: 22364575.8 | E14: 29306312.5 | F14: 27063089.12 | G14: 18305450.69 | H14: 15967595.32 | I14: 15205271.94
B15: capitalised network overheads | C15: 3928710.847 | D15: 5807493.963 | E15: 5929053.23 | F15: 5949381.244 | G15: 5958571.788 | H15: 5042553.485 | I15: 4220273.318
B16: capitalised corporate overheads | C16: 4256103.418 | D16: 6291451.793 | E16: 6423140.999 | F16: 6445163.014 | G16: 6455119.437 | H16: 5462766.276 | I16: 4571962.762
B17: balancing item
B18: TOTAL CAPEX | C18: =SUM(C11:C17) -> 150200239.6 | D18: 179091238.2 | E18: 178932533.4 | F18: 155323388.6 | G18: 151625947.5 | H18: 140462260.6 | I18: 119254168.8
B20: Table 2.1.2 - Prescribed transmission services opex
C21: =CONCATENATE("Forecast ($0's. real ",dms_DollarReal,")") -> Forecast ($0's. real March 2017)
C22: =CRCP_y4 -> 2015-16 | D22: =CRCP_y5 -> 2016-17
B23: Vegetation management | C23: 3712827.08 | D23: 3776627.102
B24: Maintenance | C24: 14741587.81 | D24: 14994902.49
B25: Non-network | C25: 18677860.08 | D25: 19658771.38
B26: network overheads | C26: 23622081.34 | D26: 24055928.66
B27: corporate overheads | C27: 146630476.1 | D27: 147337381.9
B28: balancing item | C28: 0 | D28: 0
B29: TOTAL OPEX | C29: =SUM(C23:C28) -> 207384832.4 | D29: =SUM(D23:D28) -> 209823611.5

Sheet 2.2 Repex
B1: =(LOOKUP(dms_Model,dms_Model_List,dms_Worksheet_List)) -> REGULATORY REPORTING STATEMENT
B2: =dms_TradingName -> AusNet (T)
B3: =CONCATENATE(FRCP_y1," to ",FRCP_y5) -> 2017-18 to 2021-22
B4: 2.2 REPEX
B6: TABLE 2.2.1 - REPLACEMENT EXPENDITURE, VOLUMES AND ASSET FAILURES BY ASSET CATEGORY
D7: EXPENDITURE | K7: ASSET REPLACEMENTS | R7: ASSET FAILURES
D8: =CONCATENATE("Forecast ($0's. real ",dms_DollarReal,")") -> Forecast ($0's. real March 2017) | K8: =CONCATENATE("Forecast ($0's. real ",dms_DollarReal,")") -> Forecast ($0's. real March 2017) | R8: =CONCATENATE("Forecast ($0's. real ",dms_DollarReal,")") -> Forecast ($0's. real March 2017)
B9: ASSET GROUP | C9: ASSET CATEGORY | D9: =CRCP_y4 -> 2015-16 | E9: =CRCP_y5 -> 2016-17 | F9: =FRCP_y1 -> 2017-18 | G9: =FRCP_y2 -> 2018-19 | H9: =FRCP_y3 -> 2019-20 | I9: =FRCP_y4 -> 2020-21 | J9: =FRCP_y5 -> 2021-22 | K9: =CRCP_y4 -> 2015-16 | L9: =CRCP_y5 -> 2016-17 | M9: =FRCP_y1 -> 2017-18 | N9: =FRCP_y2 -> 2018-19 | O9: =FRCP_y3 -> 2019-20 | P9: =FRCP_y4 -> 2020-21 | Q9: =FRCP_y5 -> 2021-22 | R9: =CRCP_y4 -> 2015-16 | S9: =CRCP_y5 -> 2016-17 | T9: =FRCP_y1 -> 2017-18 | U9: =FRCP_y2 -> 2018-19 | V9: =FRCP_y3 -> 2019-20 | W9: =FRCP_y4 -> 2020-21 | X9: =FRCP_y5 -> 2021-22
B10: TRANSMISSION TOWERS Highest operating voltage; Circuit configuration | C10: < = 33 kV; Single Circuit | D10: 0 | E10: 0 | F10: 0 | G10: 0 | H10: 0 | I10: 0 | J10: 0 | K10: 0 | L10: 0 | M10: 0 | N10: 0 | O10: 0 | P10: 0 | Q10: 0 | R10: 0 | S10: 0 | T10: 0 | U10: 0 | V10: 0 | W10: 0 | X10: 0
C11: > 33 kV & < = 66 kV ; Single Circuit | D11: 0 | E11: 0 | F11: 0 | G11: 0 | H11: 0 | I11: 0 | J11: 0 | K11: 0 | L11: 0 | M11: 0 | N11: 0 | O11: 0 | P11: 0 | Q11: 0 | R11: 0 | S11: 0 | T11: 0 | U11: 0 | V11: 0 | W11: 0 | X11: 0
C12: > 66 kV & < = 132 kV ; Single Circuit | D12: 0 | E12: 0 | F12: 0 | G12: 0 | H12: 0 | I12: 0 | J12: 0 | K12: 0 | L12: 0 | M12: 0 | N12: 0 | O12: 0 | P12: 0 | Q12: 0 | R12: 0 | S12: 0 | T12: 0 | U12: 0 | V12: 0 | W12: 0 | X12: 0
C13: > 132 kV & < = 275 kV ; Single Circuit | D13: 0 | E13: 0 | F13: 0 | G13: 0 | H13: 0 | I13: 0 | J13: 0 | K13: 0 | L13: 0 | M13: 0 | N13: 0 | O13: 0 | P13: 0 | Q13: 0 | R13: 0 | S13: 0 | T13: 0 | U13: 0 | V13: 0 | W13: 0 | X13: 0
C14: > 275 kV & < = 330 kV ; Single Circuit | D14: 0 | E14: 0 | F14: 0 | G14: 0 | H14: 0 | I14: 0 | J14: 0 | K14: 0 | L14: 0 | M14: 0 | N14: 0 | O14: 0 | P14: 0 | Q14: 0 | R14: 0 | S14: 0 | T14: 0 | U14: 0 | V14: 0 | W14: 0 | X14: 0
C15: > 330 kV & < = 500 kV ; Single Circuit | D15: 0 | E15: 0 | F15: 0 | G15: 0 | H15: 0 | I15: 0 | J15: 0 | K15: 0 | L15: 0 | M15: 0 | N15: 0 | O15: 0 | P15: 0 | Q15: 0 | R15: 0 | S15: 0 | T15: 0 | U15: 0 | V15: 0 | W15: 0 | X15: 0
C16: > 500 kV ; Single Circuit | D16: 0 | E16: 0 | F16: 0 | G16: 0 | H16: 0 | I16: 0 | J16: 0 | K16: 0 | L16: 0 | M16: 0 | N16: 0 | O16: 0 | P16: 0 | Q16: 0 | R16: 0 | S16: 0 | T16: 0 | U16: 0 | V16: 0 | W16: 0 | X16: 0
C17: < = 33 kV; Multiple Circuit | D17: 0 | E17: 0 | F17: 0 | G17: 0 | H17: 0 | I17: 0 | J17: 0 | K17: 0 | L17: 0 | M17: 0 | N17: 0 | O17: 0 | P17: 0 | Q17: 0 | R17: 0 | S17: 0 | T17: 0 | U17: 0 | V17: 0 | W17: 0 | X17: 0
C18: > 33 kV & < = 66 kV ; Multiple Circuit | D18: 0 | E18: 0 | F18: 0 | G18: 0 | H18: 0 | I18: 0 | J18: 0 | K18: 0 | L18: 0 | M18: 0 | N18: 0 | O18: 0 | P18: 0 | Q18: 0 | R18: 0 | S18: 0 | T18: 0 | U18: 0 | V18: 0 | W18: 0 | X18: 0
C19: > 66 kV & < = 132 kV ; Multiple Circuit | D19: 0 | E19: 0 | F19: 0 | G19: 0 | H19: 0 | I19: 0 | J19: 0 | K19: 0 | L19: 0 | M19: 0 | N19: 0 | O19: 0 | P19: 0 | Q19: 0 | R19: 0 | S19: 0 | T19: 0 | U19: 0 | V19: 0 | W19: 0 | X19: 0
C20: > 132 kV & < = 275 kV ; Multiple Circuit | D20: 0 | E20: 0 | F20: 0 | G20: 0 | H20: 0 | I20: 0 | J20: 0 | K20: 0 | L20: 0 | M20: 0 | N20: 0 | O20: 0 | P20: 0 | Q20: 0 | R20: 0 | S20: 0 | T20: 0 | U20: 0 | V20: 0 | W20: 0 | X20: 0
C21: > 275 kV & < = 330 kV ; Multiple Circuit | D21: 0 | E21: 0 | F21: 0 | G21: 0 | H21: 0 | I21: 0 | J21: 0 | K21: 0 | L21: 0 | M21: 0 | N21: 0 | O21: 0 | P21: 0 | Q21: 0 | R21: 0 | S21: 0 | T21: 0 | U21: 0 | V21: 0 | W21: 0 | X21: 0
C22: > 330 kV & < = 500 kV ; Multiple Circuit | D22: 0 | E22: 0 | F22: 0 | G22: 0 | H22: 0 | I22: 0 | J22: 0 | K22: 0 | L22: 0 | M22: 0 | N22: 0 | O22: 0 | P22: 0 | Q22: 0 | R22: 0 | S22: 0 | T22: 0 | U22: 0 | V22: 0 | W22: 0 | X22: 0
C23: > 500 kV ; Multiple Circuit | D23: 0 | E23: 0 | F23: 0 | G23: 0 | H23: 0 | I23: 0 | J23: 0 | K23: 0 | L23: 0 | M23: 0 | N23: 0 | O23: 0 | P23: 0 | Q23: 0 | R23: 0 | S23: 0 | T23: 0 | U23: 0 | V23: 0 | W23: 0 | X23: 0
C24: Other | D24: 0 | E24: 0 | F24: 24266.70752 | G24: 3679245.309 | H24: 0 | I24: 0 | J24: 0 | K24: 0 | L24: 0 | M24: 0 | N24: 0 | O24: 0 | P24: 0 | Q24: 0 | R24: 0 | S24: 0 | T24: 0 | U24: 0 | V24: 0 | W24: 0 | X24: 0
B25: TRANSMISSION TOWER SUPPORT STRUCTURES BY: Highest operating voltage; Circuit configuration | C25: < = 33 kV; Single Circuit | D25: 0 | E25: 0 | F25: 0 | G25: 0 | H25: 0 | I25: 0 | J25: 0 | K25: 0 | L25: 0 | M25: 0 | N25: 0 | O25: 0 | P25: 0 | Q25: 0 | R25: 0 | S25: 0 | T25: 0 | U25: 0 | V25: 0 | W25: 0 | X25: 0
C26: > 33 kV & < = 66 kV ; Single Circuit | D26: 0 | E26: 0 | F26: 0 | G26: 0 | H26: 0 | I26: 0 | J26: 0 | K26: 0 | L26: 0 | M26: 0 | N26: 0 | O26: 0 | P26: 0 | Q26: 0 | R26: 0 | S26: 0 | T26: 0 | U26: 0 | V26: 0 | W26: 0 | X26: 0
C27: > 66 kV & < = 132 kV ; Single Circuit | D27: 0 | E27: 0 | F27: 0 | G27: 0 | H27: 0 | I27: 0 | J27: 0 | K27: 0 | L27: 0 | M27: 0 | N27: 0 | O27: 0 | P27: 0 | Q27: 0 | R27: 0 | S27: 0 | T27: 0 | U27: 0 | V27: 0 | W27: 0 | X27: 0
C28: > 132 kV & < = 275 kV ; Single Circuit | D28: 0 | E28: 0 | F28: 0 | G28: 0 | H28: 0 | I28: 0 | J28: 0 | K28: 0 | L28: 0 | M28: 0 | N28: 0 | O28: 0 | P28: 0 | Q28: 0 | R28: 0 | S28: 0 | T28: 0 | U28: 0 | V28: 0 | W28: 0 | X28: 0
C29: > 275 kV & < = 330 kV ; Single Circuit | D29: 0 | E29: 0 | F29: 0 | G29: 0 | H29: 0 | I29: 0 | J29: 0 | K29: 0 | L29: 0 | M29: 0 | N29: 0 | O29: 0 | P29: 0 | Q29: 0 | R29: 0 | S29: 0 | T29: 0 | U29: 0 | V29: 0 | W29: 0 | X29: 0
C30: > 330 kV & < = 500 kV ; Single Circuit | D30: 0 | E30: 0 | F30: 0 | G30: 0 | H30: 0 | I30: 0 | J30: 0 | K30: 0 | L30: 0 | M30: 0 | N30: 0 | O30: 0 | P30: 0 | Q30: 0 | R30: 0 | S30: 0 | T30: 0 | U30: 0 | V30: 0 | W30: 0 | X30: 0
C31: > 500 kV ; Single Circuit | D31: 0 | E31: 0 | F31: 0 | G31: 0 | H31: 0 | I31: 0 | J31: 0 | K31: 0 | L31: 0 | M31: 0 | N31: 0 | O31: 0 | P31: 0 | Q31: 0 | R31: 0 | S31: 0 | T31: 0 | U31: 0 | V31: 0 | W31: 0 | X31: 0
C32: < = 33 kV; Multiple Circuit | D32: 0 | E32: 0 | F32: 0 | G32: 0 | H32: 0 | I32: 0 | J32: 0 | K32: 0 | L32: 0 | M32: 0 | N32: 0 | O32: 0 | P32: 0 | Q32: 0 | R32: 0 | S32: 0 | T32: 0 | U32: 0 | V32: 0 | W32: 0 | X32: 0
C33: > 33 kV & < = 66 kV ; Multiple Circuit | D33: 0 | E33: 0 | F33: 0 | G33: 0 | H33: 0 | I33: 0 | J33: 0 | K33: 0 | L33: 0 | M33: 0 | N33: 0 | O33: 0 | P33: 0 | Q33: 0 | R33: 0 | S33: 0 | T33: 0 | U33: 0 | V33: 0 | W33: 0 | X33: 0
C34: > 66 kV & < = 132 kV ; Multiple Circuit | D34: 0 | E34: 0 | F34: 0 | G34: 0 | H34: 0 | I34: 0 | J34: 0 | K34: 0 | L34: 0 | M34: 0 | N34: 0 | O34: 0 | P34: 0 | Q34: 0 | R34: 0 | S34: 0 | T34: 0 | U34: 0 | V34: 0 | W34: 0 | X34: 0
C35: > 132 kV & < = 275 kV ; Multiple Circuit | D35: 0 | E35: 0 | F35: 0 | G35: 0 | H35: 0 | I35: 0 | J35: 0 | K35: 0 | L35: 0 | M35: 0 | N35: 0 | O35: 0 | P35: 0 | Q35: 0 | R35: 0 | S35: 0 | T35: 0 | U35: 0 | V35: 0 | W35: 0 | X35: 0
C36: > 275 kV & < = 330 kV ; Multiple Circuit | D36: 0 | E36: 0 | F36: 0 | G36: 0 | H36: 0 | I36: 0 | J36: 0 | K36: 0 | L36: 0 | M36: 0 | N36: 0 | O36: 0 | P36: 0 | Q36: 0 | R36: 0 | S36: 0 | T36: 0 | U36: 0 | V36: 0 | W36: 0 | X36: 0
C37: > 330 kV & < = 500 kV ; Multiple Circuit | D37: 0 | E37: 0 | F37: 0 | G37: 0 | H37: 0 | I37: 0 | J37: 0 | K37: 0 | L37: 0 | M37: 0 | N37: 0 | O37: 0 | P37: 0 | Q37: 0 | R37: 0 | S37: 0 | T37: 0 | U37: 0 | V37: 0 | W37: 0 | X37: 0
C38: > 500 kV ; Multiple Circuit | D38: 0 | E38: 0 | F38: 0 | G38: 0 | H38: 0 | I38: 0 | J38: 0 | K38: 0 | L38: 0 | M38: 0 | N38: 0 | O38: 0 | P38: 0 | Q38: 0 | R38: 0 | S38: 0 | T38: 0 | U38: 0 | V38: 0 | W38: 0 | X38: 0
C39: Other | D39: 0 | E39: 0 | F39: 0 | G39: 0 | H39: 0 | I39: 0 | J39: 0 | K39: 0 | L39: 0 | M39: 0 | N39: 0 | O39: 0 | P39: 0 | Q39: 0 | R39: 0 | S39: 0 | T39: 0 | U39: 0 | V39: 0 | W39: 0 | X39: 0
B40: CONDUCTORS BY: Voltage; Maximum continuous rating | C40: < = 33 kV ; < = 100 MVA | D40: 0 | E40: 0 | F40: 0 | G40: 0 | H40: 0 | I40: 0 | J40: 0 | K40: 0 | L40: 0 | M40: 0 | N40: 0 | O40: 0 | P40: 0 | Q40: 0 | R40: 0 | S40: 0 | T40: 0 | U40: 0 | V40: 0 | W40: 0 | X40: 0
C41: < = 33 kV ; > 100 MVA & < = 400 MVA | D41: 0 | E41: 0 | F41: 0 | G41: 0 | H41: 0 | I41: 0 | J41: 0 | K41: 0 | L41: 0 | M41: 0 | N41: 0 | O41: 0 | P41: 0 | Q41: 0 | R41: 0 | S41: 0 | T41: 0 | U41: 0 | V41: 0 | W41: 0 | X41: 0
C42: < = 33 kV ; > 400 MVA | D42: 0 | E42: 0 | F42: 0 | G42: 0 | H42: 0 | I42: 0 | J42: 0 | K42: 0 | L42: 0 | M42: 0 | N42: 0 | O42: 0 | P42: 0 | Q42: 0 | R42: 0 | S42: 0 | T42: 0 | U42: 0 | V42: 0 | W42: 0 | X42: 0
C43: > 33 kV & < = 66 kV ; < = 100 MVA | D43: 0 | E43: 0 | F43: 0 | G43: 0 | H43: 0 | I43: 0 | J43: 0 | K43: 0 | L43: 0 | M43: 0 | N43: 0 | O43: 0 | P43: 0 | Q43: 0 | R43: 0 | S43: 0 | T43: 0 | U43: 1 | V43: 1 | W43: 1 | X43: 1
C44: > 33 kV & < = 66 kV ; > 100 MVA & < = 400 MVA | D44: 0 | E44: 0 | F44: 0 | G44: 0 | H44: 0 | I44: 0 | J44: 0 | K44: 0 | L44: 0 | M44: 0 | N44: 0 | O44: 0 | P44: 0 | Q44: 0 | R44: 0 | S44: 0 | T44: 0 | U44: 0 | V44: 0 | W44: 0 | X44: 0
C45: > 33 kV & < = 66 kV ; > 400 MVA | D45: 0 | E45: 0 | F45: 0 | G45: 0 | H45: 0 | I45: 0 | J45: 0 | K45: 0 | L45: 0 | M45: 0 | N45: 0 | O45: 0 | P45: 0 | Q45: 0 | R45: 0 | S45: 0 | T45: 0 | U45: 0 | V45: 0 | W45: 0 | X45: 0
C46: > 66 kV & < = 132 kV ; < = 100 MVA | D46: 0 | E46: 0 | F46: 0 | G46: 0 | H46: 0 | I46: 0 | J46: 0 | K46: 0 | L46: 0 | M46: 0 | N46: 0 | O46: 0 | P46: 0 | Q46: 0 | R46: 0 | S46: 0 | T46: 0 | U46: 0 | V46: 0 | W46: 0 | X46: 0
C47: > 66 kV & < = 132 kV ; > 100 MVA & < = 400 MVA | D47: 0 | E47: 0 | F47: 0 | G47: 0 | H47: 0 | I47: 0 | J47: 0 | K47: 0 | L47: 0 | M47: 0 | N47: 0 | O47: 0 | P47: 0 | Q47: 0 | R47: 0 | S47: 0 | T47: 0 | U47: 0 | V47: 0 | W47: 0 | X47: 0
C48: > 66 kV & < = 132 kV ; > 400 MVA | D48: 0 | E48: 0 | F48: 0 | G48: 0 | H48: 0 | I48: 0 | J48: 0 | K48: 0 | L48: 0 | M48: 0 | N48: 0 | O48: 0 | P48: 0 | Q48: 0 | R48: 0 | S48: 0 | T48: 0 | U48: 0 | V48: 0 | W48: 0 | X48: 0
C49: > 132 kV & < = 275 kV ; < = 200 MVA | D49: 0 | E49: 0 | F49: 0 | G49: 0 | H49: 0 | I49: 0 | J49: 0 | K49: 0 | L49: 0 | M49: 0 | N49: 0 | O49: 0 | P49: 0 | Q49: 0 | R49: 0 | S49: 0 | T49: 0 | U49: 0 | V49: 0 | W49: 0 | X49: 0
C50: > 132 kV & < = 275 kV ; > 200 MVA & < = 600 MVA | D50: 0 | E50: 0 | F50: 0 | G50: 0 | H50: 0 | I50: 0 | J50: 0 | K50: 0 | L50: 0 | M50: 0 | N50: 0 | O50: 0 | P50: 0 | Q50: 0 | R50: 4 | S50: 5 | T50: 5 | U50: 8 | V50: 9 | W50: 11 | X50: 14
C51: > 132 kV & < = 275 kV ; > 600 MVA | D51: 0 | E51: 0 | F51: 0 | G51: 0 | H51: 0 | I51: 0 | J51: 0 | K51: 0 | L51: 0 | M51: 0 | N51: 0 | O51: 0 | P51: 0 | Q51: 0 | R51: 0 | S51: 0 | T51: 1 | U51: 1 | V51: 1 | W51: 1 | X51: 1
C52: > 275 kV & < = 330 kV ; < = 800 MVA | D52: 0 | E52: 0 | F52: 0 | G52: 0 | H52: 0 | I52: 0 | J52: 0 | K52: 0 | L52: 0 | M52: 0 | N52: 0 | O52: 0 | P52: 0 | Q52: 0 | R52: 0 | S52: 0 | T52: 0 | U52: 0 | V52: 0 | W52: 0 | X52: 0
C53: > 275 kV & < = 330 kV ; > 800 MVA & < = 1200 MVA | D53: 0 | E53: 0 | F53: 0 | G53: 0 | H53: 0 | I53: 0 | J53: 0 | K53: 0 | L53: 0 | M53: 0 | N53: 0 | O53: 0 | P53: 0 | Q53: 0 | R53: 1 | S53: 1 | T53: 1 | U53: 1 | V53: 1 | W53: 1 | X53: 2
C54: > 275 kV & < = 330 kV ; > 1200 MVA | D54: 0 | E54: 0 | F54: 0 | G54: 0 | H54: 0 | I54: 0 | J54: 0 | K54: 0 | L54: 0 | M54: 0 | N54: 0 | O54: 0 | P54: 0 | Q54: 0 | R54: 0 | S54: 0 | T54: 0 | U54: 0 | V54: 0 | W54: 0 | X54: 0
C55: > 330 kV & < = 500 kV ; < = 1000 MVA | D55: 0 | E55: 0 | F55: 0 | G55: 0 | H55: 0 | I55: 0 | J55: 0 | K55: 0 | L55: 0 | M55: 0 | N55: 0 | O55: 0 | P55: 0 | Q55: 0 | R55: 0 | S55: 0 | T55: 0 | U55: 0 | V55: 0 | W55: 0 | X55: 0
C56: > 330 kV & < = 500 kV ; > 1000 MVA & < = 1500 MVA | D56: 0 | E56: 0 | F56: 0 | G56: 0 | H56: 0 | I56: 0 | J56: 0 | K56: 0 | L56: 0 | M56: 0 | N56: 0 | O56: 0 | P56: 0 | Q56: 0 | R56: 0 | S56: 0 | T56: 0 | U56: 0 | V56: 0 | W56: 0 | X56: 0
C57: > 330 kV & < = 500 kV ; > 1500 MVA | D57: 0 | E57: 0 | F57: 0 | G57: 0 | H57: 0 | I57: 0 | J57: 0 | K57: 0 | L57: 0 | M57: 0 | N57: 0 | O57: 0 | P57: 0 | Q57: 0 | R57: 2 | S57: 2 | T57: 3 | U57: 3 | V57: 6 | W57: 8 | X57: 9
C58: > 500 kV ; < = 2000 MVA | D58: 0 | E58: 0 | F58: 0 | G58: 0 | H58: 0 | I58: 0 | J58: 0 | K58: 0 | L58: 0 | M58: 0 | N58: 0 | O58: 0 | P58: 0 | Q58: 0 | R58: 0 | S58: 0 | T58: 0 | U58: 0 | V58: 0 | W58: 0 | X58: 0
C59: > 500 kV ; > 2000 MVA & < = 3000 MVA | D59: 0 | E59: 0 | F59: 0 | G59: 0 | H59: 0 | I59: 0 | J59: 0 | K59: 0 | L59: 0 | M59: 0 | N59: 0 | O59: 0 | P59: 0 | Q59: 0 | R59: 0 | S59: 0 | T59: 0 | U59: 0 | V59: 0 | W59: 0 | X59: 0
C60: > 500 kV ; > 3000 MVA | D60: 0 | E60: 0 | F60: 0 | G60: 0 | H60: 0 | I60: 0 | J60: 0 | K60: 0 | L60: 0 | M60: 0 | N60: 0 | O60: 0 | P60: 0 | Q60: 0 | R60: 0 | S60: 0 | T60: 0 | U60: 0 | V60: 0 | W60: 0 | X60: 0
C61: Other | D61: 8320536.588 | E61: 427153.06 | F61: 0 | G61: 0 | H61: 0 | I61: 0 | J61: 0 | K61: 9 | L61: 1 | M61: 0 | N61: 0 | O61: 0 | P61: 0 | Q61: 0
B62: TRANSMISSION CABLES BY: Highest operating voltage; Insulation type | C62: < = 33 kV; Oil Filled | D62: 0 | E62: 0 | F62: 0 | G62: 0 | H62: 0 | I62: 0 | J62: 0 | K62: 0 | L62: 0 | M62: 0 | N62: 0 | O62: 0 | P62: 0 | Q62: 0 | R62: 0 | S62: 0 | T62: 0 | U62: 0 | V62: 0 | W62: 0 | X62: 0
C63: > 33 kV & < = 66 kV ; Oil Filled | D63: 0 | E63: 0 | F63: 0 | G63: 0 | H63: 0 | I63: 0 | J63: 0 | K63: 0 | L63: 0 | M63: 0 | N63: 0 | O63: 0 | P63: 0 | Q63: 0 | R63: 0 | S63: 0 | T63: 0 | U63: 0 | V63: 0 | W63: 0 | X63: 0
C64: > 66 kV & < = 132 kV ; Oil Filled | D64: 0 | E64: 0 | F64: 0 | G64: 0 | H64: 0 | I64: 0 | J64: 0 | K64: 0 | L64: 0 | M64: 0 | N64: 0 | O64: 0 | P64: 0 | Q64: 0 | R64: 0 | S64: 0 | T64: 0 | U64: 0 | V64: 0 | W64: 0 | X64: 0
C65: > 132 kV & < = 275 kV ; Oil Filled | D65: 0 | E65: 0 | F65: 0 | G65: 0 | H65: 0 | I65: 0 | J65: 1700000 | K65: 0 | L65: 0 | M65: 0 | N65: 0 | O65: 1 | P65: 0 | Q65: 0 | R65: 0 | S65: 0 | T65: 0 | U65: 0 | V65: 0 | W65: 0 | X65: 0
C66: > 275 kV & < = 330 kV ; Oil Filled | D66: 0 | E66: 0 | F66: 0 | G66: 0 | H66: 0 | I66: 0 | J66: 0 | K66: 0 | L66: 0 | M66: 0 | N66: 0 | O66: 0 | P66: 0 | Q66: 0 | R66: 0 | S66: 0 | T66: 0 | U66: 0 | V66: 0 | W66: 0 | X66: 0
C67: > 330 kV & < = 500 kV ; Oil Filled | D67: 0 | E67: 0 | F67: 0 | G67: 0 | H67: 0 | I67: 0 | J67: 0 | K67: 0 | L67: 0 | M67: 0 | N67: 0 | O67: 0 | P67: 0 | Q67: 0 | R67: 0 | S67: 0 | T67: 0 | U67: 0 | V67: 0 | W67: 0 | X67: 0
C68: > 500 kV ; Oil Filled | D68: 0 | E68: 0 | F68: 0 | G68: 0 | H68: 0 | I68: 0 | J68: 0 | K68: 0 | L68: 0 | M68: 0 | N68: 0 | O68: 0 | P68: 0 | Q68: 0 | R68: 0 | S68: 0 | T68: 0 | U68: 0 | V68: 0 | W68: 0 | X68: 0
C69: < = 33 kV; XLPE Insulated | D69: 0 | E69: 0 | F69: 0 | G69: 0 | H69: 0 | I69: 0 | J69: 0 | K69: 0 | L69: 0 | M69: 0 | N69: 0 | O69: 0 | P69: 0 | Q69: 0 | R69: 0 | S69: 0 | T69: 0 | U69: 0 | V69: 0 | W69: 0 | X69: 0
C70: > 33 kV & < = 66 kV ; XLPE Insulated | D70: 0 | E70: 0 | F70: 0 | G70: 0 | H70: 0 | I70: 0 | J70: 1500000 | K70: 0 | L70: 0 | M70: 0 | N70: 1 | O70: 1 | P70: 1 | Q70: 0 | R70: 0 | S70: 0 | T70: 0 | U70: 0 | V70: 0 | W70: 0 | X70: 0
C71: > 66 kV & < = 132 kV ; XLPE Insulated | D71: 0 | E71: 0 | F71: 0 | G71: 0 | H71: 0 | I71: 0 | J71: 0 | K71: 0 | L71: 0 | M71: 0 | N71: 0 | O71: 0 | P71: 0 | Q71: 0 | R71: 0 | S71: 0 | T71: 0 | U71: 0 | V71: 0 | W71: 0 | X71: 0
C72: > 132 kV & < = 275 kV ; XLPE Insulated | D72: 0 | E72: 0 | F72: 0 | G72: 0 | H72: 0 | I72: 0 | J72: 0 | K72: 0 | L72: 0 | M72: 0 | N72: 0 | O72: 0 | P72: 0 | Q72: 0 | R72: 0 | S72: 0 | T72: 0 | U72: 0 | V72: 0 | W72: 0 | X72: 0
C73: > 275 kV & < = 330 kV ; XLPE Insulated | D73: 0 | E73: 0 | F73: 0 | G73: 0 | H73: 0 | I73: 0 | J73: 0 | K73: 0 | L73: 0 | M73: 0 | N73: 0 | O73: 0 | P73: 0 | Q73: 0 | R73: 0 | S73: 0 | T73: 0 | U73: 0 | V73: 0 | W73: 0 | X73: 0
C74: > 330 kV & < = 500 kV ; XLPE Insulated | D74: 0 | E74: 0 | F74: 0 | G74: 0 | H74: 0 | I74: 0 | J74: 0 | K74: 0 | L74: 0 | M74: 0 | N74: 0 | O74: 0 | P74: 0 | Q74: 0 | R74: 0 | S74: 0 | T74: 0 | U74: 0 | V74: 0 | W74: 0 | X74: 0
C75: > 500 kV ; XLPE Insulated | D75: 0 | E75: 0 | F75: 0 | G75: 0 | H75: 0 | I75: 0 | J75: 0 | K75: 0 | L75: 0 | M75: 0 | N75: 0 | O75: 0 | P75: 0 | Q75: 0 | R75: 0 | S75: 0 | T75: 0 | U75: 0 | V75: 0 | W75: 0 | X75: 0
C76: < = 33 kV; Other Insulated | D76: 0 | E76: 0 | F76: 0 | G76: 0 | H76: 0 | I76: 0 | J76: 0 | K76: 0 | L76: 0 | M76: 0 | N76: 0 | O76: 0 | P76: 0 | Q76: 0 | R76: 0 | S76: 0 | T76: 0 | U76: 0 | V76: 0 | W76: 0 | X76: 0
C77: > 33 kV & < = 66 kV ; Other Insulated | D77: 0 | E77: 0 | F77: 0 | G77: 0 | H77: 0 | I77: 0 | J77: 0 | K77: 0 | L77: 0 | M77: 0 | N77: 0 | O77: 0 | P77: 0 | Q77: 0 | R77: 0 | S77: 0 | T77: 0 | U77: 0 | V77: 0 | W77: 0 | X77: 0
C78: > 66 kV & < = 132 kV ; Other Insulated | D78: 0 | E78: 0 | F78: 0 | G78: 0 | H78: 0 | I78: 0 | J78: 0 | K78: 0 | L78: 0 | M78: 0 | N78: 0 | O78: 0 | P78: 0 | Q78: 0 | R78: 0 | S78: 0 | T78: 0 | U78: 0 | V78: 0 | W78: 0 | X78: 0
C79: > 132 kV & < = 275 kV ; Other Insulated | D79: 0 | E79: 0 | F79: 0 | G79: 0 | H79: 0 | I79: 0 | J79: 0 | K79: 0 | L79: 0 | M79: 0 | N79: 0 | O79: 0 | P79: 0 | Q79: 0 | R79: 0 | S79: 0 | T79: 0 | U79: 0 | V79: 0 | W79: 0 | X79: 0
C80: > 275 kV & < = 330 kV ; Other Insulated | D80: 0 | E80: 0 | F80: 0 | G80: 0 | H80: 0 | I80: 0 | J80: 0 | K80: 0 | L80: 0 | M80: 0 | N80: 0 | O80: 0 | P80: 0 | Q80: 0 | R80: 0 | S80: 0 | T80: 0 | U80: 0 | V80: 0 | W80: 0 | X80: 0
C81: > 330 kV & < = 500 kV ; Other Insulated | D81: 0 | E81: 0 | F81: 0 | G81: 0 | H81: 0 | I81: 0 | J81: 0 | K81: 0 | L81: 0 | M81: 0 | N81: 0 | O81: 0 | P81: 0 | Q81: 0 | R81: 0 | S81: 0 | T81: 0 | U81: 0 | V81: 0 | W81: 0 | X81: 0
C82: > 500 kV ; Other Insulated | D82: 0 | E82: 0 | F82: 0 | G82: 0 | H82: 0 | I82: 0 | J82: 0 | K82: 0 | L82: 0 | M82: 0 | N82: 0 | O82: 0 | P82: 0 | Q82: 0 | R82: 0 | S82: 0 | T82: 0 | U82: 0 | V82: 0 | W82: 0 | X82: 0
C83: Other | D83: 0 | E83: 0 | F83: 0 | G83: 0 | H83: 0 | I83: 0 | J83: 0 | K83: 0 | L83: 0 | M83: 0 | N83: 0 | O83: 0 | P83: 0 | Q83: 0 | R83: 0 | S83: 0 | T83: 0 | U83: 0 | V83: 0 | W83: 0 | X83: 0
B84: SUBSTATION SWITCHBAYS BY: Highest operating voltage; Switch type | C84: < = 33 kV; Air Insulated circuit Breaker | D84: 0 | E84: 0 | F84: 331280.4845 | G84: 268149.5806 | H84: 284436.8079 | I84: 0 | J84: 0 | K84: 0 | L84: 0 | M84: 1 | N84: 1 | O84: 1 | P84: 0 | Q84: 0 | R84: 3 | S84: 3 | T84: 3 | U84: 3 | V84: 3 | W84: 4 | X84: 4
C85: > 33 kV & < = 66 kV ; Air Insulated circuit Breaker | D85: 2442388.045 | E85: 1044151.924 | F85: 9296085.33 | G85: 5239346.225 | H85: 2844368.079 | I85: 4333089.656 | J85: 19130226.99 | K85: 14.42179132 | L85: 12.32413422 | M85: 24 | N85: 30 | O85: 26 | P85: 24 | Q85: 18 | R85: 11 | S85: 11 | T85: 12 | U85: 13 | V85: 14 | W85: 15 | X85: 16
C86: > 66 kV & < = 132 kV ; Air Insulated circuit Breaker | D86: 0 | E86: 0 | F86: 0 | G86: 0 | H86: 0 | I86: 0 | J86: 0 | K86: 0 | L86: 0 | M86: 0 | N86: 0 | O86: 0 | P86: 0 | Q86: 0 | R86: 0 | S86: 0 | T86: 0 | U86: 0 | V86: 0 | W86: 0 | X86: 0
C87: > 132 kV & < = 275 kV ; Air Insulated circuit Breaker | D87: 0 | E87: 1030000 | F87: 3724544.191 | G87: 5957261.958 | H87: 1871352.589 | I87: 4072652.883 | J87: 4363070.849 | K87: 2 | L87: 6 | M87: 7 | N87: 10 | O87: 10 | P87: 5 | Q87: 5 | R87: 5 | S87: 6 | T87: 6 | U87: 6 | V87: 7 | W87: 7 | X87: 8
C88: > 275 kV & < = 330 kV ; Air Insulated circuit Breaker | D88: 0 | E88: 0 | F88: 0 | G88: 1160000 | H88: 0 | I88: 0 | J88: 0 | K88: 0 | L88: 1 | M88: 1 | N88: 0 | O88: 0 | P88: 0 | Q88: 0 | R88: 0 | S88: 0 | T88: 1 | U88: 1 | V88: 1 | W88: 1 | X88: 1
C89: > 330 kV & < = 500 kV ; Air Insulated circuit Breaker | D89: 0 | E89: 0 | F89: 0 | G89: 2942530.427 | H89: 1228898.795 | I89: 2950481.649 | J89: 2348416.995 | K89: 0 | L89: 1 | M89: 1 | N89: 1 | O89: 1 | P89: 3 | Q89: 2 | R89: 2 | S89: 2 | T89: 2 | U89: 2 | V89: 2 | W89: 2 | X89: 2
C90: > 500 kV ; Air Insulated circuit Breaker | D90: 0 | E90: 0 | F90: 0 | G90: 0 | H90: 0 | I90: 0 | J90: 0 | K90: 0 | L90: 0 | M90: 0 | N90: 0 | O90: 0 | P90: 0 | Q90: 0 | R90: 0 | S90: 0 | T90: 0 | U90: 0 | V90: 0 | W90: 0 | X90: 0
C91: < = 33 kV; Air Insulated Isolators / Earth Switch | D91: 0 | E91: 0 | F91: 123893.0272 | G91: 481227.0441 | H91: 340863.5405 | I91: 411001.6743 | J91: 560228.3302 | K91: 0 | L91: 0 | M91: 3 | N91: 6 | O91: 6 | P91: 6 | Q91: 7 | R91: 16 | S91: 16 | T91: 17 | U91: 19 | V91: 20 | W91: 21 | X91: 22
C92: > 33 kV & < = 66 kV ; Air Insulated Isolators / Earth Switch | D92: 710000 | E92: 0 | F92: 6157405.998 | G92: 1976851.661 | H92: 636443.7059 | I92: 3096135.283 | J92: 17268975.92 | K92: 19 | L92: 20 | M92: 19 | N92: 39 | O92: 40 | P92: 47 | Q92: 39 | R92: 25 | S92: 26 | T92: 28 | U92: 30 | V92: 32 | W92: 34 | X92: 36
C93: > 66 kV & < = 132 kV ; Air Insulated Isolators / Earth Switch | D93: 0 | E93: 0 | F93: 0 | G93: 0 | H93: 0 | I93: 0 | J93: 0 | K93: 0 | L93: 0 | M93: 0 | N93: 0 | O93: 0 | P93: 0 | Q93: 0 | R93: 0 | S93: 0 | T93: 0 | U93: 0 | V93: 0 | W93: 0 | X93: 0
C94: > 132 kV & < = 275 kV ; Air Insulated Isolators / Earth Switch | D94: 0 | E94: 2781000 | F94: 5754154.224 | G94: 7171184.073 | H94: 528668.7274 | I94: 8671450.787 | J94: 12795768.58 | K94: 13 | L94: 23 | M94: 13 | N94: 13 | O94: 19 | P94: 38 | Q94: 17 | R94: 30 | S94: 31 | T94: 34 | U94: 37 | V94: 40 | W94: 43 | X94: 46
C95: > 275 kV & < = 330 kV ; Air Insulated Isolators / Earth Switch | D95: 0 | E95: 0 | F95: 256859.8143 | G95: 1898849.257 | H95: 353345.7357 | I95: 426052.2812 | J95: 0 | K95: 1 | L95: 2 | M95: 2 | N95: 1 | O95: 1 | P95: 1 | Q95: 0 | R95: 3 | S95: 3 | T95: 3 | U95: 3 | V95: 3 | W95: 4 | X95: 4
C96: > 330 kV & < = 500 kV ; Air Insulated Isolators / Earth Switch | D96: 0 | E96: 0 | F96: 256978.927 | G96: 3425080.587 | H96: 707019.183 | I96: 426249.853 | J96: 498010.9918 | K96: 0 | L96: 1 | M96: 5 | N96: 3 | O96: 2 | P96: 1 | Q96: 1 | R96: 6 | S96: 7 | T96: 7 | U96: 8 | V96: 8 | W96: 9 | X96: 9
C97: > 500 kV ; Air Insulated Isolators / Earth Switch | D97: 0 | E97: 0 | F97: 0 | G97: 0 | H97: 0 | I97: 0 | J97: 0 | K97: 0 | L97: 0 | M97: 0 | N97: 0 | O97: 0 | P97: 0 | Q97: 0 | R97: 0 | S97: 0 | T97: 0 | U97: 0 | V97: 0 | W97: 0 | X97: 0
C98: < = 33 kV; VT | D98: 14771.97016 | E98: 35057.12001 | F98: 12530.37838 | G98: 37615.13126 | H98: 25362.65581 | I98: 12651.44746 | J98: 12735.1766 | K98: 1.240903466 | L98: 2.981485627 | M98: 1 | N98: 3 | O98: 2 | P98: 1 | Q98: 1 | R98: 3 | S98: 3 | T98: 4 | U98: 4 | V98: 5 | W98: 5 | X98: 5
C99: > 33 kV & < = 66 kV ; VT | D99: 100918.3984 | E99: 75749.34897 | F99: 576016.5586 | G99: 255063.7788 | H99: 48611.75697 | I99: 48497.21526 | J99: 945818.177 | K99: 3.396016399 | L99: 7.354171331 | M99: 7 | N99: 5 | O99: 5 | P99: 7 | Q99: 7 | R99: 4 | S99: 4 | T99: 5 | U99: 5 | V99: 6 | W99: 7 | X99: 7
C100: > 66 kV & < = 132 kV ; VT | D100: 0 | E100: 0 | F100: 0 | G100: 0 | H100: 0 | I100: 0 | J100: 0 | K100: 0 | L100: 0 | M100: 0 | N100: 0 | O100: 0 | P100: 0 | Q100: 0 | R100: 0 | S100: 0 | T100: 0 | U100: 0 | V100: 0 | W100: 0 | X100: 0
C101: > 132 kV & < = 275 kV ; VT | D101: 58288.16489 | E101: 1563330.579 | F101: 669198.8288 | G101: 198524.3039 | H101: 100393.8459 | I101: 0 | J101: 285000 | K101: 1.620451733 | L101: 6.490742814 | M101: 2 | N101: 3 | O101: 2 | P101: 1 | Q101: 0 | R101: 5 | S101: 6 | T101: 6 | U101: 7 | V101: 8 | W101: 9 | X101: 9
C102: > 275 kV & < = 330 kV ; VT | D102: 0 | E102: 0 | F102: 0 | G102: 330000 | H102: 0 | I102: 0 | J102: 0 | K102: 0 | L102: 1 | M102: 0 | N102: 0 | O102: 0 | P102: 0 | Q102: 0 | R102: 0 | S102: 0 | T102: 0 | U102: 0 | V102: 0 | W102: 1 | X102: 1
C103: > 330 kV & < = 500 kV ; VT | D103: 20486.01191 | E103: 48617.79236 | F103: 139922.5585 | G103: 0 | H103: 0 | I103: 0 | J103: 0 | K103: 0.1551129333 | L103: 0.3726857034 | M103: 1 | N103: 0 | O103: 0 | P103: 0 | Q103: 0 | R103: 2 | S103: 2 | T103: 2 | U103: 2 | V103: 3 | W103: 3 | X103: 3
C104: > 500 kV ; VT | D104: 0 | E104: 0 | F104: 0 | G104: 0 | H104: 0 | I104: 0 | J104: 0 | K104: 0 | L104: 0 | M104: 0 | N104: 0 | O104: 0 | P104: 0 | Q104: 0 | R104: 0 | S104: 0 | T104: 0 | U104: 0 | V104: 0 | W104: 0 | X104: 0
C105: < = 33 kV; CT | D105: 0 | E105: 0 | F105: 0 | G105: 0 | H105: 0 | I105: 0 | J105: 0 | K105: 0 | L105: 0 | M105: 0 | N105: 0 | O105: 0 | P105: 0 | Q105: 0 | R105: 2 | S105: 2 | T105: 2 | U105: 3 | V105: 3 | W105: 4 | X105: 5
C106: > 33 kV & < = 66 kV ; CT | D106: 24162.85803 | E106: 57343.75338 | F106: 82491.65765 | G106: 320544.3158 | H106: 0 | I106: 476000 | J106: 238000 | K106: 0.3102258665 | L106: 0.7453714068 | M106: 2 | N106: 2 | O106: 2 | P106: 0 | Q106: 0 | R106: 8 | S106: 9 | T106: 10 | U106: 12 | V106: 13 | W106: 15 | X106: 16
C107: > 66 kV & < = 132 kV ; CT | D107: 0 | E107: 0 | F107: 0 | G107: 0 | H107: 0 | I107: 0 | J107: 0 | K107: 0 | L107: 0 | M107: 0 | N107: 0 | O107: 0 | P107: 0 | Q107: 0 | R107: 0 | S107: 0 | T107: 0 | U107: 0 | V107: 0 | W107: 0 | X107: 0
C108: > 132 kV & < = 275 kV ; CT | D108: 222044.9222 | E108: 1606961.225 | F108: 970607.5675 | G108: 250767.5417 | H108: 253626.5581 | I108: 2179543.424 | J108: 1462055.298 | K108: 3.861355199 | L108: 7.472228441 | M108: 3 | N108: 6 | O108: 8 | P108: 6 | Q108: 4 | R108: 6 | S108: 7 | T108: 8 | U108: 9 | V108: 10 | W108: 11 | X108: 12
C109: > 275 kV & < = 330 kV ; CT | D109: 0 | E109: 0 | F109: 0 | G109: 840000 | H109: 0 | I109: 0 | J109: 0 | K109: 0 | L109: 1 | M109: 1 | N109: 0 | O109: 0 | P109: 0 | Q109: 0 | R109: 0 | S109: 0 | T109: 0 | U109: 0 | V109: 0 | W109: 1 | X109: 1
C110: > 330 kV & < = 500 kV ; CT | D110: 768257.336 | E110: 1823242.894 | F110: 929336.3963 | G110: 1999929.634 | H110: 1128638.184 | I110: 1125978.824 | J110: 1133430.718 | K110: 4.343162131 | L110: 11.43519969 | M110: 6 | N110: 5 | O110: 6 | P110: 6 | Q110: 6 | R110: 3 | S110: 4 | T110: 4 | U110: 4 | V110: 5 | W110: 5 | X110: 6
C111: > 500 kV ; CT | D111: 0 | E111: 0 | F111: 0 | G111: 0 | H111: 0 | I111: 0 | J111: 0 | K111: 0 | L111: 0 | M111: 0 | N111: 0 | O111: 0 | P111: 0 | Q111: 0 | R111: 0 | S111: 0 | T111: 0 | U111: 0 | V111: 0 | W111: 0 | X111: 0
C112: < = 33 kV; GIS Module | D112: 0 | E112: 0 | F112: 0 | G112: 0 | H112: 0 | I112: 0 | J112: 0 | K112: 0 | L112: 0 | M112: 0 | N112: 0 | O112: 0 | P112: 0 | Q112: 0 | R112: 0 | S112: 0 | T112: 0 | U112: 0 | V112: 0 | W112: 0 | X112: 0
C113: > 33 kV & < = 66 kV ; GIS Module | D113: 0 | E113: 0 | F113: 0 | G113: 2000000 | H113: 0 | I113: 0 | J113: 0 | K113: 1 | L113: 1 | M113: 1 | N113: 3 | O113: 2 | P113: 0 | Q113: 0 | R113: 0 | S113: 0 | T113: 0 | U113: 0 | V113: 0 | W113: 0 | X113: 0
C114: > 66 kV & < = 132 kV ; GIS Module | D114: 0 | E114: 0 | F114: 0 | G114: 0 | H114: 0 | I114: 0 | J114: 0 | K114: 0 | L114: 0 | M114: 0 | N114: 0 | O114: 0 | P114: 0 | Q114: 0 | R114: 0 | S114: 0 | T114: 0 | U114: 0 | V114: 0 | W114: 0 | X114: 0
C115: > 132 kV & < = 275 kV ; GIS Module | D115: 0 | E115: 0 | F115: 0 | G115: 10200000 | H115: 0 | I115: 0 | J115: 0 | K115: 1 | L115: 1 | M115: 1 | N115: 0 | O115: 0 | P115: 0 | Q115: 0 | R115: 0 | S115: 0 | T115: 0 | U115: 0 | V115: 0 | W115: 0 | X115: 0
C116: > 275 kV & < = 330 kV ; GIS Module | D116: 0 | E116: 0 | F116: 0 | G116: 0 | H116: 0 | I116: 0 | J116: 0 | K116: 0 | L116: 0 | M116: 0 | N116: 0 | O116: 0 | P116: 0 | Q116: 0 | R116: 0 | S116: 0 | T116: 0 | U116: 0 | V116: 0 | W116: 0 | X116: 0
C117: > 330 kV & < = 500 kV ; GIS Module | D117: 0 | E117: 0 | F117: 0 | G117: 0 | H117: 0 | I117: 0 | J117: 0 | K117: 0 | L117: 0 | M117: 0 | N117: 0 | O117: 0 | P117: 0 | Q117: 0 | R117: 0 | S117: 0 | T117: 0 | U117: 0 | V117: 0 | W117: 0 | X117: 0
C118: > 500 kV ; GIS Module | D118: 0 | E118: 0 | F118: 0 | G118: 0 | H118: 0 | I118: 0 | J118: 0 | K118: 0 | L118: 0 | M118: 0 | N118: 0 | O118: 0 | P118: 0 | Q118: 0 | R118: 0 | S118: 0 | T118: 0 | U118: 0 | V118: 0 | W118: 0 | X118: 0
C119: Other | D119: 0 | E119: 0 | F119: 0 | G119: 0 | H119: 0 | I119: 0 | J119: 0 | K119: 0 | L119: 0 | M119: 0 | N119: 0 | O119: 0 | P119: 0 | Q119: 0 | R119: 0 | S119: 0 | T119: 0 | U119: 0 | V119: 0 | W119: 0 | X119: 0
B120: SUBSTATION POWER TRANSFORMERS BY: Highest operating voltage; Ampere rating | C120: < = 33 kV ; < = 10 MVA | D120: 0 | E120: 0 | F120: 0 | G120: 0 | H120: 0 | I120: 0 | J120: 0 | K120: 0 | L120: 0 | M120: 0 | N120: 0 | O120: 0 | P120: 0 | Q120: 0 | R120: 0 | S120: 0 | T120: 0 | U120: 0 | V120: 0 | W120: 0 | X120: 0
C121: < = 33 kV ; > 10 MVA & < = 30 MVA | D121: 0 | E121: 0 | F121: 0 | G121: 0 | H121: 0 | I121: 0 | J121: 0 | K121: 0 | L121: 0 | M121: 0 | N121: 0 | O121: 0 | P121: 0 | Q121: 0 | R121: 0 | S121: 0 | T121: 0 | U121: 0 | V121: 0 | W121: 0 | X121: 0
C122: < = 33 kV ; > 30 MVA | D122: 0 | E122: 0 | F122: 0 | G122: 0 | H122: 0 | I122: 0 | J122: 0 | K122: 0 | L122: 0 | M122: 0 | N122: 0 | O122: 0 | P122: 0 | Q122: 0 | R122: 0 | S122: 0 | T122: 0 | U122: 0 | V122: 0 | W122: 0 | X122: 0
C123: > 33 kV & < = 66 kV ; < = 10 MVA | D123: 0 | E123: 0 | F123: 0 | G123: 0 | H123: 0 | I123: 0 | J123: 0 | K123: 0 | L123: 0 | M123: 0 | N123: 0 | O123: 0 | P123: 0 | Q123: 0 | R123: 0 | S123: 0 | T123: 0 | U123: 0 | V123: 0 | W123: 0 | X123: 0
C124: > 33 kV & < = 66 kV ; > 10 MVA & < = 30 MVA | D124: 0 | E124: 0 | F124: 0 | G124: 0 | H124: 0 | I124: 0 | J124: 0 | K124: 0 | L124: 0 | M124: 0 | N124: 0 | O124: 0 | P124: 0 | Q124: 0 | R124: 0 | S124: 0 | T124: 0 | U124: 0 | V124: 0 | W124: 0 | X124: 0
C125: > 33 kV & < = 66 kV ; > 30 MVA | D125: 0 | E125: 0 | F125: 0 | G125: 0 | H125: 0 | I125: 0 | J125: 0 | K125: 0 | L125: 0 | M125: 0 | N125: 0 | O125: 0 | P125: 0 | Q125: 0 | R125: 0 | S125: 0 | T125: 0 | U125: 0 | V125: 0 | W125: 0 | X125: 0
C126: > 66 kV & < = 132 kV ; < = 30 MVA | D126: 0 | E126: 0 | F126: 0 | G126: 0 | H126: 0 | I126: 0 | J126: 0 | K126: 0 | L126: 0 | M126: 0 | N126: 0 | O126: 0 | P126: 0 | Q126: 0 | R126: 0 | S126: 0 | T126: 0 | U126: 0 | V126: 0 | W126: 0 | X126: 0
C127: > 66 kV & < = 132 kV ; > 30 MVA & < = 60 MVA | D127: 0 | E127: 0 | F127: 0 | G127: 0 | H127: 0 | I127: 0 | J127: 0 | K127: 0 | L127: 0 | M127: 0 | N127: 0 | O127: 0 | P127: 0 | Q127: 0 | R127: 0 | S127: 0 | T127: 0 | U127: 0 | V127: 0 | W127: 0 | X127: 0
C128: > 66 kV & < = 132 kV ; > 60 MVA | D128: 0 | E128: 0 | F128: 0 | G128: 0 | H128: 0 | I128: 0 | J128: 0 | K128: 0 | L128: 0 | M128: 0 | N128: 0 | O128: 0 | P128: 0 | Q128: 0 | R128: 0 | S128: 0 | T128: 0 | U128: 0 | V128: 0 | W128: 0 | X128: 0
C129: > 132 kV & < = 220 kV ; < = 50 MVA | D129: 0 | E129: 0 | F129: 0 | G129: 0 | H129: 0 | I129: 0 | J129: 0 | K129: 0 | L129: 0 | M129: 0 | N129: 0 | O129: 0 | P129: 0 | Q129: 0 | R129: 1 | S129: 1 | T129: 1 | U129: 1 | V129: 1 | W129: 1 | X129: 1
C130: > 132 kV & < = 220 kV ; > 50 MVA & < = 100 MVA | D130: 0 | E130: 0 | F130: 0 | G130: 0 | H130: 0 | I130: 0 | J130: 0 | K130: 0 | L130: 0 | M130: 0 | N130: 0 | O130: 0 | P130: 0 | Q130: 0 | R130: 0 | S130: 0 | T130: 0 | U130: 0 | V130: 0 | W130: 0 | X130: 0
C131: > 132 kV & < = 220 kV ; > 100 MVA | D131: 0 | E131: 0 | F131: 14552127 | G131: 19402836 | H131: 0 | I131: 9701418 | J131: 41196375 | K131: 2 | L131: 3 | M131: 2 | N131: 2 | O131: 3 | P131: 2 | Q131: 2 | R131: 1 | S131: 1 | T131: 1 | U131: 1 | V131: 2 | W131: 2 | X131: 2
C132: > 220 kV & < = 275 kV ; < = 50 MVA | D132: 0 | E132: 0 | F132: 0 | G132: 0 | H132: 0 | I132: 0 | J132: 0 | K132: 0 | L132: 0 | M132: 0 | N132: 0 | O132: 0 | P132: 0 | Q132: 0 | R132: 0 | S132: 0 | T132: 0 | U132: 0 | V132: 0 | W132: 0 | X132: 0
C133: > 220 kV & < = 275 kV ; > 50 MVA & < = 100 MVA | D133: 0 | E133: 0 | F133: 0 | G133: 0 | H133: 0 | I133: 0 | J133: 0 | K133: 0 | L133: 0 | M133: 0 | N133: 0 | O133: 0 | P133: 0 | Q133: 0 | R133: 0 | S133: 0 | T133: 0 | U133: 0 | V133: 0 | W133: 0 | X133: 0
C134: > 220 kV & < = 275 kV ; > 100 MVA | D134: 0 | E134: 0 | F134: 0 | G134: 0 | H134: 0 | I134: 0 | J134: 0 | K134: 0 | L134: 0 | M134: 0 | N134: 0 | O134: 0 | P134: 0 | Q134: 0 | R134: 0 | S134: 0 | T134: 0 | U134: 0 | V134: 0 | W134: 0 | X134: 0
C135: > 275 kV & < = 330 kV ; < = 100 MVA | D135: 0 | E135: 0 | F135: 0 | G135: 0 | H135: 0 | I135: 0 | J135: 0 | K135: 0 | L135: 0 | M135: 0 | N135: 0 | O135: 0 | P135: 0 | Q135: 0 | R135: 0 | S135: 0 | T135: 0 | U135: 0 | V135: 0 | W135: 0 | X135: 0
C136: > 275 kV & < = 330 kV ; > 100 MVA & < = 250 MVA | D136: 0 | E136: 0 | F136: 0 | G136: 0 | H136: 0 | I136: 0 | J136: 0 | K136: 0 | L136: 0 | M136: 0 | N136: 0 | O136: 0 | P136: 0 | Q136: 0 | R136: 0 | S136: 0 | T136: 0 | U136: 0 | V136: 0 | W136: 0 | X136: 0
C137: > 275 kV & < = 330 kV ; > 250 MVA | D137: 0 | E137: 0 | F137: 0 | G137: 12000000 | H137: 0 | I137: 0 | J137: 0 | K137: 0 | L137: 0 | M137: 1 | N137: 0 | O137: 0 | P137: 0 | Q137: 0 | R137: 0 | S137: 0 | T137: 0 | U137: 0 | V137: 0 | W137: 0 | X137: 0
C138: > 330 kV & < = 500 kV ; < = 150 MVA | D138: 0 | E138: 0 | F138: 0 | G138: 0 | H138: 0 | I138: 0 | J138: 0 | K138: 0 | L138: 0 | M138: 0 | N138: 0 | O138: 0 | P138: 0 | Q138: 0 | R138: 0 | S138: 0 | T138: 0 | U138: 0 | V138: 0 | W138: 0 | X138: 0
C139: > 330 kV & < = 500 kV ; > 150 MVA & < = 300 MVA | D139: 0 | E139: 0 | F139: 0 | G139: 0 | H139: 0 | I139: 0 | J139: 0 | K139: 0 | L139: 0 | M139: 0 | N139: 0 | O139: 0 | P139: 0 | Q139: 0 | R139: 0 | S139: 0 | T139: 0 | U139: 0 | V139: 0 | W139: 1 | X139: 1
C140: > 330 kV & < = 500 kV ; > 300 MVA | D140: 0 | E140: 0 | F140: 0 | G140: 0 | H140: 0 | I140: 0 | J140: 0 | K140: 0 | L140: 0 | M140: 0 | N140: 0 | O140: 0 | P140: 0 | Q140: 0 | R140: 0 | S140: 0 | T140: 0 | U140: 0 | V140: 0 | W140: 0 | X140: 0
C141: > 500 kV ; < = 1000 MVA | D141: 0 | E141: 0 | F141: 0 | G141: 0 | H141: 0 | I141: 0 | J141: 0 | K141: 0 | L141: 0 | M141: 0 | N141: 0 | O141: 0 | P141: 0 | Q141: 0 | R141: 0 | S141: 0 | T141: 0 | U141: 0 | V141: 0 | W141: 0 | X141: 0
C142: > 500 kV ; > 1000 MVA & < = 1500 MVA | D142: 0 | E142: 0 | F142: 0 | G142: 0 | H142: 0 | I142: 0 | J142: 0 | K142: 0 | L142: 0 | M142: 0 | N142: 0 | O142: 0 | P142: 0 | Q142: 0 | R142: 0 | S142: 0 | T142: 0 | U142: 0 | V142: 0 | W142: 0 | X142: 0
C143: > 500 kV ; > 1500 MVA | D143: 0 | E143: 0 | F143: 0 | G143: 0 | H143: 0 | I143: 0 | J143: 0 | K143: 0 | L143: 0 | M143: 0 | N143: 0 | O143: 0 | P143: 0 | Q143: 0 | R143: 0 | S143: 0 | T143: 0 | U143: 0 | V143: 0 | W143: 0 | X143: 0
C144: Other | D144: 0 | E144: 0 | F144: 0 | G144: 0 | H144: 0 | I144: 0 | J144: 0 | K144: 0 | L144: 0 | M144: 0 | N144: 0 | O144: 0 | P144: 0 | Q144: 0 | R144: 0 | S144: 0 | T144: 0 | U144: 0 | V144: 0 | W144: 0 | X144: 0
B145: SUBSTATION REACTIVE PLANT BY: Highest operating voltage; Function | C145: < = 33 kV; SVCS | D145: 0 | E145: 0 | F145: 0 | G145: 0 | H145: 0 | I145: 0 | J145: 0 | K145: 0 | L145: 0 | M145: 0 | N145: 0 | O145: 0 | P145: 0 | Q145: 0 | R145: 0 | S145: 0 | T145: 0 | U145: 0 | V145: 0 | W145: 0 | X145: 0
C146: > 33 kV & < = 66 kV ; SVCS | D146: 0 | E146: 0 | F146: 0 | G146: 0 | H146: 0 | I146: 0 | J146: 0 | K146: 0 | L146: 0 | M146: 0 | N146: 0 | O146: 0 | P146: 0 | Q146: 0 | R146: 0 | S146: 0 | T146: 0 | U146: 0 | V146: 0 | W146: 0 | X146: 0
C147: > 66 kV & < = 132 kV ; SVCS | D147: 0 | E147: 0 | F147: 0 | G147: 0 | H147: 0 | I147: 0 | J147: 0 | K147: 0 | L147: 0 | M147: 0 | N147: 0 | O147: 0 | P147: 0 | Q147: 0 | R147: 0 | S147: 0 | T147: 0 | U147: 0 | V147: 0 | W147: 0 | X147: 0
C148: > 132 kV & < = 275 kV ; SVCS | D148: 0 | E148: 0 | F148: 0 | G148: 0 | H148: 0 | I148: 0 | J148: 0 | K148: 0 | L148: 0 | M148: 0 | N148: 0 | O148: 0 | P148: 0 | Q148: 0 | R148: 0 | S148: 0 | T148: 0 | U148: 0 | V148: 0 | W148: 0 | X148: 0
C149: > 275 kV & < = 330 kV ; SVCS | D149: 0 | E149: 0 | F149: 0 | G149: 0 | H149: 0 | I149: 0 | J149: 0 | K149: 0 | L149: 0 | M149: 0 | N149: 0 | O149: 0 | P149: 0 | Q149: 0 | R149: 0 | S149: 0 | T149: 0 | U149: 0 | V149: 0 | W149: 0 | X149: 0
C150: > 330 kV & < = 500 kV ; SVCS | D150: 0 | E150: 0 | F150: 0 | G150: 0 | H150: 0 | I150: 0 | J150: 0 | K150: 0 | L150: 0 | M150: 0 | N150: 0 | O150: 0 | P150: 0 | Q150: 0 | R150: 0 | S150: 0 | T150: 0 | U150: 0 | V150: 0 | W150: 0 | X150: 0
C151: > 500 kV ; SVCS | D151: 0 | E151: 0 | F151: 0 | G151: 0 | H151: 0 | I151: 0 | J151: 0 | K151: 0 | L151: 0 | M151: 0 | N151: 0 | O151: 0 | P151: 0 | Q151: 0 | R151: 0 | S151: 0 | T151: 0 | U151: 0 | V151: 0 | W151: 0 | X151: 0
C152: < = 33 kV; Capacitors | D152: 0 | E152: 0 | F152: 0 | G152: 0 | H152: 0 | I152: 0 | J152: 0 | K152: 0 | L152: 0 | M152: 0 | N152: 0 | O152: 0 | P152: 0 | Q152: 0 | R152: 0 | S152: 0 | T152: 0 | U152: 0 | V152: 0 | W152: 0 | X152: 0
C153: > 33 kV & < = 66 kV ; Capacitors | D153: 0 | E153: 0 | F153: 0 | G153: 0 | H153: 0 | I153: 0 | J153: 0 | K153: 0 | L153: 0 | M153: 0 | N153: 0 | O153: 0 | P153: 0 | Q153: 0 | R153: 0 | S153: 0 | T153: 0 | U153: 0 | V153: 0 | W153: 0 | X153: 0
C154: > 66 kV & < = 132 kV ; Capacitors | D154: 0 | E154: 0 | F154: 0 | G154: 0 | H154: 0 | I154: 0 | J154: 0 | K154: 0 | L154: 0 | M154: 0 | N154: 0 | O154: 0 | P154: 0 | Q154: 0 | R154: 0 | S154: 0 | T154: 0 | U154: 0 | V154: 0 | W154: 0 | X154: 0
C155: > 132 kV & < = 275 kV ; Capacitors | D155: 0 | E155: 0 | F155: 0 | G155: 0 | H155: 0 | I155: 0 | J155: 0 | K155: 0 | L155: 0 | M155: 0 | N155: 0 | O155: 0 | P155: 0 | Q155: 0 | R155: 0 | S155: 0 | T155: 0 | U155: 0 | V155: 0 | W155: 0 | X155: 0
C156: > 275 kV & < = 330 kV ; Capacitors | D156: 0 | E156: 0 | F156: 0 | G156: 0 | H156: 0 | I156: 0 | J156: 0 | K156: 0 | L156: 0 | M156: 0 | N156: 0 | O156: 0 | P156: 0 | Q156: 0 | R156: 0 | S156: 0 | T156: 0 | U156: 0 | V156: 0 | W156: 0 | X156: 0
C157: > 330 kV & < = 500 kV ; Capacitors | D157: 0 | E157: 0 | F157: 0 | G157: 0 | H157: 0 | I157: 0 | J157: 0 | K157: 0 | L157: 0 | M157: 0 | N157: 0 | O157: 0 | P157: 0 | Q157: 0 | R157: 0 | S157: 0 | T157: 0 | U157: 0 | V157: 0 | W157: 0 | X157: 0
C158: > 500 kV ; Capacitors | D158: 0 | E158: 0 | F158: 0 | G158: 0 | H158: 0 | I158: 0 | J158: 0 | K158: 0 | L158: 0 | M158: 0 | N158: 0 | O158: 0 | P158: 0 | Q158: 0 | R158: 0 | S158: 0 | T158: 0 | U158: 0 | V158: 0 | W158: 0 | X158: 0
C159: < = 33 kV; Oil Filled Reactors | D159: 0 | E159: 0 | F159: 0 | G159: 0 | H159: 0 | I159: 0 | J159: 0 | K159: 0 | L159: 0 | M159: 0 | N159: 0 | O159: 0 | P159: 0 | Q159: 0 | R159: 0 | S159: 0 | T159: 0 | U159: 0 | V159: 0 | W159: 0 | X159: 0
C160: > 33 kV & < = 66 kV ; Oil Filled Reactors | D160: 0 | E160: 0 | F160: 0 | G160: 0 | H160: 0 | I160: 0 | J160: 0 | K160: 0 | L160: 0 | M160: 0 | N160: 0 | O160: 0 | P160: 0 | Q160: 0 | R160: 0 | S160: 0 | T160: 0 | U160: 0 | V160: 0 | W160: 0 | X160: 0
C161: > 66 kV & < = 132 kV ; Oil Filled Reactors | D161: 0 | E161: 0 | F161: 0 | G161: 0 | H161: 0 | I161: 0 | J161: 0 | K161: 0 | L161: 0 | M161: 0 | N161: 0 | O161: 0 | P161: 0 | Q161: 0 | R161: 0 | S161: 0 | T161: 0 | U161: 0 | V161: 0 | W161: 0 | X161: 0
C162: > 132 kV & < = 275 kV ; Oil Filled Reactors | D162: 0 | E162: 0 | F162: 0 | G162: 0 | H162: 0 | I162: 0 | J162: 0 | K162: 0 | L162: 0 | M162: 0 | N162: 0 | O162: 0 | P162: 0 | Q162: 0 | R162: 0 | S162: 0 | T162: 0 | U162: 0 | V162: 0 | W162: 0 | X162: 0
C163: > 275 kV & < = 330 kV ; Oil Filled Reactors | D163: 0 | E163: 0 | F163: 0 | G163: 0 | H163: 0 | I163: 0 | J163: 0 | K163: 0 | L163: 0 | M163: 0 | N163: 0 | O163: 0 | P163: 0 | Q163: 0 | R163: 0 | S163: 0 | T163: 0 | U163: 0 | V163: 0 | W163: 0 | X163: 0
C164: > 330 kV & < = 500 kV ; Oil Filled Reactors | D164: 0 | E164: 0 | F164: 0 | G164: 0 | H164: 0 | I164: 0 | J164: 0 | K164: 0 | L164: 0 | M164: 0 | N164: 0 | O164: 0 | P164: 0 | Q164: 0 | R164: 0 | S164: 0 | T164: 0 | U164: 0 | V164: 0 | W164: 0 | X164: 0
C165: > 500 kV ; Oil Filled Reactors | D165: 0 | E165: 0 | F165: 0 | G165: 0 | H165: 0 | I165: 0 | J165: 0 | K165: 0 | L165: 0 | M165: 0 | N165: 0 | O165: 0 | P165: 0 | Q165: 0 | R165: 0 | S165: 0 | T165: 0 | U165: 0 | V165: 0 | W165: 0 | X165: 0
C166: Other | D166: 3088346.836 | E166: 10094632.99 | F166: 170438.5453 | G166: 171473.6025 | H166: 172491.7649 | I166: 173604.0738 | J166: 174753.0112 | K166: 20.15904656 | L166: 176.3056937 | M166: 3 | N166: 3 | O166: 4 | P166: 4 | Q166: 4 | R166: 0 | S166: 0 | T166: 0 | U166: 0 | V166: 0 | W166: 0 | X166: 0
B167: SCADA, NETWORK CONTROL AND PROTECTION SYSTEMS BY: Function | C167: Communications Network Assets | D167: 7360936.2 | E167: 14330890.24 | F167: 10419815.38 | G167: 12571374.23 | H167: 14804613.08 | I167: 12983204.26 | J167: 9391912.562 | K167: 121.3111114 | L167: 239.1099269 | M167: 122 | N167: 206 | O167: 162 | P167: 195 | Q167: 251
C168: Control equipment / systems | D168: 7152369.76 | E168: 4023386.17 | F168: 8116616.092 | G168: 6723019.902 | H168: 5385108.758 | I168: 3186269.892 | J168: 2930309.639 | K168: 35.09542546 | L168: 19.98707218 | M168: 31 | N168: 26 | O168: 22 | P168: 21 | Q168: 22
C169: Infrastructure: protection and control | D169: 3867372.689 | E169: 2175493.482 | F169: 1299074.278 | G169: 2195698.568 | H169: 3523459.832 | I169: 3175684.277 | J169: 4049155.137 | K169: 5.753348436 | L169: 3.27656921 | M169: 5 | N169: 4 | O169: 4 | P169: 3 | Q169: 4
C170: Metering systems | D170: 403361.8405 | E170: 226901.0839 | F170: 0 | G170: 0 | H170: 210355.8109 | I170: 529280.7129 | J170: 745896.999 | K170: 172.6004531 | L170: 98.29707631 | M170: 151 | N170: 128 | O170: 109 | P170: 103 | Q170: 109
C171: Protection schemes / systems | D171: 8278830.264 | E171: 4657048.266 | F171: 7666616.762 | G171: 7771727.362 | H171: 5032762.775 | I171: 5578618.714 | J171: 4440218.278 | K171: 88.02623108 | L171: 50.13150892 | M171: 77 | N171: 65 | O171: 55 | P171: 53 | Q171: 56
C172: Station SCADA and control systems | D172: 3162989.781 | E172: 1779260.548 | F172: 4175744.361 | G172: 1803609.538 | H172: 1419901.723 | I172: 1905410.566 | J172: 2344247.711 | K172: 28.47907476 | L172: 16.21901759 | M172: 25 | N172: 21 | O172: 18 | P172: 17 | Q172: 18
B173: OTHER BY: NSP defined | C173: Other - Secondary | D173: 791076.493 | E173: 445000.2346 | F173: 363740.798 | G173: 0 | H173: 210355.8109 | I173: 740992.9981 | J173: 1598350.712 | K173: 6.32868328 | L173: 3.604226132 | M173: 6 | N173: 4 | O173: 4 | P173: 4 | Q173: 4
C174: Power transformers - Bushings replacement | D174: 902444.3154 | E174: 1826316.639 | F174: 706696.4075 | G174: 710988.1079 | H174: 715209.7569 | I174: 719821.7696 | J174: 724585.6561 | K174: 5.879844671 | L174: 12.04698652 | M174: 4 | N174: 4 | O174: 4 | P174: 5 | Q174: 5
C175: Power transformers - life extension | D175: 0 | E175: 0 | F175: 1305309.835 | G175: 1313236.858 | H175: 1321034.492 | I175: 1329553.151 | J175: 1338352.33 | K175: 0 | L175: 0 | M175: 5 | N175: 5 | O175: 6 | P175: 6 | Q175: 6
C176: Power transformers - improved safe access | D176: 0 | E176: 1044151.924 | F176: 519629.7114 | G176: 522785.3734 | H176: 525889.5271 | I176: 529280.7129 | J176: 532783.5707 | K176: 0 | L176: 21.28885351 | M176: 10 | N176: 10 | O176: 10 | P176: 10 | Q176: 10
C177: On-line monitoring | D177: 0 | E177: 0 | F177: 176674.1019 | G177: 209114.1494 | H177: 105177.9054 | I177: 105856.1426 | J177: 106556.7141
C178: Fire protection systems | D178: 579464.2447 | E178: 2475589.29 | F178: 1823900.287 | G178: 1834976.661 | H178: 1845872.24 | I178: 1857775.302 | J178: 1870070.333
C179: Civil Infrastructure | D179: 0 | E179: 0 | F179: 1839489.178 | G179: 1850660.222 | H179: 1861648.926 | I179: 1873653.724 | J179: 1886053.84
C180: Infrastructure security | D180: 835948.1019 | E180: 1839161.239 | F180: 2598148.557 | G180: 2613926.867 | H180: 2629447.636 | I180: 2646403.565 | J180: 2663917.853
C181: Structure fall arrests (Stations) | D181: 636460.7277 | E181: 189845.8044 | F181: 8021.942676 | G181: 356834.7893 | H181: 556891.2196 | I181: 0 | J181: 0
C182: Earth wires (incl. OPGW) | D182: 170989.4492 | E182: 0 | F182: 3951264.325 | G182: 3975259.98 | H182: 3998863.964 | I182: 4024650.541 | J182: 4051286.272 | K182: 2.046903232 | L182: 0 | M182: 45 | N182: 45 | O182: 45 | P182: 45 | Q182: 46
C183: Insulators | D183: 6567406.464 | E183: 665029.8529 | F183: 1178688.545 | G183: 1118665.552 | H183: 1125307.876 | I183: 1132564.397 | J183: 945014.2028 | K183: 2580.600076 | L183: 264.5604128 | M183: 408 | N183: 408 | O183: 408 | P183: 408 | Q183: 408
C184: Tower fall arrests | D184: 3894759.677 | E184: 5318530.211 | F184: 4483365.15 | G184: 4510592.202 | H184: 4537374.84 | I184: 4566633.991 | J184: 4596856.648 | K184: 597.0838774 | L184: 825.4736575 | M184: 656 | N184: 657 | O184: 657 | P184: 657 | Q184: 657
C185: XC17 -FBTS Refurbishment - Other | D185: 0 | E185: 0 | F185: 5663376.459 | G185: 0 | H185: 0 | I185: 0 | J185: 0
C186: XC28 - HWPS 220kV Switchyard Redevelopment Stage 4 - Other | D186: 0 | E186: 0 | F186: 0 | G186: 10589901.58 | H186: 0 | I186: 0 | J186: 0
C187: XA09 - RTS Redevelopment - Other | D187: 0 | E187: 0 | F187: 0 | G187: 129299620.8 | H187: 0 | I187: 0 | J187: 0
C188: XB59 - HTS Rebuild - Other | D188: 0 | E188: 0 | F188: 21459827.44 | G188: 0 | H188: 0 | I188: 0 | J188: 0
C189: XC19 - SMTS H2 Transformer Replacement - Other | D189: 0 | E189: 0 | F189: 0 | G189: 13195996.51 | H189: 0 | I189: 0 | J189: 0
C190: XC16 - TTS Bus Tie CB Replacement - Other | D190: 359351.2259 | E190: 0 | F190: 0 | G190: 0 | H190: 0 | I190: 0 | J190: 0
C191: XC18 - YPS 220kV CB Replacement - Other | D191: 0 | E191: 3733685.208 | F191: 0 | G191: 0 | H191: 0 | I191: 0 | J191: 0
C192: XC21 - RWTS B4 220/66kV Transformer and 66kV CB Replacement - Other | D192: 0 | E192: 0 | F192: 0 | G192: 4986517.281 | H192: 0 | I192: 0 | J192: 0
C193: XC15 - TSTS B2 Transformer and 66kV CB Replacement - Other | D193: 0 | E193: 0 | F193: 0 | G193: 0 | H193: 0 | I193: 0 | J193: 1087510.561
C194: XB61 - SVTS Redevelopment Stage 1 - Other | D194: 0 | E194: 0 | F194: 0 | G194: 0 | H194: 0 | I194: 0 | J194: 30923399.17
C195: XA14 - WMTS Redevelopment - Other | D195: 0 | E195: 0 | F195: 0 | G195: 0 | H195: 0 | I195: 0 | J195: 80089165.28
C196: 284A - HYTS 500kV and 275kV CB Replacement - Other | D196: 0 | E196: 0 | F196: 0 | G196: 1431343.878 | H196: 0 | I196: 0 | J196: 0
C197: 285A - FBTS Transformer and Circuit Breaker Replacement - Other | D197: 0 | E197: 0 | F197: 0 | G197: 0 | H197: 0 | I197: 6019389.514 | J197: 0
C198: Other Ongoing Projects / Works | D198: 55886409.97 | E198: 3194117.114 | F198: 897809.5605 | G198: 0 | H198: 0 | I198: 0 | J198: 0

Sheet 2.5 Connections
B1: =(LOOKUP(dms_Model,dms_Model_List,dms_Worksheet_List)) -> REGULATORY REPORTING STATEMENT
B2: =dms_TradingName -> AusNet (T)
B3: =CONCATENATE(FRCP_y1," to ",FRCP_y5) -> 2017-18 to 2021-22
B4: 2.5 CONNECTIONS EXPENDITURE
B7: TNSP CONNECTION CLASSIFICATIONS AND SPECIFICATIONS OF ANNUAL DIRECT AND INDIRECT COSTS | M7: ET_CON252_00001 | N7: ET_CON252_00002
B8: TABLE 2.4.1 EXPENDITURE ON CONNECTION PROJECTS | L8: TABLE 2.4.2 DESCRIPTION OF CONNECTION PROJECTS
D9: =CONCATENATE("EXPENDITURE Forecast ($0's. real ",dms_DollarReal,")") -> EXPENDITURE Forecast ($0's. real March 2017) | M9: CONNECTION RATING (MVA) | N9: CONNECTION VOLTAGE (KV) | O9: UNDERGROUND / OVERHEAD (drop down) | P9: YEAR CONNECTION PROJECT COMPLETED
B10: CONNECTION PROJECT | C10: EXPENDITURE CATEGORY | D10: =CRCP_y4 -> 2015-16 | E10: =CRCP_y5 -> 2016-17 | F10: =FRCP_y1 -> 2017-18 | G10: =FRCP_y2 -> 2018-19 | H10: =FRCP_y3 -> 2019-20 | I10: =FRCP_y4 -> 2020-21 | J10: =FRCP_y5 -> 2021-22 | L10: =B11 -> <Enter project description here…>
B11: <Enter project description here…> | C11: Direct materials costs | L11: =B13 -> 0
C12: Direct labour costs | L12: =B15 -> 0
C13: Direct materials costs | L13: =B17 -> 0
C14: Direct labour costs | L14: =B19 -> 0
C15: Direct materials costs | L15: =B21 -> 0
C16: Direct labour costs | L16: =B23 -> 0
C17: Direct materials costs | L17: =B25 -> 0
C18: Direct labour costs | L18: =B27 -> 0
C19: Direct materials costs | L19: =B29 -> 0
C20: Direct labour costs | L20: =B31 -> 0
C21: Direct materials costs | L21: =B33 -> 0
C22: Direct labour costs | L22: =B35 -> 0
C23: Direct materials costs | L23: =B37 -> 0
C24: Direct labour costs | L24: =B39 -> 0
C25: Direct materials costs | L25: =B41 -> 0
C26: Direct labour costs | L26: =B43 -> 0
C27: Direct materials costs | L27: =B45 -> 0
C28: Direct labour costs
C29: Direct materials costs
C30: Direct labour costs
C31: Direct materials costs
C32: Direct labour costs
C33: Direct materials costs
C34: Direct labour costs
C35: Direct materials costs
C36: Direct labour costs
C37: Direct materials costs
C38: Direct labour costs
C39: Direct materials costs
C40: Direct labour costs
C41: Direct materials costs
C42: Direct labour costs
C43: Direct materials costs
C44: Direct labour costs
C45: Direct materials costs
C46: Direct labour costs
C47: Direct materials costs
C48: Direct labour costs
C49: Direct materials costs
C50: Direct labour costs
C51: Direct materials costs
C52: Direct labour costs
C53: Direct materials costs
C54: Direct labour costs
C55: Direct materials costs
C56: Direct labour costs
C57: Direct materials costs
C58: Direct labour costs
C59: Direct materials costs
C60: Direct labour costs

Sheet 2.6 Non-network
B1: =(LOOKUP(dms_Model,dms_Model_List,dms_Worksheet_List)) -> REGULATORY REPORTING STATEMENT
B2: =dms_TradingName -> AusNet (T)
B3: =CONCATENATE(FRCP_y1," to ",FRCP_y5) -> 2017-18 to 2021-22
B4: 2.6 NON NETWORK EXPENDITURE
B8: 2.6.1 NON-NETWORK EXPENDITURE | M8: TABLE 2.6.2 ANNUAL DESCRIPTOR METRICS - IT & COMMUNICATIONS EXPENDITURE
E9: =CONCATENATE("EXPENDITURE Forecast ($0's. real ",dms_DollarReal,")") -> EXPENDITURE Forecast ($0's. real March 2017) | M9: NON-NETWORK CATEGORY | N9: DESCRIPTOR METRIC | Q9: VOLUMES (0's)
B10: SERVICE SUBCATEGORY | C10: ASSET CATEGORY | D10: ASSET REPORTING CATEGORY | E10: =CRCP_y4 -> 2015-16 | F10: =CRCP_y5 -> 2016-17 | G10: =FRCP_y1 -> 2017-18 | H10: =FRCP_y2 -> 2018-19 | I10: =FRCP_y3 -> 2019-20 | J10: =FRCP_y4 -> 2020-21 | K10: =FRCP_y5 -> 2021-22 | Q10: =CRCP_y4 -> 2015-16 | R10: =CRCP_y5 -> 2016-17 | S10: =FRCP_y1 -> 2017-18 | T10: =FRCP_y2 -> 2018-19 | U10: =FRCP_y3 -> 2019-20 | V10: =FRCP_y4 -> 2020-21 | W10: =FRCP_y5 -> 2021-22
B11: IT & COMMUNICATIONS | C11: Client device expenditure | D11: Opex | E11: 0 | F11: 0 | G11: 0 | H11: 0 | I11: 0 | J11: 0 | K11: 0 | M11: IT & COMMUNICATIONS | N11: Employee numbers | Q11: 774.4212234 | R11: 774.4212234 | S11: 774.4212234 | T11: 774.4212234 | U11: 774.4212234 | V11: 774.4212234 | W11: 774.4212234
D12: Capex | E12: 0 | G12: 967743.1182 | H12: 570996.1847 | I12: 0 | J12: 0 | K12: 93280.95165 | N12: User numbers | Q12: 921.1222684 | R12: 921.1222684 | S12: 921.1222684 | T12: 921.1222684 | U12: 921.1222684 | V12: 921.1222684 | W12: 921.1222684
C13: Recurrent expenditure | D13: Opex | E13: 8904644.865 | F13: 9715545.895 | G13: 9916090.01 | H13: 10095450.09 | I13: 10277873.87 | J13: 10469430.5 | K13: 10666297.34 | N13: Number of devices | Q13: 1304.667062 | R13: 1304.667062 | S13: 1304.667062 | T13: 1304.667062 | U13: 1304.667062 | V13: 1304.667062 | W13: 1304.667062
D14: Capex | E14: 5244307.92 | F14: 15903944.89 | G14: 13790339.43 | H14: 17766765.9 | I14: 8644187.959 | J14: 4709535.401 | K14: 6063261.857
C15: Non-recurrent expenditure | D15: Opex | E15: 686499.8935 | F15: 698441.924 | G15: 713902.7892 | H15: 727730.4798 | I15: 741794.3657 | J15: 756562.3441 | K15: 771739.7115
D16: Capex | E16: 2356138.341 | F16: 2376451.535 | G16: 9435495.402 | H16: 3623629.634 | I16: 4453066.524 | J16: 6242872.508 | K16: 3171552.356
B17: MOTOR VEHICLES | C17: Car | D17: Opex | E17: 373667.0576 | F17: 380167.1947 | G17: 388582.6599 | H17: 396109.176 | I17: 403764.2549 | J17: 411802.5766 | K17: 420063.7319
D18: Capex | E18: 355878.3245 | F18: 227436.7176 | G18: 485305.6084 | H18: 383133.2353 | I18: 531501.5246 | J18: 449228.2483 | K18: 452201.3071
C19: Light commercial vehicle | D19: Opex | E19: 1217830.697 | F19: 1239015.509 | G19: 1266442.631 | H19: 1290972.549 | I19: 1315921.47 | J19: 1342119.431 | K19: 1369043.636
D20: Capex | E20: 1067634.973 | F20: 682310.1529 | G20: 1455916.825 | H20: 1149399.706 | I20: 1594504.574 | J20: 1347684.745 | K20: 1356603.921
C21: Elevated work platform (LCV) | D21: Opex | E21: 0 | F21: 0 | G21: 0 | H21: 0 | I21: 0 | J21: 0 | K21: 0 | M21: TABLE 2.6.3 ANNUAL DESCRIPTOR METRICS - MOTOR VEHICLES
D22: Capex | E22: 0 | F22: 0 | G22: 0 | H22: 0 | I22: 0 | J22: 0 | K22: 0
C23: Elevated work platform (HCV) | D23: Opex | E23: 0 | F23: 0 | G23: 0 | H23: 0 | I23: 0 | J23: 0 | K23: 0 | M23: NON-NETWORK CATEGORY | N23: DESCRIPTOR METRIC | P23: Unit of Measure | Q23: VOLUMES (0's or %)
D24: Capex | E24: 0 | F24: 0 | G24: 0 | H24: 0 | I24: 0 | J24: 0 | K24: 0 | Q24: =CRCP_y4 -> 2015-16 | R24: =CRCP_y5 -> 2016-17 | S24: =FRCP_y1 -> 2017-18 | T24: =FRCP_y2 -> 2018-19 | U24: =FRCP_y3 -> 2019-20 | V24: =FRCP_y4 -> 2020-21 | W24: =FRCP_y5 -> 2021-22
C25: Heavy commercial vehicle | D25: Opex | E25: 99902.40604 | F25: 101640.2615 | G25: 103890.1928 | H25: 105902.4576 | I25: 107949.0946 | J25: 110098.1941 | K25: 112306.8696 | M25: MOTOR VEHICLES | N25: CAR | O25: Average kilometres travelled | P25: 0's | Q25: 19194.36518 | R25: 19194.36518 | S25: 19194.36518 | T25: 19194.36518 | U25: 19194.36518 | V25: 19194.36518 | W25: 19194.36518
D26: Capex | E26: 0 | F26: 0 | G26: 0 | H26: 0 | I26: 0 | J26: 0 | K26: 0 | O26: Number purchased | P26: 0's | Q26: 10.52085883 | R26: 6.723729527 | S26: 14.34712777 | T26: 11.3265979 | U26: 15.71282127 | V26: 13.28056995 | W26: 13.36846272
B27: BUILDINGS AND PROPERTY | C27: Total buildings and property expenditure | D27: Opex | E27: 7395315.161 | F27: 7523960.599 | G27: 7690512.658 | H27: 7839471.355 | I27: 7990974.465 | J27: 8150062.406 | K27: 8313560.487 | O27: Number leased | P27: 0's | Q27: 4.210759787 | R27: 4.210759787 | S27: 4.210759787 | T27: 4.210759787 | U27: 4.210759787 | V27: 4.210759787 | W27: 4.210759787
D28: Capex | E28: 2816402.052 | F28: 539698.3183 | G28: 221362.2571 | H28: 601098.6224 | I28: 96500.72823 | J28: 213331.8841 | K28: 1043541.869 | O28: Number in fleet | P28: 0's | Q28: 54.81647911 | R28: 54.81647911 | S28: 54.81647911 | T28: 54.81647911 | U28: 54.81647911 | V28: 54.81647911 | W28: 54.81647911
B29: OTHER | C29: Other expenditure | D29: Opex | E29: 0 | F29: 0 | G29: 0 | H29: 0 | I29: 0 | J29: 0 | K29: 0 | O29: Proportion of total fleet expenditure allocated as regulatory expenditure | P29: % | Q29: 0.9292891944 | R29: 0.9292891944 | S29: 0.9292891944 | T29: 0.9292891944 | U29: 0.9292891944 | V29: 0.9292891944 | W29: 0.9292891944
D30: Capex | E30: 477913.6476 | F30: 988025.3221 | G30: 368768.7321 | H30: 371008.2297 | I30: 373211.173 | J30: 375617.8162 | K30: 378103.7102 | N30: LIGHT COMMERCIAL VEHICLE | O30: Average kilometres travelled | P30: 0's | Q30: 26645.69531 | R30: 26645.69531 | S30: 26645.69531 | T30: 26645.69531 | U30: 26645.69531 | V30: 26645.69531 | W30: 26645.69531
B31: OTHER - TNSP nominated | C31: Tools & Equipment | D31: Opex | E31: 0 | F31: 0 | G31: 0 | H31: 0 | I31: 0 | J31: 0 | K31: 0 | O31: Number purchased | P31: 0's | Q31: 20.58383069 | R31: 13.15483008 | S31: 28.06984238 | T31: 22.16024159 | U31: 30.7417919 | V31: 25.98314527 | W31: 26.15510556
D32: Capex | E32: 1618198.842 | F32: 1646708.87 | G32: 2581381.124 | H32: 2597057.608 | I32: 2612478.211 | J32: 2629324.713 | K32: 2646725.972 | O32: Number leased | P32: 0's | Q32: 22.26463973 | R32: 22.26463973 | S32: 22.26463973 | T32: 22.26463973 | U32: 22.26463973 | V32: 22.26463973 | W32: 22.26463973
D33: Opex | O33: Number in fleet | P33: 0's | Q33: 80.389307 | R33: 80.389307 | S33: 80.389307 | T33: 80.389307 | U33: 80.389307 | V33: 80.389307 | W33: 80.389307
D34: Capex | O34: Proportion of total fleet expenditure allocated as regulatory expenditure | P34: % | Q34: 0.9292891944 | R34: 0.9292891944 | S34: 0.9292891944 | T34: 0.9292891944 | U34: 0.9292891944 | V34: 0.9292891944 | W34: 0.9292891944
D35: Opex | N35: ELEVATED WORK PLATFORM (LCV) | O35: Average kilometres travelled | P35: 0's | Q35: 0 | R35: 0 | S35: 0 | T35: 0 | U35: 0 | V35: 0 | W35: 0
D36: Capex | O36: Number purchased | P36: 0's | Q36: 0 | R36: 0 | S36: 0 | T36: 0 | U36: 0 | V36: 0 | W36: 0
D37: Opex | O37: Number leased | P37: 0's | Q37: 0 | R37: 0 | S37: 0 | T37: 0 | U37: 0 | V37: 0 | W37: 0
D38: Capex | O38: Number in fleet | P38: 0's | Q38: 0 | R38: 0 | S38: 0 | T38: 0 | U38: 0 | V38: 0 | W38: 0
D39: Opex | O39: Proportion of total fleet expenditure allocated as regulatory expenditure | P39: % | Q39: 0 | R39: 0 | S39: 0 | T39: 0 | U39: 0 | V39: 0 | W39: 0
D40: Capex | N40: ELEVATED WORK PLATFORM (HCV) | O40: Average kilometres travelled | P40: 0's | Q40: 0 | R40: 0 | S40: 0 | T40: 0 | U40: 0 | V40: 0 | W40: 0
D41: Opex | O41: Number purchased | P41: 0's | Q41: 0 | R41: 0 | S41: 0 | T41: 0 | U41: 0 | V41: 0 | W41: 0
D42: Capex | O42: Number leased | P42: 0's | Q42: 0 | R42: 0 | S42: 0 | T42: 0 | U42: 0 | V42: 0 | W42: 0
D43: Opex | O43: Number in fleet | P43: 0's | Q43: 0 | R43: 0 | S43: 0 | T43: 0 | U43: 0 | V43: 0 | W43: 0
D44: Capex | O44: Proportion of total fleet expenditure allocated as regulatory expenditure | P44: % | Q44: 0 | R44: 0 | S44: 0 | T44: 0 | U44: 0 | V44: 0 | W44: 0
D45: Opex | N45: HEAVY COMMERCIAL VEHICLE | O45: Average kilometres travelled | P45: 0's | Q45: 9640.812008 | R45: 9640.812008 | S45: 9640.812008 | T45: 9640.812008 | U45: 9640.812008 | V45: 9640.812008 | W45: 9640.812008
D46: Capex | O46: Number purchased | P46: 0's
D47: Opex | O47: Number leased | P47: 0's | Q47: 0.9292891944 | R47: 0.9292891944 | S47: 0.9292891944 | T47: 0.9292891944 | U47: 0.9292891944 | V47: 0.9292891944 | W47: 0.9292891944
D48: Capex | O48: Number in fleet | P48: 0's | Q48: 8.36360275 | R48: 8.36360275 | S48: 8.36360275 | T48: 8.36360275 | U48: 8.36360275 | V48: 8.36360275 | W48: 8.36360275
D49: Opex | O49: Proportion of total fleet expenditure allocated as regulatory expenditure | P49: % | Q49: 0.9292891944 | R49: 0.9292891944 | S49: 0.9292891944 | T49: 0.9292891944 | U49: 0.9292891944 | V49: 0.9292891944 | W49: 0.9292891944
D50: Capex
D51: Opex
D52: Capex

Sheet 2.10 Overheads
B1: =(LOOKUP(dms_Model,dms_Model_List,dms_Worksheet_List)) -> REGULATORY REPORTING STATEMENT
B2: =dms_TradingName -> AusNet (T)
B3: =CONCATENATE(FRCP_y1," to ",FRCP_y5) -> 2017-18 to 2021-22
B4: 2.10 OVERHEADS
B8: TABLE 2.10.1 - NETWORK OVERHEADS EXPENDITURE
E9: =CONCATENATE("EXPENDITURE Forecast ($0's. real ",dms_DollarReal,")") -> EXPENDITURE Forecast ($0's. real March 2017)
E10: =CRCP_y4 -> 2015-16 | F10: =CRCP_y5 -> 2016-17 | G10: =FRCP_y1 -> 2017-18 | H10: =FRCP_y2 -> 2018-19 | I10: =FRCP_y3 -> 2019-20 | J10: =FRCP_y4 -> 2020-21 | K10: =FRCP_y5 -> 2021-22
B11: MAINTENANCE SUPPORT | C11: Total Overhead Expenditure - Prescribed Services | D11: NSP to enter expenditure categories currently reported under annual Information Guidelines
D12: MAINTENANCE | E12: 8437774.512 | F12: 9162084.795 | G12: 9362666.785 | H12: 9513864.133 | I12: 9663980.513 | J12: 9526323.901 | K12: 9422854.185
C36: Total Overhead Expenditure - Negotiated Services | D36: Total
C37: Total Overhead Expenditure - Unregulated Services | D37: Total
B38: NETWORK MONITORING & CONTROL | C38: Total Overhead Expenditure - Prescribed Services | D38: NSP to enter expenditure categories currently reported under annual Information Guidelines
D39: OPERATIONS | E39: 5055810.357 | F39: 5487378.211 | G39: 5725748.057 | H39: 5814754.196 | I39: 5902555.806 | J39: 5818157.243 | K39: 5753367.979
C59: Total Overhead Expenditure - Negotiated Services | D59: Total
C60: Total Overhead Expenditure - Unregulated Services | D60: Total
B61: ASSET MANAGEMENT SUPPORT | C61: Total Overhead Expenditure - Prescribed Services | D61: NSP to enter expenditure categories currently reported under annual Information Guidelines
D62: ASSET MANAGEMENT SUPPORT | E62: 9848744.065 | F62: 10899942.58 | G62: 11137825.72 | H62: 11307622.77 | I62: 11474738.61 | J62: 11200345.8 | K62: 10976244.32
D63: ASSET WORKS PROGRAM | E63: 4208463.257 | F63: 4314017.036 | G63: 11655752.53 | H63: 5091936.183 | I63: 4861853.201 | J63: 5374540.717 | K63: 4810446.206
C87: Total Overhead Expenditure - Negotiated Services | D87: Total
C88: Total Overhead Expenditure - Unregulated Services | D88: Total
B92: TABLE 2.10.2 - CORPORATE OVERHEADS EXPENDITURE
E93: =CONCATENATE("EXPENDITURE Forecast ($0's. real ",dms_DollarReal,")") -> EXPENDITURE Forecast ($0's. real March 2017)
E94: =CRCP_y4 -> 2015-16 | F94: =CRCP_y5 -> 2016-17 | G94: =FRCP_y1 -> 2017-18 | H94: =FRCP_y2 -> 2018-19 | I94: =FRCP_y3 -> 2019-20 | J94: =FRCP_y4 -> 2020-21 | K94: =FRCP_y5 -> 2021-22
B95: CORPORATE OVERHEADS | C95: Total Overhead Expenditure - Prescribed Services | D95: <Enter description of expenditure category >
C120: Total Overhead Expenditure - Negotiated Services | D120: Total
C121: Total Overhead Expenditure - Unregulated Services | D121: Total

Sheet 2.11 Labour
B1: =(LOOKUP(dms_Model,dms_Model_List,dms_Worksheet_List)) -> REGULATORY REPORTING STATEMENT
B2: =dms_TradingName -> AusNet (T)
B3: =CONCATENATE(FRCP_y1," to ",FRCP_y5) -> 2017-18 to 2021-22
B4: 2.11 LABOUR
B6: TABLE 2.11.1 - COST METRICS PER ANNUM
E7: ASL (0'S) | L7: =CONCATENATE("TOTAL LABOUR EXPENDITURE Forecast ($0's. real ",dms_DollarReal,")") -> TOTAL LABOUR EXPENDITURE Forecast ($0's. real March 2017) | S7: AVERAGE PRODUCTIVE WORK HOURS PER ASL (0'S) | Z7: STAND-DOWN OCCURENCES PER ASL (0'S)
E8: =CRCP_y4 -> 2015-16 | F8: =CRCP_y5 -> 2016-17 | G8: =FRCP_y1 -> 2017-18 | H8: =FRCP_y2 -> 2018-19 | I8: =FRCP_y3 -> 2019-20 | J8: =FRCP_y4 -> 2020-21 | K8: =FRCP_y5 -> 2021-22 | L8: =CRCP_y4 -> 2015-16 | M8: =CRCP_y5 -> 2016-17 | N8: =FRCP_y1 -> 2017-18 | O8: =FRCP_y2 -> 2018-19 | P8: =FRCP_y3 -> 2019-20 | Q8: =FRCP_y4 -> 2020-21 | R8: =FRCP_y5 -> 2021-22 | S8: =CRCP_y4 -> 2015-16 | T8: =CRCP_y5 -> 2016-17 | U8: =FRCP_y1 -> 2017-18 | V8: =FRCP_y2 -> 2018-19 | W8: =FRCP_y3 -> 2019-20 | X8: =FRCP_y4 -> 2020-21 | Y8: =FRCP_y5 -> 2021-22 | Z8: =CRCP_y4 -> 2015-16 | AA8: =CRCP_y5 -> 2016-17 | AB8: =FRCP_y1 -> 2017-18 | AC8: =FRCP_y2 -> 2018-19 | AD8: =FRCP_y3 -> 2019-20 | AE8: =FRCP_y4 -> 2020-21 | AF8: =FRCP_y5 -> 2021-22
B9: CORPORATE OVERHEADS INTERNAL LABOUR COSTS | C9: LABOUR CLASSIFICATION LEVEL | D9: Executive manager
D10: Employee (optional)
D11: Labour hire (optional)
D12: Senior manager
D13: Employee (optional)
D14: Labour hire (optional)
D15: Manager
D16: Employee (optional)
D17: Labour hire (optional)
D18: Professional
D19: Employee (optional)
D20: Labour hire (optional)
D21: Semi professional
D22: Employee (optional)
D23: Labour hire (optional)
D24: Support staff
D25: Employee (optional)
D26: Labour hire (optional)
D27: Intern, junior staff, apprentice
D28: Employee (optional)
D29: Labour hire (optional)
B30: NETWORK OVERHEADS INTERNAL LABOUR COSTS | C30: LABOUR CLASSIFICATION LEVEL | D30: Executive manager
D31: Employee (optional)
D32: Labour hire (optional)
D33: Senior manager
D34: Employee (optional)
D35: Labour hire (optional)
D36: Manager
D37: Employee (optional)
D38: Labour hire (optional)
D39: Professional
D40: Employee (optional)
D41: Labour hire (optional)
D42: Semi professional
D43: Employee (optional)
D44: Labour hire (optional)
D45: Support staff
D46: Employee (optional)
D47: Labour hire (optional)
D48: Intern, junior staff, apprentice
D49: Employee (optional)
D50: Labour hire (optional)
B51: TOTAL DIRECT NETWORK LABOUR INTERNAL LABOUR COSTS | C51: LABOUR CLASSIFICATION LEVEL | D51: Skilled electrical worker
D52: Employee (optional)
D53: Labour hire (optional)
D54: Skilled non electical worker
D55: Employee (optional)
D56: Labour hire (optional)
D57: Apprentice
D58: Employee (optional)
D59: Labour hire (optional)
D60: Unskilled worker
D61: Employee (optional)
D62: Labour hire (optional)

Sheet 2.12 Input tables
B1: =(LOOKUP(dms_Model,dms_Model_List,dms_Worksheet_List)) -> REGULATORY REPORTING STATEMENT
B2: =dms_TradingName -> AusNet (T)
B3: =CONCATENATE(FRCP_y1," to ",FRCP_y5) -> 2017-18 to 2021-22
B4: 2.12 INPUT TABLES
D7: =CONCATENATE("DIRECT MATERIAL EXPENDITURE Forecast ($0's. real ",dms_DollarReal,")") -> DIRECT MATERIAL EXPENDITURE Forecast ($0's. real March 2017) | K7: =CONCATENATE("DIRECT LABOUR EXPENDITURE Forecast ($0's. real ",dms_DollarReal,")") -> DIRECT LABOUR EXPENDITURE Forecast ($0's. real March 2017) | R7: =CONCATENATE("CONTRACT EXPENDITURE Forecast ($0's. real ",dms_DollarReal,")") -> CONTRACT EXPENDITURE Forecast ($0's. real March 2017) | Y7: =CONCATENATE("OTHER EXPENDITURE Forecast ($0's. real ",dms_DollarReal,")") -> OTHER EXPENDITURE Forecast ($0's. real March 2017) | AF7: =CONCATENATE("RELATED PARTY CONTRACT MARGIN EXPENDITURE Forecast ($0's. real ",dms_DollarReal,")") -> RELATED PARTY CONTRACT MARGIN EXPENDITURE Forecast ($0's. real March 2017) | AM7: =CONCATENATE("RELATED PARTY CONTRACT MARGIN Forecast ($0's. real ",dms_DollarReal,")") -> RELATED PARTY CONTRACT MARGIN Forecast ($0's. real March 2017)
D8: =CRCP_y5 -> 2016-17 | E8: =FRCP -> 2017-18 | F8: =FRCP -> 2017-18 | G8: 2018-19 | H8: 2019-20 | I8: 2020-21 | J8: 2021-22 | K8: =CRCP_y5 -> 2016-17 | L8: =FRCP -> 2017-18 | M8: =FRCP -> 2017-18 | N8: 2018-19 | O8: 2019-20 | P8: 2020-21 | Q8: 2021-22 | R8: =CRCP_y4 -> 2015-16 | S8: =CRCP_y5 -> 2016-17 | T8: =FRCP_y1 -> 2017-18 | U8: =FRCP_y2 -> 2018-19 | V8: =FRCP_y3 -> 2019-20 | W8: =FRCP_y4 -> 2020-21 | X8: =FRCP_y5 -> 2021-22 | Y8: =CRCP_y4 -> 2015-16 | Z8: =CRCP_y5 -> 2016-17 | AA8: =FRCP_y1 -> 2017-18 | AB8: =FRCP_y2 -> 2018-19 | AC8: =FRCP_y3 -> 2019-20 | AD8: =FRCP_y4 -> 2020-21 | AE8: =FRCP_y5 -> 2021-22 | AF8: =CRCP_y4 -> 2015-16 | AG8: =CRCP_y5 -> 2016-17 | AH8: =FRCP_y1 -> 2017-18 | AI8: =FRCP_y2 -> 2018-19 | AJ8: =FRCP_y3 -> 2019-20 | AK8: =FRCP_y4 -> 2020-21 | AL8: =FRCP_y5 -> 2021-22 | AM8: =CRCP_y4 -> 2015-16 | AN8: =CRCP_y5 -> 2016-17 | AO8: =FRCP_y1 -> 2017-18 | AP8: =FRCP_y2 -> 2018-19 | AQ8: =FRCP_y3 -> 2019-20 | AR8: =FRCP_y4 -> 2020-21 | AS8: =FRCP_y5 -> 2021-22
B9: VEGETATION MANAGEMENT | C9: Zone - NSP to nominate
C10: ZONE 1 | D10: 67756.89716 | E10: 68921.20981 | F10: 75103.39385 | G10: 76402.93047 | H10: 77703.28721 | I10: 79040.4362 | J10: 80387.6332 | K10: 666712.0303 | L10: 678168.5946 | M10: 738999.8406 | N10: 751786.9771 | O10: 764582.1835 | P10: 777739.417 | Q10: 790995.5206 | R10: 2925745.914 | S10: 2976020.988 | T10: 3242967.977 | U10: 3299082.028 | V10: 3355231.491 | W10: 3412969.645 | X10: 3471141.673 | Y10: 52612.23809 | Z10: 53516.3098 | AA10: 58316.68515 | AB10: 59325.7563 | AC10: 60335.46426 | AD10: 61373.74086 | AE10: 62419.81959 | AF10: 0 | AG10: 0 | AH10: 0 | AI10: 0 | AJ10: 0 | AK10: 0 | AL10: 0 | AM10: 0 | AN10: 0 | AO10: 0 | AP10: 0 | AQ10: 0 | AR10: 0 | AS10: 0
B29: ROUTINE MAINTENANCE | C29: Transmission Lines Maintenance | D29: 153819.4205 | E29: 156462.6038 | F29: 170497.1893 | G29: 173447.3534 | H29: 176399.3794 | I29: 179434.9299 | J29: 182493.291 | K29: 1961944.472 | L29: 1995657.893 | M29: 2174667.002 | N29: 2212295.919 | O29: 2249948.584 | P29: 2288666.592 | Q29: 2327675.546 | R29: 1166674.912 | S29: 1186722.677 | T29: 1293170.866 | U29: 1315546.991 | V29: 1337937.237 | W29: 1360960.991 | X29: 1384157.758 | Y29: 4909.364577 | Z29: 4993.725513 | AA29: 5441.65918 | AB29: 5535.817845 | AC29: 5630.035933 | AD29: 5726.919825 | AE29: 5824.531751 | AF29: 0 | AG29: 0 | AH29: 0 | AI29: 0 | AJ29: 0 | AK29: 0 | AL29: 0 | AM29: 0 | AN29: 0 | AO29: 0 | AP29: 0 | AQ29: 0 | AR29: 0 | AS29: 0
C30: Substations Equipment & Propoerty Maintenance | D30: 268381.3901 | E30: 272993.1693 | F30: 297480.4646 | G30: 302627.8585 | H30: 307778.5009 | I30: 313074.8755 | J30: 318411.0496 | K30: 3423165.834 | L30: 3481988.41 | M30: 3794320.322 | N30: 3859974.588 | O30: 3925670.287 | P30: 3993224.779 | Q30: 4061286.909 | R30: 2035593.644 | S30: 2070572.628 | T30: 2256301.536 | U30: 2295343 | V30: 2334409.103 | W30: 2374580.541 | X30: 2415053.847 | Y30: 8565.77203 | Z30: 8712.963492 | AA30: 9494.510189 | AB30: 9658.796554 | AC30: 9823.186599 | AD30: 9992.227891 | AE30: 10162.53944 | AF30: 0 | AG30: 0 | AH30: 0 | AI30: 0 | AJ30: 0 | AK30: 0 | AL30: 0 | AM30: 0 | AN30: 0 | AO30: 0 | AP30: 0 | AQ30: 0 | AR30: 0 | AS30: 0
C31: SCADA & Network Control Maintenance | D31: 8296.445592 | E31: 8439.009035 | F31: 9195.98221 | G31: 9355.103056 | H31: 9514.324322 | I31: 9678.050589 | J31: 9843.007178 | K31: 105819.9642 | L31: 107638.3403 | M31: 117293.4237 | N31: 119322.9871 | O31: 121353.8313 | P31: 123442.1362 | Q31: 125546.1336 | R31: 62926.0915 | S31: 64007.39314 | T31: 69748.81129 | U31: 70955.69595 | V31: 72163.34227 | W31: 73405.15769 | X31: 74656.30473 | Y31: 264.7928069 | Z31: 269.342921 | AA31: 293.5027916 | AB31: 298.5813587 | AC31: 303.6631308 | AD31: 308.8886864 | AE31: 314.1535095 | AF31: 0 | AG31: 0 | AH31: 0 | AI31: 0 | AJ31: 0 | AK31: 0 | AL31: 0 | AM31: 0 | AN31: 0 | AO31: 0 | AP31: 0 | AQ31: 0 | AR31: 0 | AS31: 0
C32: Protection Systems Maintenance | D32: 32939.89438 | E32: 33505.92289 | F32: 36511.38061 | G32: 37143.14801 | H32: 37775.31411 | I32: 38425.36671 | J32: 39080.30412 | K32: 420143.591 | L32: 427363.2029 | M32: 465697.3816 | N32: 473755.4835 | O32: 481818.6707 | P32: 490109.9976 | Q32: 498463.6296 | R32: 249839.3782 | S32: 254132.5374 | T32: 276928.0473 | U32: 281719.8166 | V32: 286514.6099 | W32: 291445.067 | X32: 296412.574 | Y32: 1051.323364 | Z32: 1069.388966 | AA32: 1165.312404 | AB32: 1185.476155 | AC32: 1205.652631 | AD32: 1226.39998 | AE32: 1247.303234 | AF32: 0 | AG32: 0 | AH32: 0 | AI32: 0 | AJ32: 0 | AK32: 0 | AL32: 0 | AM32: 0 | AN32: 0 | AO32: 0 | AP32: 0 | AQ32: 0 | AR32: 0 | AS32: 0
B47: NON-ROUTINE MAINTENANCE | C47: Transmission Lines Maintenance | D47: 207073.0764 | E47: 210631.3533 | F47: 229524.8375 | G47: 233496.3749 | H47: 237470.4185 | I47: 241556.9037 | J47: 245674.0968 | K47: 759267.7934 | L47: 772314.8061 | M47: 841590.901 | N47: 856153.2015 | O47: 870724.6921 | P47: 885708.468 | Q47: 900804.8396 | R47: 637985.6549 | S47: 648948.5944 | T47: 707158.8269 | U47: 719395.0088 | V47: 731638.9128 | W47: 744229.2455 | X47: 756914.1882 | Y47: 1205.582698 | Z47: 1226.299042 | AA47: 1336.297203 | AB47: 1359.419556 | AC47: 1382.556501 | AD47: 1406.348081 | AE47: 1430.318444 | AF47: 0 | AG47: 0 | AH47: 0 | AI47: 0 | AJ47: 0 | AK47: 0 | AL47: 0 | AM47: 0 | AN47: 0 | AO47: 0 | AP47: 0 | AQ47: 0 | AR47: 0 | AS47: 0
C48: Substations Equipment & Propoerty Maintenance | D48: 361297.4221 | E48: 367505.8404 | F48: 400470.8558 | G48: 407400.3235 | H48: 414334.1643 | I48: 421464.191 | J48: 428647.7962 | K48: 1324756.947 | L48: 1347521.143 | M48: 1468392.841 | N48: 1493800.884 | O48: 1519224.962 | P48: 1545368.388 | Q48: 1571708.269 | R48: 1113146.028 | S48: 1132273.97 | T48: 1233838.149 | U48: 1255187.621 | V48: 1276550.567 | W48: 1298517.956 | X48: 1320650.418 | Y48: 2103.479257 | Z48: 2139.624766 | AA48: 2331.547602 | AB48: 2371.891072 | AC48: 2412.260002 | AD48: 2453.771129 | AE48: 2495.594191 | AF48: 0 | AG48: 0 | AH48: 0 | AI48: 0 | AJ48: 0 | AK48: 0 | AL48: 0 | AM48: 0 | AN48: 0 | AO48: 0 | AP48: 0 | AQ48: 0 | AR48: 0 | AS48: 0
C49: Scada & Network Control Maintenance | D49: 11168.74909 | E49: 11360.66926 | F49: 12379.71331 | G49: 12593.92321 | H49: 12808.2683 | I49: 13028.67806 | J49: 13250.74409 | K49: 40952.07171 | L49: 41655.77889 | M49: 45392.27296 | N49: 46177.70911 | O49: 46963.64094 | P49: 47771.80991 | Q49: 48586.05186 | R49: 34410.5657 | S49: 35001.86575 | T49: 38141.50849 | U49: 38801.48248 | V49: 39461.87298 | W49: 40140.94855 | X49: 40825.12702 | Y49: 65.02463232 | Z49: 66.14199461 | AA49: 72.074885 | AB49: 73.32201842 | AC49: 74.56993889 | AD49: 75.85316798 | AE49: 77.14603989 | AF49: 0 | AG49: 0 | AH49: 0 | AI49: 0 | AJ49: 0 | AK49: 0 | AL49: 0 | AM49: 0 | AN49: 0 | AO49: 0 | AP49: 0 | AQ49: 0 | AR49: 0 | AS49: 0
C50: Protection Systems Maintenance | D50: 44343.97974 | E50: 45105.97237 | F50: 49151.94637 | G50: 50002.43728 | H50: 50853.46493 | I50: 51728.57153 | J50: 52610.25412 | K50: 162594.5595 | L50: 165388.532 | M50: 180223.7669 | N50: 183342.233 | O50: 186462.6671 | P50: 189671.3906 | Q50: 192904.2261 | R50: 136622.411 | S50: 138970.0864 | T50: 151435.6054 | U50: 154055.9413 | V50: 156677.9308 | W50: 159374.1067 | X50: 162090.5432 | Y50: 258.1713454 | Z50: 262.6076785 | AA50: 286.1634025 | AB50: 291.114974 | AC50: 296.0696703 | AD50: 301.1645546 | AE50: 306.2977245 | AF50: 0 | AG50: 0 | AH50: 0 | AI50: 0 | AJ50: 0 | AK50: 0 | AL50: 0 | AM50: 0 | AN50: 0 | AO50: 0 | AP50: 0 | AQ50: 0 | AR50: 0 | AS50: 0
B63: OVERHEADS | C63: Network Overheads | D63: 611857.0635 | E63: 663216.7215 | F63: 841295.7745 | G63: 704629.807 | H63: 708515.173 | I63: 708875.8259 | J63: 687634.559 | K63: 16649184.63 | L63: 18046727.42 | M63: 22892419.67 | N63: 19173614.96 | O63: 19279339.29 | P63: 19289152.98 | Q63: 18711158.88 | R63: 9720364.686 | S63: 10536298.07 | T63: 13365379.31 | U63: 11194213.65 | V63: 11255939.14 | W63: 11261668.71 | X63: 10924215.94 | Y63: 569385.814 | Z63: 617180.4092 | AA63: 782898.3401 | AB63: 655718.8601 | AC63: 659334.5286 | AD63: 659670.1472 | AE63: 639903.3148 | AM63: 0 | AN63: 0 | AO63: 0 | AP63: 0 | AQ63: 0 | AR63: 0 | AS63: 0
C64: Corporate Overheads | D64: 23605.18752 | E64: 24034.19469 | F64: 24413.173 | G64: 24515.50332 | H64: 24608.49305 | I64: 24550.12029 | J64: 24509.2599 | K64: 14117069.29 | L64: 14373636.79 | M64: 14600284.56 | N64: 14661483.15 | O64: 14717095.61 | P64: 14682185.81 | Q64: 14657749.28 | R64: 17487678.24 | S64: 17805504.12 | T64: 18086266.59 | U64: 18162077.03 | V64: 18230967.59 | W64: 18187722.68 | X64: 18157451.65 | Y64: 119258226.8 | Z64: 121425658.6 | AA64: 123340334.4 | AB64: 123857328.1 | AC64: 124327131.2 | AD64: 124032220.1 | AE64: 123825785 | AM64: 0 | AN64: 0 | AO64: 0 | AP64: 0 | AQ64: 0 | AR64: 0 | AS64: 0
B65: AUGMENTATION | C65: Subtransmission Substations, Switching Stations , Zone Substations
C66: Subtransmission Lines
C67: HV Feeders
C68: Other Assets
B69: CONNECTIONS | C69: All New Customer Connections
B70: REPLACEMENT | C70: Transmission Towers | D70: 625580.1683 | E70: 552704.5314 | F70: 333846.2902 | G70: 1532913.765 | H70: 91873.4389 | I70: 108706.4348 | J70: 89401.84683 | K70: 157313.863 | L70: 139905.2379 | M70: 85186.26512 | N70: 394315.9656 | O70: 23828.43993 | P70: 28446.61101 | Q70: 23607.82505 | R70: 785181.3088 | S70: 698309.1255 | T70: 426170.946 | U70: 1977238.649 | V70: 119697.4675 | W70: 143172.1142 | X70: 119059.8312 | Y70: 0 | Z70: 0 | AA70: 0 | AB70: 0 | AC70: 0 | AD70: 0 | AE70: 0 | AF70: 0 | AG70: 0 | AH70: 0 | AI70: 0 | AJ70: 0 | AK70: 0 | AL70: 0 | AM70: 0 | AN70: 0 | AO70: 0 | AP70: 0 | AQ70: 0 | AR70: 0 | AS70: 0
C71: Transmission Tower Support Structures | D71: 0 | E71: 0 | F71: 0 | G71: 0 | H71: 0 | I71: 0 | J71: 0 | K71: 0 | L71: 0 | M71: 0 | N71: 0 | O71: 0 | P71: 0 | Q71: 0 | R71: 0 | S71: 0 | T71: 0 | U71: 0 | V71: 0 | W71: 0 | X71: 0 | Y71: 0 | Z71: 0 | AA71: 0 | AB71: 0 | AC71: 0 | AD71: 0 | AE71: 0 | AF71: 0 | AG71: 0 | AH71: 0 | AI71: 0 | AJ71: 0 | AK71: 0 | AL71: 0 | AM71: 0 | AN71: 0 | AO71: 0 | AP71: 0 | AQ71: 0 | AR71: 0 | AS71: 0
C72: Conductors | D72: 6565091.927 | E72: 986701.4002 | F72: 789830.4967 | G72: 527617.3779 | H72: 531067.1156 | I72: 547900.1115 | J72: 453456.6404 | K72: 1650915.461 | L72: 249762.1899 | M72: 201537.9894 | N72: 135720.5869 | O72: 137738.4042 | P72: 143376.0694 | Q72: 119741.6543 | R72: 8240011.005 | S72: 1246638.218 | T72: 1008256.853 | U72: 680550.6581 | V72: 691901.7027 | W72: 721613.3756 | X72: 603885.4112 | Y72: 0 | Z72: 0 | AA72: 0 | AB72: 0 | AC72: 0 | AD72: 0 | AE72: 0 | AF72: 0 | AG72: 0 | AH72: 0 | AI72: 0 | AJ72: 0 | AK72: 0 | AL72: 0 | AM72: 0 | AN72: 0 | AO72: 0 | AP72: 0 | AQ72: 0 | AR72: 0 | AS72: 0
C73: Transmission Cables | D73: 0 | E73: 0 | F73: 0 | G73: 0 | H73: 0 | I73: 0 | J73: 0 | K73: 0 | L73: 0 | M73: 0 | N73: 0 | O73: 0 | P73: 0 | Q73: 0 | R73: 0 | S73: 0 | T73: 0 | U73: 0 | V73: 0 | W73: 0 | X73: 0 | Y73: 0 | Z73: 0 | AA73: 0 | AB73: 0 | AC73: 0 | AD73: 0 | AE73: 0 | AF73: 0 | AG73: 0 | AH73: 0 | AI73: 0 | AJ73: 0 | AK73: 0 | AL73: 0 | AM73: 0 | AN73: 0 | AO73: 0 | AP73: 0 | AQ73: 0 | AR73: 0 | AS73: 0
C74: Substation Switchbays | D74: 13823297.45 | E74: 18751443.9 | F74: 17892984.08 | G74: 13504454.86 | H74: 14671328.25 | I74: 13599171.28 | J74: 10671663.39 | K74: 3476127.33 | L74: 4746523.812 | M74: 4565683.461 | N74: 3473791.078 | O74: 3805178.819 | P74: 3558670.064 | Q74: 2818004.004 | R74: 17349966.21 | S74: 23691328.09 | T74: 22841260.11 | U74: 17418807.7 | V74: 19114565.18 | W74: 17910826.6 | X74: 14211859 | Y74: 0 | Z74: 0 | AA74: 0 | AB74: 0 | AC74: 0 | AD74: 0 | AE74: 0 | AF74: 0 | AG74: 0 | AH74: 0 | AI74: 0 | AJ74: 0 | AK74: 0 | AL74: 0 | AM74: 0 | AN74: 0 | AO74: 0 | AP74: 0 | AQ74: 0 | AR74: 0 | AS74: 0
C75: Substation Power Transformers | D75: 9519291.136 | E75: 10067494.61 | F75: 8227097.271 | G75: 5670665.367 | H75: 6982132.568 | I75: 7103107.698 | J75: 5622150.205 | K75: 2393804.243 | L75: 2548369.243 | M75: 2099276.553 | N75: 1458682.113 | O75: 1810896.908 | P75: 1858761.554 | Q75: 1484608.463 | R75: 11947900.29 | S75: 12719677.43 | T75: 10502287.82 | U75: 7314344.085 | V75: 9096683.395 | W75: 9355167.877 | X75: 7487230.721 | Y75: 0 | Z75: 0 | AA75: 0 | AB75: 0 | AC75: 0 | AD75: 0 | AE75: 0 | AF75: 0 | AG75: 0 | AH75: 0 | AI75: 0 | AJ75: 0 | AK75: 0 | AL75: 0 | AM75: 0 | AN75: 0 | AO75: 0 | AP75: 0 | AQ75: 0 | AR75: 0 | AS75: 0
C76: Substation Reactive Plant | D76: 1232089.099 | E76: 4011268.678 | F76: 67321.3918 | G76: 67321.3918 | H76: 67321.3918 | I76: 67321.3918 | J76: 67321.3918 | K76: 309831.9057 | L76: 1015366.198 | M76: 17178.13886 | N76: 17317.28178 | O76: 17460.58229 | P76: 17616.8545 | Q76: 17777.16788 | R76: 1546425.831 | S76: 5067998.113 | T76: 85939.01467 | U76: 86834.9289 | V76: 87709.79081 | W76: 88665.82753 | X76: 89654.45151 | Y76: 0 | Z76: 0 | AA76: 0 | AB76: 0 | AC76: 0 | AD76: 0 | AE76: 0 | AF76: 0 | AG76: 0 | AH76: 0 | AI76: 0 | AJ76: 0 | AK76: 0 | AL76: 0 | AM76: 0 | AN76: 0 | AO76: 0 | AP76: 0 | AQ76: 0 | AR76: 0 | AS76: 0
C77: Scada Network Control And Protection Systems | D77: 14623744.22 | E77: 14730120.77 | F77: 15904010.13 | G77: 14327638.87 | H77: 14586830.98 | I77: 13513653.1 | J77: 11765066.97 | K77: 3677414.68 | L77: 3728612.546 | M77: 4058164.681 | N77: 3685541.148 | O77: 3783263.476 | P77: 3536291.423 | Q77: 3106732.719 | R77: 18354626.97 | S77: 18610626.78 | T77: 20302238.61 | U77: 18480596.87 | V77: 19004477.77 | W77: 17798194.64 | X77: 15667986.03 | Y77: 0 | Z77: 0 | AA77: 0 | AB77: 0 | AC77: 0 | AD77: 0 | AE77: 0 | AF77: 0 | AG77: 0 | AH77: 0 | AI77: 0 | AJ77: 0 | AK77: 0 | AL77: 0 | AM77: 0 | AN77: 0 | AO77: 0 | AP77: 0 | AQ77: 0 | AR77: 0 | AS77: 0
C78: Other | D78: 4707718.655 | E78: 8370471.349 | F78: 11006674.06 | G78: 9858861.93 | H78: 10257869.65 | I78: 9263718.976 | J78: 8027365.771 | K78: 1183844.126 | L78: 2118804.386 | M78: 2808530.398 | N78: 2536024.368 | O78: 2660497.241 | P78: 2424156.497 | Q78: 2119739.731 | R78: 5908775.377 | S78: 10575590.02 | T78: 14050552.1 | U78: 12716516.28 | V78: 13364483.07 | W78: 12200807.01 | X78: 10690347.54 | Y78: 0 | Z78: 0 | AA78: 0 | AB78: 0 | AC78: 0 | AD78: 0 | AE78: 0 | AF78: 0 | AG78: 0 | AH78: 0 | AI78: 0 | AJ78: 0 | AK78: 0 | AL78: 0 | AM78: 0 | AN78: 0 | AO78: 0 | AP78: 0 | AQ78: 0 | AR78: 0 | AS78: 0
B79: NON-NETWORK EXPENDITURE | C79: It And Communications | D79: 3237970.941 | E79: 7487461.524 | F79: 9784282.592 | G79: 8854376.612 | H79: 5348136.173 | I79: 4488068.193 | J79: 3838948.084 | K79: 3913914.042 | L79: 5260510.537 | M79: 5931174.584 | N79: 5774133.818 | O79: 4946570.506 | P79: 4800005.918 | Q79: 4707181.598 | R79: 10031054.88 | S79: 15937018.83 | T79: 19098525.39 | U79: 18146299.42 | V79: 13812276.37 | W79: 12880200.87 | X79: 12209685.5 | Y79: 8651.153241 | Z79: 9393.352591 | AA79: 9588.187747 | AB79: 9762.441919 | AC79: 9939.672584 | AD79: 10125.7761 | AE79: 10317.03867 | AF79: 0 | AG79: 0 | AH79: 0 | AI79: 0 | AJ79: 0 | AK79: 0 | AL79: 0 | AM79: 0 | AN79: 0 | AO79: 0 | AP79: 0 | AQ79: 0 | AR79: 0 | AS79: 0
C80: Motor Vehicles | D80: 1369424.882 | E80: 1176963.143 | F80: 1600273.426 | G80: 1451335.936 | H80: 1695829.788 | I80: 1580137.651 | J80: 1597857.864 | K80: 142810.9799 | L80: 91506.66715 | M80: 195651.6846 | N80: 154771.9556 | O80: 215206.2416 | P80: 182345.6907 | Q80: 184005.0365 | R80: 1602677.596 | S80: 1362100.026 | T80: 1904212.806 | U80: 1719409.232 | V80: 2042604.888 | W80: 1898449.853 | X80: 1928356.565 | Y80: 0 | Z80: 0 | AA80: 0 | AB80: 0 | AC80: 0 | AD80: 0 | AE80: 0 | AF80: 0 | AG80: 0 | AH80: 0 | AI80: 0 | AJ80: 0 | AK80: 0 | AL80: 0 | AM80: 0 | AN80: 0 | AO80: 0 | AP80: 0 | AQ80: 0 | AR80: 0 | AS80: 0
C81: Buildings And Property | D81: 1283982.793 | E81: 377633.4661 | F81: 254223.2485 | G81: 406012.3893 | H81: 210966.8208 | I81: 259481.314 | J81: 582311.1845 | K81: 952132.5286 | L81: 735516.0862 | M81: 718621.1669 | N81: 770502.999 | O81: 733283.1415 | P81: 759567.1791 | Q81: 858879.0106 | R81: 7693648.42 | S81: 6663651.163 | T81: 6645822.34 | U81: 6965167.238 | V81: 6838561.678 | W81: 7033616.864 | X81: 7598949.706 | Y81: 281953.4715 | Z81: 286858.202 | AA81: 293208.1587 | AB81: 298887.3517 | AC81: 304663.5529 | AD81: 310728.9329 | AE81: 316962.4538 | AF81: 0 | AG81: 0 | AH81: 0 | AI81: 0 | AJ81: 0 | AK81: 0 | AL81: 0 | AM81: 0 | AN81: 0 | AO81: 0 | AP81: 0 | AQ81: 0 | AR81: 0 | AS81: 0
C82: Other | D82: 836239.4144 | E82: 1046955.026 | F82: 1165277.455 | G82: 1165277.455 | H82: 1165277.455 | I82: 1165277.455 | J82: 1165277.455 | K82: 210288.0802 | L82: 265014.0963 | M82: 297339.3359 | N82: 299747.7846 | O82: 302228.1975 | P82: 304933.1399 | Q82: 307708.0314 | R82: 1049584.995 | S82: 1322765.07 | T82: 1487533.065 | U82: 1503040.598 | V82: 1518183.732 | W82: 1534731.934 | X82: 1551844.195 | Y82: 0 | Z82: 0 | AA82: 0 | AB82: 0 | AC82: 0 | AD82: 0 | AE82: 0 | AF82: 0 | AG82: 0 | AH82: 0 | AI82: 0 | AJ82: 0 | AK82: 0 | AL82: 0 | AM82: 0 | AN82: 0 | AO82: 0 | AP82: 0 | AQ82: 0 | AR82: 0 | AS82: 0

Sheet 2.14 Forecast price changes
B1: =(LOOKUP(dms_Model,dms_Model_List,dms_Worksheet_List)) -> REGULATORY REPORTING STATEMENT
B2: =dms_TradingName -> AusNet (T)
B3: =CONCATENATE(FRCP_y1," to ",FRCP_y5) -> 2017-18 to 2021-22
B4: 2.14 FORECAST PRICE CHANGES
B6: Instructions
B7: The TNSP must provide all forecast price changes used to forecast opex and capex, including forecast changes in CPI. Forecast price changes must be expressed in real terms, except for CPI. If the same escalators are not used for capex and opex, report capex and opex escalators separately. If price changes for a given year were not used to forecast either opex or capex enter '0' for that year.
B9: Table 2.14.1 - Forecast labour and materials price changes
C11: Price changes (% YoY real) | H11: Price changes (%YoY real)
C12: Actual | F12: Forecast
C13: =CRCP_y1 -> 2012-13 | D13: =CRCP_y2 -> 2013-14 | E13: =CRCP_y3 -> 2014-15 | F13: =CRCP_y4 -> 2015-16 | G13: =CRCP_y5 -> 2016-17 | H13: =FRCP_y1 -> 2017-18 | I13: =FRCP_y2 -> 2018-19 | J13: =FRCP_y3 -> 2019-20 | K13: =FRCP_y4 -> 2020-21 | L13: =FRCP_y5 -> 2021-22
B14: Materials price changes
B15: Aluminium | C15: -0.1460641447 | D15: 0.05080033484 | E15: 0.2025519437 | F15: 0 | G15: 0 | H15: 0 | I15: 0 | J15: 0 | K15: 0 | L15: 0
B16: Copper | C16: -0.1737205858 | D16: -0.006423420852 | E16: 0.08204130359 | F16: 0 | G16: 0 | H16: 0 | I16: 0 | J16: 0 | K16: 0 | L16: 0
B17: Steel | C17: -0.6181347895 | D17: 1.192717562 | E17: -0.08494133453 | F17: 0 | G17: 0 | H17: 0 | I17: 0 | J17: 0 | K17: 0 | L17: 0
B18: Oil | C18: -0.1751710061 | D18: 0.03318247102 | E18: -0.4593455542 | F18: 0 | G18: 0 | H18: 0 | I18: 0 | J18: 0 | K18: 0 | L18: 0
B45: Labour and Other price changes
B46: Internal labour | C46: 0.0062 | D46: 0.02215833809 | E46: 0.02289423077 | F46: 0.005875 | G46: 0.0066 | H46: 0.00805 | I46: 0.0081 | J46: 0.008275 | K46: 0.00895 | L46: 0.0091
B47: External labour | C47: -0.004499679949 | D47: 0.0218588689 | E47: 0.005086546273 | F47: 0.0041 | G47: 0.006625 | H47: 0.010375 | I47: 0.010425 | J47: 0.010075 | K47: 0.0109 | L47: 0.01115
B61: CPI | C61: 0.03519907675 | D61: 0.02004008016 | E61: 0.02161100196 | F61: 0.02307692308 | G61: 0.0235 | H61: 0.0235 | I61: 0.0235 | J61: 0.0235 | K61: 0.0235 | L61: 0.0235

Sheet 2.15 Insurance & Self-insurance
B1: =(LOOKUP(dms_Model,dms_Model_List,dms_Worksheet_List)) -> REGULATORY REPORTING STATEMENT
B2: =dms_TradingName -> AusNet (T)
B3: =CONCATENATE(FRCP_y1," to ",FRCP_y5) -> 2017-18 to 2021-22
B4: 2.15 Commercial insurance and self-insurance
B7: Instruction
B8: The TNSP is required to provide a list of forecast commercial insurance premiums by risk category in table 2.15.4 below. Previous tables 2.15.1, 2.15.2 & 2.15.3 have been deleted from this template.
B11: Table 2.15.4 -Proposed self-insurance allowance by risk category
B13: Risk class (drop down) | C13: Risk category | E13: Commercially insured (Yes/No) | F13: Commercial insurance deductable ($0's) | G13: Commercial insurance limit ($0's) | H13: Self insurance limit ($0's) | I13: Proposed self insurance allowance ($0's)
I14: =FRCP_y1 -> 2017-18 | J14: =FRCP_y2 -> 2018-19 | K14: =FRCP_y3 -> 2019-20 | L14: =FRCP_y4 -> 2020-21 | M14: =FRCP_y5 -> 2021-22 | N14: Total
B15: Property | C15: Tower failure | E15: No | F15: N/A | G15: N/A | H15: N/A | I15: 1086309.979 | J15: 1096135.116 | K15: 1092669.805 | L15: 1097083.029 | M15: 1098015.306 | N15: =+SUM(I15:M15) -> 5470213.235
B16: Property | C16: Machinery breakdown | E16: Yes | F16: 500000 | H16: N/A | I16: 737386.0274 | J16: 730112.9053 | K16: 724672.2023 | L16: 715408.7651 | M16: 706188.6792 | N16: =+SUM(I16:M16) -> 3613768.579
B17: Property | C17: Property damage | E17: Yes | F17: 500000 | H17: N/A | I17: 400323.5135 | J17: 398857.9761 | K17: 398192.2778 | L17: 397346.8785 | M17: 395429.6303 | N17: 1990150.276
B18: Liability | C18: Fire liability | E18: Yes | F18: 10000000 | H18: N/A | I18: 63260.99967 | J18: 63740.01554 | K18: 58502.183 | L18: 59002.78475 | M18: 60350.30805 | N18: 304856.291
B19: Other insurance | C19: Risk margin | E19: No | F19: N/A | G19: N/A | H19: N/A | I19: 429977.1071 | J19: 429762.226 | K19: 427443.3693 | L19: 425926.3524 | M19: 424253.6581 | N19: 2137362.713
N20: 0
N21: 0
N22: 0
N23: 0
N24: =+SUM(I24:M24) -> 0
N25: 0
N26: 0
N27: 0
N28: 0
N29: 0
B30: Total | I30: =+SUM(I15:I29) -> 2717257.626 | J30: 2718608.239 | K30: 2701479.837 | L30: 2694767.81 | M30: 2684237.582 | N30: 13516351.09

Sheet 2.16 Opex Summary
B1: =(LOOKUP(dms_Model,dms_Model_List,dms_Worksheet_List)) -> REGULATORY REPORTING STATEMENT
B2: =dms_TradingName -> AusNet (T)
B3: =CONCATENATE(FRCP_y1," to ",FRCP_y5) -> 2017-18 to 2021-22
B4: 2.16 Opex Summary
B6: Instructions
B7: Complete the tables below in accordance with the regulatory information notice. The TNSP must input forecast opex by category in Table 2.16.2 and Table 2.16.4 if it did not forecast its total opex using a Base Year approach. Otherwise input '0'. The TNSP's total forecast opex must reconcile to Table 2.16.1 (and if the TNSP owns any dual function assets Table 2.16.3). If the TNSP did not forecast its total opex using a Base Year approach, total forecast opex must, in addition, reconcile to Table 2.16.2 (and if the TNSP owns any dual function assets Table 2.16.4). If the TNSP does not own any dual function assets,Table 2.16.3 and 2.16.4 may be left blank. The total step changes in Table 2.16.1 and Table 2.16.3 must reconcile (in each year) to the total step changes for each year in Table 2.17.1 and Table 2.17.3 of worksheet 2.17 Step Changes, respectively.
B9: Table 2.16.1 - Prescribed services - opex by driver | K9: Table 2.16.2 - Prescribed services - opex by category
C10: =CONCATENATE("Forecast ($0's, real ", dms_DollarReal, ")") -> Forecast ($0's, real March 2017) | L10: =CONCATENATE("Forecast ($0's, real ", dms_DollarReal, ")") -> Forecast ($0's, real March 2017)
C11: =CRCP_y4 -> 2015-16 | D11: =FRCP_y1 -> 2017-18 | E11: =FRCP_y1 -> 2017-18 | F11: =FRCP_y2 -> 2018-19 | G11: =FRCP_y3 -> 2019-20 | H11: =FRCP_y4 -> 2020-21 | I11: =FRCP_y5 -> 2021-22 | L11: =CRCP_y4 -> 2015-16 | M11: =FRCP_y1 -> 2017-18 | N11: =FRCP_y1 -> 2017-18 | O11: =FRCP_y2 -> 2018-19 | P11: =FRCP_y3 -> 2019-20 | Q11: =FRCP_y4 -> 2020-21 | R11: =FRCP_y5 -> 2021-22
K12: Vegetation management | L12: 0 | M12: 0 | N12: 0 | O12: 0 | P12: 0 | Q12: 0 | R12: 0
B13: Efficent historic opex | C13: 202782939 | D13: 202705216.8 | E13: 209239339.5 | F13: 209385950.7 | G13: 209478867.7 | H13: 209584927.8 | I13: 209689982.8 | K13: Maintenance | L13: 0 | M13: 0 | N13: 0 | O13: 0 | P13: 0 | Q13: 0 | R13: 0
B14: Real price changes | C14: 331587.0876 | D14: 763410.8897 | E14: 1358882.556 | F14: 1961857.669 | G14: 2565427.228 | H14: 3222922.88 | I14: 3898527.53 | K14: Emergency response | L14: 0 | M14: 0 | N14: 0 | O14: 0 | P14: 0 | Q14: 0 | R14: 0
B15: Output growth | C15: 1254975.029 | D15: 2528764.324 | E15: 4062643.905 | F15: 5378525.055 | G15: 6714133.559 | H15: 8069765.166 | I15: 9445720.056 | K15: Non-network | L15: 0 | M15: 0 | N15: 0 | O15: 0 | P15: 0 | Q15: 0 | R15: 0
B16: Productivity growth | C16: -231320.8044 | D16: -463280.8231 | E16: -695881.8225 | F16: -929125.5737 | G16: -1163013.853 | H16: -1397548.441 | I16: -1632731.125 | K16: Network overheads | L16: 0 | M16: 0 | N16: 0 | O16: 0 | P16: 0 | Q16: 0 | R16: 0
B17: Step changes | C17: 3246652.126 | D17: 4289500.383 | E17: 8150857.017 | F17: 1506732.258 | G17: 1195537.818 | H17: 1628358.547 | I17: 982233.8225 | K17: Corporate overheads | L17: 0 | M17: 0 | N17: 0 | O17: 0 | P17: 0 | Q17: 0 | R17: 0
B18: Total opex | C18: =SUM(C13:C17) -> 207384832.4 | D18: 209823611.5 | E18: 222115841.1 | F18: 217303940.1 | G18: 218790952.5 | H18: 221108426 | I18: 222383733.1 | K18: Total opex | L18: =SUM(L12:L17) -> 0 | M18: 0 | N18: 0 | O18: 0 | P18: 0 | Q18: 0 | R18: 0
B20: Note: The amount noted against step changes, include Other operating expenditure category in addition to the specifically identified step changes in the revenue proposal.

Sheet 2.17 Step Changes
B1: =(LOOKUP(dms_Model,dms_Model_List,dms_Worksheet_List)) -> REGULATORY REPORTING STATEMENT
B2: =dms_TradingName -> AusNet (T)
B3: =CONCATENATE(FRCP_y1," to ",FRCP_y5) -> 2017-18 to 2021-22
B4: 2.17 STEP CHANGES
B6: Instructions
B7: Complete the Tables below in accordance with the regulatory information notice. The total step changes in Table 2.17.1 must reconcile (in each year) to the total step changes for each year in Table 2.16.1 of worksheet 2.16 Opex Summary.
B9: Table 2.17.1 Forecast opex step changes
F10: Actual ($0's, nominal) | I10: =CONCATENATE("Forecast ($0's, real ", dms_DollarReal, ")") -> Forecast ($0's, real March 2017)
B11: Step change | C11: Description | D11: =CRCP_y1 -> 2012-13 | E11: =CRCP_y2 -> 2013-14 | F11: =CRCP_y1 -> 2012-13 | G11: =CRCP_y2 -> 2013-14 | H11: =CRCP_y3 -> 2014-15 | I11: =CRCP_y4 -> 2015-16 | J11: =CRCP_y5 -> 2016-17 | K11: =FRCP_y1 -> 2017-18 | L11: =FRCP_y2 -> 2018-19 | M11: =FRCP_y3 -> 2019-20 | N11: =FRCP_y4 -> 2020-21 | O11: =FRCP_y5 -> 2021-22
B12: Refer to unlocked sheet
D27: =SUM(D19:D26) -> 0 | E27: 0 | F27: 0 | G27: =SUM(G19:G26) -> 0 | H27: 0 | I27: 0 | J27: =SUM(J19:J26) -> 0 | K27: 0 | L27: 0 | M27: 0 | N27: 0 | O27: 0
B28: Check | K28: =IF(K$49-'2.16 Opex Summary'!C$17=0,"OK","Error") -> Error | L28: =IF(L$49-'2.16 Opex Summary'!F$17=0,"OK","Error") -> Error | M28: =IF(M$49-'2.16 Opex Summary'!G$17=0,"OK","Error") -> Error | N28: =IF(N$49-'2.16 Opex Summary'!H$17=0,"OK","Error") -> Error | O28: =IF(O$49-'2.16 Opex Summary'!I$17=0,"OK","Error") -> Error
B30: Table 2.17.2 Forecast capex step changes
F31: Actual ($0's, nominal) | I31: =CONCATENATE("Forecast ($0's, real ", dms_DollarReal, ")") -> Forecast ($0's, real March 2017)
B32: Step change | C32: Description | D32: =CRCP_y1 -> 2012-13 | E32: =CRCP_y2 -> 2013-14 | F32: =CRCP_y1 -> 2012-13 | G32: =CRCP_y2 -> 2013-14 | H32: =CRCP_y3 -> 2014-15 | I32: =CRCP_y4 -> 2015-16 | J32: =CRCP_y5 -> 2016-17 | K32: =FRCP_y1 -> 2017-18 | L32: =FRCP_y2 -> 2018-19 | M32: =FRCP_y3 -> 2019-20 | N32: =FRCP_y4 -> 2020-21 | O32: =FRCP_y5 -> 2021-22
D48: =SUM(D33:D47) -> 0 | E48: =SUM(E33:E47) -> 0 | F48: 0 | G48: =SUM(G33:G47) -> 0 | H48: 0 | I48: 0 | J48: 0 | K48: 0 | L48: 0 | M48: 0 | N48: 0 | O48: 0

Sheet 3.1 Revenue
B1: =(LOOKUP(dms_Model,dms_Model_List,dms_Worksheet_List)) -> REGULATORY REPORTING STATEMENT
B2: =dms_TradingName -> AusNet (T)
B3: =CONCATENATE(FRCP_y1," to ",FRCP_y5) -> 2017-18 to 2021-22
B4: 3.1 REVENUE
C8: =CONCATENATE("Forecast ($0's, real ",dms_DollarReal,")") -> Forecast ($0's, real March 2017)
C9: =CRCP_y4 -> 2015-16 | D9: =CRCP_y5 -> 2016-17 | E9: =FRCP_y1 -> 2017-18 | F9: =FRCP_y2 -> 2018-19 | G9: =FRCP_y3 -> 2019-20 | H9: =FRCP_y4 -> 2020-21 | I9: =FRCP_y5 -> 2021-22
B10: Table 3.1.1 Revenue Grouping by chargeable quantity
A11: TREV0101 | B11: From Fixed Customer (Exit Point) Charges | C11: 62576229.82 | D11: 58994884.25 | E11: 63954607.13 | F11: 65011408.42 | G11: 65417301.64 | H11: 65825729.02 | I11: 66236706.38
A12: TREV0102 | B12: From Variable Customer (Exit Point) Charges | C12: 0 | D12: 0 | E12: 0 | F12: 0 | G12: 0 | H12: 0 | I12: 0
A13: TREV0103 | B13: From Fixed Generator (Entry Point) Charges | C13: 8297857.766 | D13: 7822957.053 | E13: 8480636.097 | F13: 8620772.165 | G13: 8674595.225 | H13: 8728754.326 | I13: 8783251.564
A14: TREV0104 | B14: From Variable Generator (Entry Point) Charges | C14: 0 | D14: 0 | E14: 0 | F14: 0 | G14: 0 | H14: 0 | I14: 0
A15: TREV0105 | B15: From Fixed Energy Usage Charges (Charge per day basis) | C15: 0 | D15: 0 | E15: 0 | F15: 0 | G15: 0 | H15: 0 | I15: 0
A16: TREV0106 | B16: From Variable Energy Usage charges (Charge per kWh basis) | C16: 0 | D16: 0 | E16: 0 | F16: 0 | G16: 0 | H16: 0 | I16: 0
A17: TREV0107 | B17: From Energy based Common Service and General Charges | C17: 0 | D17: 0 | E17: 0 | F17: 0 | G17: 0 | H17: 0 | I17: 0
A18: TREV0108 | B18: From Fixed Demand based Usage Charges | C18: 0 | D18: 0 | E18: 0 | F18: 0 | G18: 0 | H18: 0 | I18: 0
A19: TREV0109 | B19: From Variable Demand based Usage Charges | C19: 0 | D19: 0 | E19: 0 | F19: 0 | G19: 0 | H19: 0 | I19: 0
A20: TREV0110 | B20: Revenue from other Sources | C20: 492588834.5 | D20: 469271285.6 | E20: 509322902.4 | F20: 511758122.7 | G20: 514953241.2 | H20: 518168308.2 | I20: 521403448.1
A21: TREV01 | B21: Total revenue by chargeable quantity
B24: Table 3.1.2 Revenue Grouping by type of connected equipment
A25: TREV0201 | B25: From Other connected transmission networks | C25: 0 | D25: 0 | E25: 0 | F25: 0 | G25: 0 | H25: 0 | I25: 0
A26: TREV0202 | B26: From Distribution networks | C26: 62390921.65 | D26: 59359885.82 | E26: 63765217.15 | F26: 64163329.88 | G26: 64563928.2 | H26: 64967027.61 | I26: 65372643.75
A27: TREV0203 | B27: From Directly connected end–users | C27: 185308.1667 | D27: 176305.6439 | E27: 189389.9813 | F27: 190572.4216 | G27: 191762.2444 | H27: 192959.4957 | I27: 194164.222
A28: TREV0204 | B28: From Generators | C28: 8297857.766 | D28: 7894736.549 | E28: 8480636.097 | F28: 8533584.23 | G28: 8586862.941 | H28: 8640474.292 | I28: 8694420.362
A29: TREV0205 | B29: Other revenue | C29: 492588834.5 | D29: 468658198.9 | E29: 509322902.4 | F29: 512502816.8 | G29: 515702584.7 | H29: 518922330.1 | I29: 522162177.7
A30: TREV02 | B30: Total revenue by type of connected equipment
A33: TREV0301 | B33: Table 3.1.3 Revenue (penalties) allowed (deducted) through incentive schemes
A34: TREV0302 | B34: EBSS | C34: 13427518.29 | D34: 13005512.2 | E34: 1103851.787 | F34: 1110743.593 | G34: 1117678.426 | H34: 1124656.557 | I34: 1131678.255
A35: TREV0303 | B35: STPIS | C35: 15280100.68 | D35: 8010697.237 | E35: 0 | F35: 0 | G35: 0 | H35: 0 | I35: 0
A36: TREV03 | B36: Other | C36: 0 | D36: 0 | E36: 0 | F36: 0 | G36: 0 | H36: 0 | I36: 0
B37: Total revenue of incentive schemes

Sheet 3.2 Operating expenditure
B1: =(LOOKUP(dms_Model,dms_Model_List,dms_Worksheet_List)) -> REGULATORY REPORTING STATEMENT
B2: =dms_TradingName -> AusNet (T)
B3: =CONCATENATE(FRCP_y1," to ",FRCP_y5) -> 2017-18 to 2021-22
B4: 3.2 OPERATING EXPENDITURE
B7: Table 3.2.1 Opex categories
B8: Table 3.2.1.1 Current opex categories and cost allocations
C9: =CONCATENATE("Forecast ($0's, real ",dms_DollarReal,")") -> Forecast ($0's, real March 2017)
C10: =CRCP_y4 -> 2015-16 | D10: =CRCP_y5 -> 2016-17 | E10: =FRCP_y1 -> 2017-18 | F10: =FRCP_y2 -> 2018-19 | G10: =FRCP_y3 -> 2019-20 | H10: =FRCP_y4 -> 2020-21 | I10: =FRCP_y5 -> 2021-22
B11: Network Operations | C11: 4309355.296 | D11: 4383954.358 | E11: 4599227.944 | F11: 4684371.76 | G11: 4770427.166 | H11: 4860072.081 | I11: 4951516.049
B12: Network Maintenance | C12: 32701285.18 | D12: 33267375.71 | E12: 34900966.45 | F12: 35547075.22 | G12: 36200101.52 | H12: 36880366.6 | I12: 37574283.69
B13: Asset Works Program | C13: 4188819.703 | D13: 4284979.566 | E13: 11626107.26 | F13: 5062189.276 | G13: 4832060.342 | H13: 5349327.95 | I13: 4789344.839
B14: Asset Works Program - Asset Management Support | C14: 1375031.318 | D14: 1398834.426 | E14: 1467524.033 | F14: 1494691.766 | G14: 1522150.369 | H14: 1550754.315 | I14: 1579932.304
B15: Availability Rebate | C15: 0 | D15: 0 | E15: 0 | F15: 0 | G15: 0 | H15: 0 | I15: 0
B16: Easement Tax | C16: 115270038.4 | D16: 115270038.4 | E16: 115270038.4 | F16: 115270038.4 | G16: 115270038.4 | H16: 115270038.4 | I16: 115270038.4
B17: Insurance | C17: 4872827.544 | D17: 5156067.202 | E17: 5536558.211 | F17: 5681818.787 | G17: 5791864.259 | H17: 5904636.384 | I17: 6020221.56
B18: Taxes and Charges | C18: 5392801.086 | D18: 5486155.631 | E18: 5755552.686 | F18: 5862103.118 | G18: 5969794.328 | H18: 6081977.511 | I18: 6196412.06
B19: Self Insurance Costs | C19: 1845019.426 | D19: 1845019.426 | E19: 2717257.626 | F19: 2718608.239 | G19: 2701479.837 | H19: 2694767.81 | I19: 2684237.582
B20: OHS | C20: 975299.6286 | D20: 988698.4289 | E20: 1027363.899 | F20: 1042656.651 | G20: 1058113.135 | H20: 1074214.333 | I20: 1090638.661
B21: Finance | C21: 10584247.83 | D21: 10767733.95 | E21: 11211270.62 | F21: 11421586.96 | G21: 11634553.82 | H21: 11856935.27 | I21: 12084290.88
B22: HR | C22: 4128260.138 | D22: 4199724.27 | E22: 4405951.258 | F22: 4487517.014 | G22: 4569956.051 | H22: 4655833.753 | I22: 4743434.905
B23: IT | C23: 9591144.758 | D23: 10413987.82 | E23: 10629992.8 | F23: 10823180.57 | G23: 11019668.24 | H23: 11225992.84 | I23: 11438037.05
B24: Building Services | C24: 5523621.136 | D24: 5619240.301 | E24: 5895172.464 | F24: 6004307.626 | G24: 6114611.238 | H24: 6229515.792 | I24: 6346726.326
B25: Strategy and Business Development | C25: 4115669.55 | D25: 4186915.727 | E25: 4392513.753 | F25: 4473830.745 | G25: 4556018.356 | H25: 4641634.143 | I25: 4728968.124
B26: Other Corporate Services | C26: 2511411.38 | D26: 2554886.313 | E26: 2680343.718 | F26: 2729963.936 | G26: 2780115.412 | H26: 2832358.785 | I26: 2885650.614
B45: Total opex | C45: =SUM(C11:C44) -> 207384832.4 | D45: =SUM(D11:D44) -> 209823611.5 | E45: 222115841.1 | F45: 217303940.1 | G45: 218790952.5 | H45: 221108426 | I45: 222383733.1

Sheet 3.3 Assets (RAB)
B1: =(LOOKUP(dms_Model,dms_Model_List,dms_Worksheet_List)) -> REGULATORY REPORTING STATEMENT
B2: =dms_TradingName -> AusNet (T)
B3: =CONCATENATE(FRCP_y1," to ",FRCP_y5) -> 2017-18 to 2021-22
B4: 3.3 ASSETS
C7: =CONCATENATE("Forecast ($0's, real ",dms_DollarReal,")") -> Forecast ($0's, real March 2017)
C8: =CRCP_y4 -> 2015-16 | D8: =CRCP_y5 -> 2016-17 | E8: =FRCP_y1 -> 2017-18 | F8: =FRCP_y2 -> 2018-19 | G8: =FRCP_y3 -> 2019-20 | H8: =FRCP_y4 -> 2020-21 | I8: =FRCP_y5 -> 2021-22
B10: TABLE 3.3.1 - REGULATORY ASSET BASE VALUES
B11: For total asset base:
A12: TRAB0101 | B12: Opening value | C12: 2843080902 | D12: 2948310173 | E12: 3138660649 | F12: 3247983757 | G12: 3297916190 | H12: 3336987434 | I12: 3385321124
A13: TRAB0102 | B13: Inflation addition | C13: 67151383.92 | D13: 69228510.5 | E13: 72064997.81 | F13: 72920460.04 | G13: 72392645.05 | H13: 71627571.35 | I13: 71092733.82
A14: TRAB0103 | B14: Straight line depreciation | C14: -156195699.9 | D14: -165193904.9 | E14: -175262698.1 | F14: -185994485 | G14: -194869265.8 | H14: -194589576.1 | I14: -177272243.2
A15: TRAB0104 | B15: Regulatory depreciation | C15: -89044315.96 | D15: -95965394.42 | E15: -103197700.3 | F15: -113074025 | G15: -122476620.7 | H15: -122962004.7 | I15: -106179509.4
A16: TRAB0105 | B16: Actual additions (recognised in RAB) | C16: 194273587.1 | D16: 185839087.7 | E16: 212520808.3 | F16: 163006457.8 | G16: 161547864.4 | H16: 171295694.6 | I16: 121994382.1
A17: TRAB0106 | B17: Disposals | C17: 0 | D17: 0 | E17: 0 | F17: 0 | G17: 0 | H17: 0 | I17: 0
A18: TRAB0107 | B18: Closing value | C18: 2948310173 | D18: 3038183866 | E18: 3247983757 | F18: 3297916190 | G18: 3336987434 | H18: 3385321124 | I18: 3401135996
B21: TABLE 3.3.2 - ASSET VALUE ROLL FORWARD
B22: For overhead transmission assets:
A23: TRAB0201 | B23: Opening value | C23: 1080937029 | D23: 1084127653 | E23: 1082901452 | F23: 1074322052 | G23: 1065574772 | H23: 1051112558 | I23: 1035996581
A24: TRAB0202 | B24: Inflation addition | C24: 25530901.14 | D24: 25475278.28 | E24: 24863882.89 | F24: 24096028.44 | G24: 23341919.95 | H24: 22473885.19 | I24: 21610744.69
A25: TRAB0203 | B25: Straight line depreciation | C25: -47271277.45 | D25: -47708330.51 | E25: -48036322.6 | F25: -48540725.92 | G25: -49054220.37 | H25: -49401652.22 | I25: -49757288.58
A26: TRAB0204 | B26: Regulatory depreciation | C26: -21740376.31 | D26: -22233052.23 | E26: -23172439.71 | F26: -24444697.48 | G26: -25712300.42 | H26: -26927767.03 | I26: -28146543.88
A27: TRAB0205 | B27: Actual additions (recognised in RAB) | C27: 24931000.38 | D27: 11540011.54 | E27: 14593039.45 | F27: 15697417.3 | G27: 11250086.22 | H27: 11811789.71 | I27: 11167446.94
A28: TRAB0206 | B28: Disposals | C28: 0 | D28: 0 | E28: 0 | F28: 0 | G28: 0 | H28: 0 | I28: 0
A29: TRAB0207 | B29: Closing value | C29: 1084127653 | D29: 1073434612 | E29: 1074322052 | F29: 1065574772 | G29: 1051112558 | H29: 1035996581 | I29: 1019017484
B30: For underground transmission assets:
A31: TRAB0301 | B31: Opening value | C31: 35268442.51 | D31: 34559104.97 | E31: 33866304.53 | F31: 33129061.7 | G31: 32374988.74 | H31: 31593020.95 | I31: 30782413.14
A32: TRAB0302 | B32: Inflation addition | C32: 833013.4825 | D32: 812521.7041 | E32: 777584.911 | F32: 742786.1062 | G32: 708429.5786 | H32: 674245.0005 | I32: 640213.2367
A33: TRAB0303 | B33: Straight line depreciation | C33: -1542351.022 | D33: -1520814.636 | E33: -1514827.739 | F33: -1496859.066 | G33: -1490397.365 | H33: -1484852.809 | I33: -1478430.955
A34: TRAB0304 | B34: Regulatory depreciation | C34: -709337.5392 | D34: -708292.9318 | E34: -737242.8283 | F34: -754072.96 | G34: -781967.7861 | H34: -810607.8083 | I34: -838217.7183
A35: TRAB0305 | B35: Actual additions (recognised in RAB) | C35: 0 | D35: 0 | E35: 0 | F35: 0 | G35: 0 | H35: 0 | I35: 0
A36: TRAB0306 | B36: Disposals | C36: 0 | D36: 0 | E36: 0 | F36: 0 | G36: 0 | H36: 0 | I36: 0
A37: TRAB0307 | B37: Closing value | C37: 34559104.97 | D37: 33850812.04 | E37: 33129061.7 | F37: 32374988.74 | G37: 31593020.95 | H37: 30782413.14 | I37: 29944195.43
B38: For transmission switchyards, substations
A39: TRAB0401 | B39: Opening value | C39: 1246581074 | D39: 1300735705 | E39: 1440647819 | F39: 1524896756 | G39: 1573493392 | H39: 1630093358 | I39: 1700124779
A40: TRAB0402 | B40: Inflation addition | C40: 29443286.06 | D40: 30538068.84 | E40: 33077893.26 | F40: 34252802.42 | G40: 34582143.01 | H40: 35087681.68 | I40: 35890004.96
A41: TRAB0403 | B41: Straight line depreciation | C41: -63488102.12 | D41: -65457414.08 | E41: -68355894.54 | F41: -63059840.93 | G41: -66264870.85 | H41: -64956132.14 | I41: -54296484.91
A42: TRAB0404 | B42: Regulatory depreciation | C42: -34044816.06 | D42: -34919345.24 | E42: -35278001.28 | F42: -28807038.52 | G42: -31682727.84 | H42: -29868450.46 | I42: -18406479.96
A43: TRAB0405 | B43: Actual additions (recognised in RAB) | C43: 88199446.64 | D43: 109619765.5 | E43: 119526938.2 | F43: 77403674.88 | G43: 88282693.31 | H43: 99899871.33 | I43: 60633802.54
A44: TRAB0406 | B44: Disposals | C44: 0 | D44: 0 | E44: 0 | F44: 0 | G44: 0 | H44: 0 | I44: 0
A45: TRAB0407 | B45: Closing value | C45: 1300735705 | D45: 1375436125 | E45: 1524896756 | F45: 1573493392 | G45: 1630093358 | H45: 1700124779 | I45: 1742352101
B46: For easements:
A47: TRAB0501 | B47: Opening value | C47: 130999435 | D47: 134093540.8 | E47: 137172027.6 | F47: 140321556.3 | G47: 143471085 | H47: 146620613.7 | I47: 149770142.4
A48: TRAB0502 | B48: Inflation addition | C48: 3094105.885 | D48: 3149528.723 | E48: 3149528.723 | F48: 3149528.723 | G48: 3149528.723 | H48: 3149528.723 | I48: 3149528.723
A49: TRAB0503 | B49: Straight line depreciation | C49: 0 | D49: 0 | E49: 0 | F49: 0 | G49: 0 | H49: 0 | I49: 0
A50: TRAB0504 | B50: Regulatory depreciation | C50: 3094105.885 | D50: 3149528.723 | E50: 3149528.723 | F50: 3149528.723 | G50: 3149528.723 | H50: 3149528.723 | I50: 3149528.723
A51: TRAB0505 | B51: Actual additions (recognised in RAB) | C51: 0 | D51: 0 | E51: 0 | F51: 0 | G51: 0 | H51: 0 | I51: 0
A52: TRAB0506 | B52: Disposals | C52: 0 | D52: 0 | E52: 0 | F52: 0 | G52: 0 | H52: 0 | I52: 0
A53: TRAB0507 | B53: Closing value | C53: 134093540.8 | D53: 137243069.6 | E53: 140321556.3 | F53: 143471085 | G53: 146620613.7 | H53: 149770142.4 | I53: 152919671.2
B54: For “other” assets with long lives:
A55: TRAB0601 | B55: Opening value | C55: 284825555.6 | D55: 304475268.2 | E55: 346812770.7 | F55: 365473658.3 | G55: 372451461.1 | H55: 377271613 | I55: 380688492.2
A56: TRAB0602 | B56: Inflation addition | C56: 6727360.527 | D56: 7144566.406 | E56: 7962970.31 | F56: 8208599.09 | G56: 8180339.477 | H56: 8103188.127 | I56: 7995588.457
A57: TRAB0603 | B57: Straight line depreciation | C57: -31801710.37 | D57: -33765540.26 | E57: -39376815.26 | F57: -45701175.44 | G57: -48577450.5 | H57: -50370011.99 | I57: -51762475.67
A58: TRAB0604 | B58: Regulatory depreciation | C58: -25074349.84 | D58: -26620973.86 | E58: -31413844.95 | F58: -37492576.35 | G58: -40397111.02 | H58: -42266823.86 | I58: -43766887.21
A59: TRAB0605 | B59: Actual additions (recognised in RAB) | C59: 44724062.49 | D59: 43346049.71 | E59: 50074732.53 | F59: 44470379.11 | G59: 45217262.97 | H59: 45683702.97 | I59: 38069376.78
A60: TRAB0606 | B60: Disposals | C60: 0 | D60: 0 | E60: 0 | F60: 0 | G60: 0 | H60: 0 | I60: 0
A61: TRAB0607 | B61: Closing value | C61: 304475268.2 | D61: 321200344.1 | E61: 365473658.3 | F61: 372451461.1 | G61: 377271613 | H61: 380688492.2 | I61: 374990981.7
B62: For “other” assets with short lives:
A63: TRAB0701 | B63: Opening value | C63: 64469365.86 | D63: 90318901.32 | E63: 97260274.9 | F63: 109840672.7 | G63: 110550490.9 | H63: 100296270.4 | I63: 87958716.66
A64: TRAB0702 | B64: Inflation addition | C64: 1522716.83 | D64: 2108546.545 | E64: 2233137.724 | F64: 2470715.264 | G64: 2430284.309 | H64: 2139042.627 | I64: 1806653.75
A65: TRAB0703 | B65: Straight line depreciation | C65: -12092258.92 | D65: -16741805.43 | E65: -17978837.95 | F65: -27195883.65 | G65: -29482326.68 | H65: -28376926.92 | I65: -19977563.05
A66: TRAB0704 | B66: Regulatory depreciation | C66: -10569542.09 | D66: -14633258.89 | E66: -15745700.23 | F66: -24725168.39 | G66: -27052042.37 | H66: -26237884.3 | I66: -18170909.3
A67: TRAB0705 | B67: Actual additions (recognised in RAB) | C67: 36419077.55 | D67: 21333260.93 | E67: 28326098.08 | F67: 25434986.53 | G67: 16797821.9 | H67: 13900330.54 | I67: 12123755.83
A68: TRAB0706 | B68: Disposals | C68: 0 | D68: 0 | E68: 0 | F68: 0 | G68: 0 | H68: 0 | I68: 0
A69: TRAB0707 | B69: Closing value | C69: 90318901.32 | D69: 97018903.37 | E69: 109840672.7 | F69: 110550490.9 | G69: 100296270.4 | H69: 87958716.66 | I69: 81911563.19
B72: TABLE 3.3.3 - TOTAL DISAGGREGATED RAB ASSET VALUES
A73: TRAB0801 | B73: Overhead transmission assets (wires and towers/poles etc) | C73: 1082532341 | D73: 1078781133 | E73: 1078611752 | F73: 1069948412 | G73: 1058343665 | H73: 1043554569 | I73: 1027507032
A74: TRAB0802 | B74: Underground transmission assets (cables, ducts etc) | C74: 34913773.74 | D74: 34204958.5 | E74: 33497683.11 | F74: 32752025.22 | G74: 31984004.85 | H74: 31187717.05 | I74: 30363304.28
A75: TRAB0803 | B75: Substations, switchyards, Transformers etc with transmission function | C75: 1273658389 | D75: 1338085915 | E75: 1482772288 | F75: 1549195074 | G75: 1601793375 | H75: 1665109068 | I75: 1721238440
A76: TRAB0804 | B76: Easements | C76: 132546487.9 | D76: 135668305.2 | E76: 138746791.9 | F76: 141896320.6 | G76: 145045849.4 | H76: 148195378.1 | I76: 151344906.8
A77: TRAB0805 | B77: Other assets with long lives (please specify) | C77: 294650411.9 | D77: 312837806.2 | E77: 356143214.5 | F77: 368962559.7 | G77: 374861537.1 | H77: 378980052.6 | I77: 377839736.9
A78: TRAB0806 | B78: Other assets with short lives (please specify) | C78: 77394133.59 | D78: 93668902.34 | E78: 103550473.8 | F78: 110195581.8 | G78: 105423380.7 | H78: 94127493.54 | I78: 84935139.92
B81: TABLE 3.3.4 - ASSET LIVES
B82: 3.3.4.1 Asset Lives – estimated service life of new assets
A83: TRAB0901 | B83: Overhead transmission assets | C83: 68.6 | D83: 68.6 | E83: 68.6 | F83: 68.6 | G83: 68.6 | H83: 68.6 | I83: 68.6
A84: TRAB0902 | B84: Underground transmission assets | C84: 60 | D84: 60 | E84: 60 | F84: 60 | G84: 60 | H84: 60 | I84: 60
A85: TRAB0903 | B85: Switchyard, substation and transformer assets | C85: 40.6 | D85: 40.6 | E85: 40.6 | F85: 40.6 | G85: 40.6 | H85: 40.6 | I85: 40.6
A86: TRAB0904 | B86: “Other” assets with long lives | C86: 16.71518869 | D86: 16.58759317 | E86: 16.32893665 | F86: 16.27596857 | G86: 16.24488216 | H86: 16.2173468 | I86: 16.20253002
A87: TRAB0905 | B87: “Other assets with short lives | C87: 5.140968179 | D87: 5.132848317 | E87: 5.141087638 | F87: 5.146753267 | G87: 5.185803904 | H87: 5.229569566 | I87: 5.266216993
B89: 3.3.4.2 Asset Lives – estimated residual service life
A90: TRAB1001 | B90: Overhead transmission assets | C90: 23.6 | D90: 22.6 | E90: 21.6 | F90: 20.7 | G90: 19.7 | H90: 18.7 | I90: 17.7
A91: TRAB1002 | B91: Underground transmission assets | C91: 37.9 | D91: 36.9 | E91: 35.9 | F91: 34.9 | G91: 33.9 | H91: 32.9 | I91: 31.9
A92: TRAB1003 | B92: Switchyard, substation and transformer assets | C92: 11.6 | D92: 10.9 | E92: 10.2 | F92: 9.5 | G92: 8.8 | H92: 8.2 | I92: 7.4
A93: TRAB1004 | B93: Other assets with long lives | C93: 12.53401962 | D93: 12.13591207 | E93: 11.65304095 | F93: 11.32002996 | G93: 11.05232849 | H93: 10.82757851 | I93: 10.5187063
A94: TRAB1005 | B94: Other assets with short lives | C94: 3.520107772 | D94: 3.249186347 | E94: 3.205936006 | F94: 3.096037842 | G94: 2.848791856 | H94: 2.705831536 | I94: 2.612257486

Sheet 3.4 Operational data
B1: =(LOOKUP(dms_Model,dms_Model_List,dms_Worksheet_List)) -> REGULATORY REPORTING STATEMENT
B2: =dms_TradingName -> AusNet (T)
B3: =CONCATENATE(FRCP_y1," to ",FRCP_y5) -> 2017-18 to 2021-22
B4: 3.4 OPERATIONAL DATA
D7: Forecast (0's)
C8: Units | D8: =CRCP_y4 -> 2015-16 | E8: =FRCP_y1 -> 2017-18 | F8: =FRCP_y1 -> 2017-18 | G8: =FRCP_y2 -> 2018-19 | H8: =FRCP_y3 -> 2019-20 | I8: =FRCP_y4 -> 2020-21 | J8: =FRCP_y5 -> 2021-22
B10: TABLE 3.4.1 - ENERGY DELIVERY
B11: Energy Grouping by Downstream Connection type
A12: TOPED0101 | B12: To Other connected transmission networks | C12: GWh
A13: TOPED0102 | B13: To Distribution networks | C13: GWh
A14: TOPED0103 | B14: To Directly connected end–users (330 kV) | C14: GWh
A15: TOPED0104 | B15: To Directly connected end–users (275 kV) | C15: GWh
A16: TOPED0105 | B16: To Directly connected end–users (220 kV) | C16: GWh
A17: TOPED0106 | B17: To Directly connected end–users (132 kV) | C17: GWh
A18: TOPED0107 | B18: To Directly connected end–users (110 kV) | C18: GWh
A19: TOPED0108 | B19: To Directly connected end–users (44 kV) | C19: GWh
A20: TOPED0109 | B20: To Directly connected end–users (33 kV) | C20: GWh
A21: TOPED0110 | B21: To Directly connected end–users (22 kV) | C21: GWh
A22: TOPED0111 | B22: To Directly connected end–users (11 kV) | C22: GWh
A23: TOPED0112 | B23: To Directly connected end–users (6.6 kV) | C23: GWh
A24: TOPED0113 | B24: Pumping and Power Station Auxillaries | C24: GWh
A25: TOPED01 | B25: Total energy transported | C25: GWh | D25: =SUM(D12:D24) -> 0 | E25: =SUM(E12:E24) -> 0 | F25: =SUM(F12:F24) -> 0 | G25: 0 | H25: 0 | I25: 0 | J25: 0
B28: TABLE 3.4.2 - CONNECTION POINTS
B29: Number of entry points at each transmission voltage level
A30: TOPCP0101 | B30: 500kV | C30: number
A31: TOPCP0102 | B31: 330kV | C31: number
A32: TOPCP0103 | B32: 275kV | C32: number
A33: TOPCP0104 | B33: 220kV | C33: number
A34: TOPCP0105 | B34: 132 kV | C34: number
A35: TOPCP0106 | B35: 110kV | C35: number
A36: TOPCP0107 | B36: 66 kV | C36: number
A37: TOPCP0108 | B37: 33 kV | C37: number
A38: TOPCP0109 | B38: 22 kV | C38: number
A39: TOPCP0110 | B39: 11 kV | C39: number
A40: TOPCP0111 | B40: 6.6 kV | C40: number
B42: Number of exit points at each transmission voltage level
A43: TOPCP0201 | B43: 500kV | C43: number
A44: TOPCP0202 | B44: 330kV | C44: number
A45: TOPCP0203 | B45: 275kV | C45: number
A46: TOPCP0204 | B46: 220kV | C46: number
A47: TOPCP0205 | B47: 132 kV | C47: number
A48: TOPCP0206 | B48: 110kV | C48: number
A49: TOPCP0207 | B49: 66 kV | C49: number
A50: TOPCP0208 | B50: 44 kV | C50: number
A51: TOPCP0209 | B51: 33kV | C51: number
A52: TOPCP0210 | B52: 22kV | C52: number
A53: TOPCP0211 | B53: 11kV | C53: number
A54: TOPCP0212 | B54: 6.6kV | C54: number
B57: TABLE 3.4.3 - SYSTEM DEMAND
B58: Table 3.4.3.1 Annual system maximum demand characteristics – MW measure
A59: TOPSD0101 | B59: Transmission System coincident maximum demand | C59: MW
A60: TOPSD0102 | B60: Transmission System coincident weather adjusted maximum demand 10% POE | C60: MW
A61: TOPSD0103 | B61: Transmission System coincident weather adjusted maximum demand 50% POE | C61: MW
A62: TOPSD0104 | B62: Transmission System non-coincident summated maximum demand | C62: MW
A63: TOPSD0105 | B63: Transmission System non-coincident weather adjusted summated maximum demand 10% POE | C63: MW
A64: TOPSD0106 | B64: Transmission System non-coincident weather adjusted summated maximum demand 50% POE | C64: MW
B66: Table 3.4.3.2 Annual system maximum demand characteristics – MVA measure
A67: TOPSD0201 | B67: Transmission System coincident maximum demand | C67: MVA
A68: TOPSD0202 | B68: Transmission System coincident weather adjusted maximum demand 10% POE | C68: MVA
A69: TOPSD0203 | B69: Transmission System coincident weather adjusted maximum demand 50% POE | C69: MVA
A70: TOPSD0204 | B70: Transmission System non-coincident summated maximum demand | C70: MVA
A71: TOPSD0205 | B71: Transmission System non-coincident weather adjusted summated maximum demand 10% POE | C71: MVA
A72: TOPSD0206 | B72: Transmission System non-coincident weather adjusted summated maximum demand 50% POE | C72: MVA
B74: Table 3.4.3.3 Power factor
B75: Power factor conversion between MVA and MW
A76: TOPSD0301 | B76: Average overall network power factor conversion between MVA and MW | C76: Factor
A77: TOPSD0302 | B77: Average power factor conversion for 500 kV lines | C77: Factor
A78: TOPSD0303 | B78: Average power factor conversion for 330 kV lines | C78: Factor
A79: TOPSD0304 | B79: Average power factor conversion for 275 kV lines | C79: Factor
A80: TOPSD0305 | B80: Average power factor conversion for 220 kV lines | C80: Factor
A81: TOPSD0306 | B81: Average power factor conversion for 132 kV lines | C81: Factor
A82: TOPSD0307 | B82: Average power factor conversion for 110 kV lines | C82: Factor
A83: TOPSD0308 | B83: Average power factor conversion for 88 kV lines | C83: Factor
A84: TOPSD0309 | B84: Average power factor conversion for 66 kV lines | C84: Factor
A85: TOPSD0310 | B85: Average power factor conversion for 33 kV lines | C85: Factor
A86: TOPSD0311 | B86: Average power factor conversion for 22 kV lines | C86: Factor
A87: TOPSD0311 | B87: Average power factor conversion for 11 kV lines | C87: Factor
A88: TOPSD0312 | B88: Average power factor conversion for 6.6 kV lines | C88: Factor

Sheet 3.5 Physical assets
B1: =(LOOKUP(dms_Model,dms_Model_List,dms_Worksheet_List)) -> REGULATORY REPORTING STATEMENT
B2: =dms_TradingName -> AusNet (T)
B3: =CONCATENATE(FRCP_y1," to ",FRCP_y5) -> 2017-18 to 2021-22
B4: 3.5 PHYSICAL ASSETS
D7: Forecast (0's)
C8: Units | D8: =CRCP_y4 -> 2015-16 | E8: =FRCP_y1 -> 2017-18 | F8: =FRCP_y1 -> 2017-18 | G8: =FRCP_y2 -> 2018-19 | H8: =FRCP_y3 -> 2019-20 | I8: =FRCP_y4 -> 2020-21 | J8: =FRCP_y5 -> 2021-22
B10: TABLE 3.5.1 - TRANSMISSION SYSTEM CAPACITIES
B11: Table 3.5.1.1 Overhead network length of circuit at each voltage
A12: TPA0101 | B12: 500 kV | C12: km
A13: TPA0102 | B13: 330 kV | C13: km
A14: TPA0103 | B14: 275 kV | C14: km
A15: TPA0104 | B15: 220 kV | C15: km
A16: TPA0105 | B16: 132 kV | C16: km
A17: TPA0106 | B17: 110 kV | C17: km
A18: TPA0107 | B18: 88 kV | C18: km
A19: TPA0108 | B19: 66 kV | C19: km
A20: TPA0109 | B20: 33 kV | C20: km
A21: TPA0109 | B21: 22 kV | C21: km
A22: TPA0109 | B22: 11 kV | C22: km
A23: TPA01 | B23: Total overhead circuit kilometres | C23: km | D23: =SUM(D12:D22) -> 0 | E23: =SUM(E12:E22) -> 0 | F23: =SUM(F12:F22) -> 0 | G23: 0 | H23: 0 | I23: 0 | J23: 0
B25: Table 3.5.1.2 Underground cable circuit length at each voltage
A26: TPA0201 | B26: 500 kV | C26: km
A27: TPA0202 | B27: 330 kV | C27: km
A28: TPA0203 | B28: 275 kV | C28: km
A29: TPA0204 | B29: 220 kV | C29: km
A30: TPA0205 | B30: 132 kV | C30: km
A31: TPA0206 | B31: 110 kV | C31: km
A32: TPA0207 | B32: 88 kV | C32: km
A33: TPA0208 | B33: 66 kV | C33: km
A34: TPA0209 | B34: 33 kV | C34: km
A35: TPA0210 | B35: 22 kV | C35: km
A36: TPA0211 | B36: 11 kV | C36: km
A37: TPA02 | B37: Total underground circuit kilometres | C37: km | D37: =SUM(D26:D36) -> 0 | E37: =SUM(E26:E36) -> 0 | F37: =SUM(F26:F36) -> 0 | G37: 0 | H37: 0 | I37: 0 | J37: 0
A39: TPA0301 | B39: Table 3.5.1.3 Estimated overhead network weighted average MVA capacity by voltage class
A40: TPA0302 | B40: 500 kV | C40: MVA
A41: TPA0303 | B41: 330 kV | C41: MVA
A42: TPA0304 | B42: 275 kV | C42: MVA
A43: TPA0305 | B43: 220 kV | C43: MVA
A44: TPA0306 | B44: 132 kV | C44: MVA
A45: TPA0307 | B45: 110 kV | C45: MVA
A46: TPA0308 | B46: 88 kV | C46: MVA
A47: TPA0309 | B47: 66 kV | C47: MVA
A48: TPA0310 | B48: 33 kV | C48: MVA
A49: TPA0311 | B49: 22 kV | C49: MVA
A50: TPA0312 | B50: 11 kV | C50: MVA
B52: Table 3.5.1.4 Estimated underground network weighted average MVA capacity by voltage class
A53: TPA0401 | B53: 500 kV | C53: MVA
A54: TPA0402 | B54: 330 kV | C54: MVA
A55: TPA0403 | B55: 275 kV | C55: MVA
A56: TPA0404 | B56: 220 kV | C56: MVA
A57: TPA0405 | B57: 132 kV | C57: MVA
A58: TPA0406 | B58: 110 kV | C58: MVA
A59: TPA0407 | B59: 88 kV | C59: MVA
A60: TPA0408 | B60: 66 kV | C60: MVA
A61: TPA0409 | B61: 33 kV | C61: MVA
A62: TPA0410 | B62: 22 kV | C62: MVA
A63: TPA0411 | B63: 11 kV | C63: MVA
B65: Table 3.5.1.5 Installed transmission system transformer capacity
A66: TPA0501 | B66: Transmission substations (eg 500 kV to 330 kV) | C66: MVA
A67: TPA0502 | B67: Terminal points to DNSP systems | C67: MVA
A68: TPA0503 | B68: Transformer capacity for directly connected end–users owned by the TNSP | C68: MVA
A69: TPA0504 | B69: Transformer capacity for directly connected end–users owned by the end–user | C69: MVA
A70: TPA0505 | B70: Interconnector capacity | C70: MVA
A71: TPA0506 | B71: Other | C71: MVA
B73: Table 3.5.1.6 Cold spare capacity
A74: TPA06 | B74: Cold spare capacity included in Table 3.5.1.5 | C74: MVA

Sheet 3.7 Operating environment
B1: =(LOOKUP(dms_Model,dms_Model_List,dms_Worksheet_List)) -> REGULATORY REPORTING STATEMENT
B2: =dms_TradingName -> AusNet (T)
B3: =CONCATENATE(FRCP_y1," to ",FRCP_y5) -> 2017-18 to 2021-22
B4: 3.7 OPERATING ENVIRONMENT FACTORS
D7: Forecast (0's)
C8: Units | D8: =CRCP_y4 -> 2015-16 | E8: =FRCP_y1 -> 2017-18 | F8: =FRCP_y1 -> 2017-18 | G8: =FRCP_y2 -> 2018-19 | H8: =FRCP_y3 -> 2019-20 | I8: =FRCP_y4 -> 2020-21 | J8: =FRCP_y5 -> 2021-22
A9: TEF01 | B9: TABLE 3.7.1 - TERRAIN FACTORS
A10: TEF0101 | B10: Total number of vegetation maintenance spans | C10: Number of spans | D10: 2101
A11: TEF0102 | B11: Average vegetation maintenance span cycle | C11: Years | D11: 0.333
A12: TEF0103 | B12: Average number of trees per vegetation maintenance span | C12: Trees | D12: 30
A13: TEF0104 | B13: Average number of defects per vegetation maintenance span | C13: Defects | D13: 0.304
A14: TEF0105 | B14: Tropical proportion | C14: Number of spans | D14: 0
A15: TEF0106 | B15: Standard vehicle access | C15: km | D15: 4446.2778
A16: TEF0107 | B16: Altitude | C16: km | D16: 212.45
A17: TEF0108 | B17: Bushfire risk | C17: Number of spans | D17: 1683
A19: TEF02 | B19: TABLE 3.7.2 - NETWORK CHARACTERISTICS
A20: TEF0201 | B20: Route line length | C20: km | D20: 5002 | E20: 5002 | F20: 5002 | G20: 5002 | H20: 5002 | I20: 5002 | J20: 5002
A21: TEF0202 | B21: Variability of dispatch | C21: %
A22: TEF0203 | B22: Concentrated load distance | C22: km
A23: TEF0204 | B23: Total number of spans | C23: number | D23: 12874 | E23: 12874 | F23: 12874 | G23: 12874 | H23: 12874 | I23: 12874 | J23: 12874

Sheet 7.1 Policies and Procedures
B1: =(LOOKUP(dms_Model,dms_Model_List,dms_Worksheet_List)) -> REGULATORY REPORTING STATEMENT
B2: =dms_TradingName -> AusNet (T)
B3: =CONCATENATE(FRCP_y1," to ",FRCP_y5) -> 2017-18 to 2021-22
B4: 7.1 PLANS, POLICIES, PROCEDURES AND STRATEGIES
B6: Instructions
B7: The TNSP must list and provide a brief description of key internal plans, policies, procedures or strategies that are used by it to plan and conduct its day to day operations and that have been relied upon in the development of its regulatory proposal. The TNSP must identify any internal plans, policies, procedures and strategies that have changed in the current regulatory control period or that are expected to change before the next regulatory control period where the change has been identified as a step change.
B12: TABLE 7.1.1 - PLANS, POLICIES, PROCEDURES AND STRATEGIES
C14: Brief description | D14: Relevance to regulatory proposal | E14: Expenditure impact
C15: Description of the plan, policy, procedure or strategy. | D15: Identify the element of the proposal/supporting documents that the policy, plan, procedure or strategy is relevant to e.g. replacement capex, capacity utilisation thresholds, opex | E15: Is this policy, plan or procedure identified in the response to section 4 'Step Changes' of the notice (yes or no)?
B16: Corporate
B17: <insert relevant policy, plan, strategy etc>
B20: Governance framework
B21: AMS 01-03 Asset Management Committee Charter | C21: The objective of this charter is to establish and maintain an Asset Management System to optimise asset performance and life-cycle costs and so achieve AusNet Services' strategic plan, to the benefit of the community, customers and security holders. | D21: Forms part of the governance systems for capital expenditure forecasting, planning and execution. | E21: No
B22: AMS 01-04 ISO 55001 Accreditation | C22: Certificate demonstrates AusNet Services' achievement of the standard necessary to demonstrate compliance with the requirements of Asset Management systems. | D22: Demonstrates that AM system has appropriate governance and controls. | E22: No
B23: QMS 10-01-1 Health, Safety, Enviornment and Quality Policy | C23: High level document that shows AusNet Services commitment to providing a safe and healthy work enviornment | D23: Demonstrates that AM system has appropriate governance and controls. | E23: No
B24: PTP 10-01 Procurement Principles | C24: This document defines the priciples to ensure an integrated, consistent and compliant approach to procuremnt is undertaken across the organisation | D24: Demonstrates that cost forecasts based on unit rates are subject to formal competitive procedures. | E24: No
B25: ESMS 10-01 Electricity Safety Management Scheme | C25: This document (ESMS 10-01 Overview) contains a summary of the structure of the ESMS for AusNet Services' electricity distribution supply network. It also outlines the period of application, the location of ESMS records, exemptions and lists officers responsible for the operation of this ESMS. | D25: Forecast includes safety related expenditure required to meet the ESMS obligations which are outlined in this document. | E25: No
B26: ESMS 10-03 Electricity Safety Management System | C26: This document describe the assets forming AusNet Services' electricity distribution supply network, their location and the associated planning, design, construction, commissioning, operation, augmentation, inspection, testing, maintenance, refurbishment, replacement and decommissioning processes necessary to ensure the safety of consumers, the general public, AusNet Services' staff and contractors. | D26: Forecast includes safety related expenditure required to meet the ESMS obligations. Details of the expenditure programs are incorporated in this document. | E26: No
B27: AMS 01-01 Asset Management System | C27: The document provides an overview of the systems, policies, strategies, plans, standards, processes and procedures which have been integrated in AusNet Services ISO 55001 certified asset management system to enable performance management of the gas and electricity networks and the assets forming those networks. | D27: Provides an overview of the asset management system and interdependencies. | E27: No
B38: Accounting policies, procedures and methodologies (including a capitalisation policy, depreciation policy and an approved expenditure allocation methodology)
B39: Capitalisation Policy | C39: Document prescribes the accounting treatment for property, plant and equipment. | D39: Demonstrates consistency in capitalisation of assets. | E39: No
B42: Asset management plan or equivalent documentation
B43: Asset Management Policies
B44: Asset Management Policy | C44: High level document that directs the content and implementation of asset management strategies, objectives and plans for the network and guides asset management decisions. | D44: Underpins all asset related expenditure. | E44: No
B46: Asset Management Strategies
B47: <insert relevant policy, plan, strategy etc>
B51: Asset Management Plans
B52: AMS 10-01 Asset Management Strategy | C52: Document sets the framework for AusNet Services’ holistic approach to management of the network assets, and in so doing establishes the linkages with and between the underpinning detailed strategies, processes and plans. The document provides context for management strategies, by taking into account the demand for network services, the condition of network assets, and expected trends into the future. It therefore also has regard to the network augmentation planning process. | D52: This strategy provides a high level overview of AusNet Services approach to managing the transmission network, meeting regulatory obligations and informing stakeholders by: • presenting a transmission network overview including network summary, planning and regulatory framework; • presenting an overview of the asset management system in regard to the transmission network; • describing asset management drivers, • Summating the process and systems and plant asset management strategies | E52: No
B53: AMS 10-52 Auxilliary power supplies | C53: The purpose of this AMS document is to present a current assessment of AusNet Services’ transmission station DC power supply population and condition. This document also specifies the key issues in the population presents key risks associated with failure of DC supply systems | D53: This strategy is intended to assist in managing the assets, meeting regulatory obligations and informing stakeholders by: • presenting an overview of the asset population; • describing the condition and life cycle phase of the current fleet; • understanding asset behaviour through a risk assessment; • exploring key issues • outlining strategies to manage the emerging performance risks through inspection, maintenance, refurbishment and replacement activities | E53: No
B54: AMS 10-53 Capacitor banks | C54: The purpose of this AMS document is to present a current assessment of AusNet Services’ transmission capacitor bank population and condition. This document also specifies the key issues in the population presents key risks associated with asset failure. | D54: This strategy is intended to assist in managing the assets, meeting regulatory obligations and informing stakeholders by: • presenting an overview of the asset population; • describing the condition and life cycle phase of the current fleet; • understanding asset behaviour through a risk assessment; • exploring key issues • outlining strategies to manage the emerging performance risks through inspection, maintenance, refurbishment and replacement activities | E54: No
B55: AMS 10-54 Circuit breakers | C55: The purpose of this AMS document is to present a current assessment of AusNet Services’ transmission circuit breaker population and condition. This document also specifies the key issues in the population presents key risks associated with asset failure. | D55: This strategy is intended to assist in managing the assets, meeting regulatory obligations and informing stakeholders by: • presenting an overview of the asset population; • describing the condition and life cycle phase of the current fleet; • understanding asset behaviour through a riisk assessment; • exploring key issues • outlining strategies to manage the emerging performance risks through inspection, maintenance, refurbishment and replacement activities | E55: No
B56: AMS 10-55 Civil infrastructure | C56: The purpose of this AMS document is to present a current assessment of the civil infrastructure associated to AusNet Services’ transmission network. This document also specifies the key issues in the population presents key risks associated with asset failure. | D56: This strategy is intended to assist in managing the assets, meeting regulatory obligations and informing stakeholders by: • presenting an overview of the asset population; • describing the condition and life cycle phase of the current fleet; • understanding asset behaviour through a riisk assessment; • exploring key issues • outlining strategies to manage the emerging performance risks through inspection, maintenance, refurbishment and replacement activities | E56: No
B57: AMS 10-56 Communications systems | C57: The purpose of this AMS document is to present a current assessment of the communication systems associated to AusNet Services’ transmission network. This document also specifies the key issues in the population presents key risks associated with asset failure. | D57: This strategy is intended to assist in managing the assets, meeting regulatory obligations and informing stakeholders by: • presenting an overview of the asset population; • describing the condition and life cycle phase of the current fleet; • understanding asset behaviour through a risk assessment; • exploring key issues • outlining strategies to manage the emerging performance risks through inspection, maintenance, refurbishment and replacement activities | E57: No
B58: AMS 10-58 Diesel generators | C58: The purpose of this AMS document is to present a current assessment of AusNet Services’ transmission diesel generator population and condition. This document also specifies the key issues in the population presents key risks associated with asset failure. | D58: This strategy is intended to assist in managing the assets, meeting regulatory obligations and informing stakeholders by: • presenting an overview of the asset population; • describing the condition and life cycle phase of the current fleet; • understanding asset behaviour through a risk assessment; • exploring key issues • outlining strategies to manage the emerging performance risks through inspection, maintenance, refurbishment and replacement activities | E58: No
B59: AMS 10-59 Disconnectors & earth switches | C59: The purpose of this AMS document is to present a current assessment of AusNet Services’ transmission disconnector and eath switch population and condition. This document also specifies the key issues in the population presents key risks associated with asset failure. | D59: This strategy is intended to assist in managing the assets, meeting regulatory obligations and informing stakeholders by: • presenting an overview of the asset population; • describing the condition and life cycle phase of the current fleet; • understanding asset behaviour through a risk assessment; • exploring key issues • outlining strategies to manage the emerging performance risks through inspection, maintenance, refurbishment and replacement activities | E59: No
B60: AMS 10-60 Earth grids | C60: The purpose of this AMS document is to present a current assessment of the earth grids associated to AusNet Services’ transmission network. This document also specifies the key issues in the population presents key risks associated with asset failure. | D60: This strategy is intended to assist in managing the assets, meeting regulatory obligations and informing stakeholders by: • presenting an overview of the asset population; • describing the condition and life cycle phase of the current fleet; • understanding asset behaviour through a risk assessment; • exploring key issues • outlining strategies to manage the emerging performance risks through inspection, maintenance, refurbishment and replacement activities | E60: No
B61: AMS 10-61 Fire detection and suppression | C61: The purpose of this AMS document is to present a current assessment of the fire detection and suppression associated to AusNet Services’ transmission network. This document also specifies the key issues in the population presents key risks associated with asset failure. | D61: This strategy is intended to assist in managing the assets, meeting regulatory obligations and informing stakeholders by: • presenting an overview of the asset population; • describing the condition and life cycle phase of the current fleet; • understanding asset behaviour through a risk assessment; • exploring key issues • outlining strategies to manage the emerging performance risks through inspection, maintenance, refurbishment and replacement activities | E61: No
B62: AMS 10-62 Gas insulated switchgear | C62: The purpose of this AMS document is to present a current assessment of AusNet Services’ transmission gas insulated switchgear population and condition. This document also specifies the key issues in the population presents key risks associated with asset failure. | D62: This strategy is intended to assist in managing the assets, meeting regulatory obligations and informing stakeholders by: • presenting an overview of the asset population; • describing the condition and life cycle phase of the current fleet; • understanding asset behaviour through a risk assessment; • exploring key issues • outlining strategies to manage the emerging performance risks through inspection, maintenance, refurbishment and replacement activities | E62: No
B63: AMS 10-63 Infrastructure security | C63: This document includes Strategies for the management of infrastructure physical security associated with the AusNet Services electricity transmission network in Victoria. This document does not include information technology security strategies: please refer to the Information and Communication Technology Strategy for information on this topic. | D63: Identifies expenditure required to ensure network and site security including upgrades, maintenance and replacements. | E63: No
B64: AMS 10-64 Instrument transformers | C64: The purpose of this AMS document is to present a current assessment of AusNet Services’ transmission intrument transformer population and condition. This document also specifies the key issues in the population presents key risks associated with asset failure. | D64: This strategy is intended to assist in managing the assets, meeting regulatory obligations and informing stakeholders by: • presenting an overview of the asset population; • describing the condition and life cycle phase of the current fleet; • understanding asset behaviour through a risk assessment; • exploring key issues • outlining strategies to manage the emerging performance risks through inspection, maintenance, refurbishment and replacement activities | E64: No
B65: AMS 10-65 Line easements | C65: The purpose of this AMS document is to present a current assessment of the line easements associated to AusNet Services’ transmission network. This document also specifies the key issues in the population presents key risks associated with asset failure. | D65: This strategy is intended to assist in managing the assets, meeting regulatory obligations and informing stakeholders by: • presenting an overview of the asset population; • describing the condition and life cycle phase of the current fleet; • understanding asset behaviour through a risk assessment; • exploring key issues • outlining strategies to manage the emerging performance risks through inspection, maintenance, refurbishment and replacement activities | E65: No
B66: AMS 10-66 Power cables | C66: The purpose of this AMS document is to present a current assessment of AusNet Services’ transmission power cable population and condition. This document also specifies the key issues in the population presents key risks associated with asset failure. | D66: This strategy is intended to assist in managing the assets, meeting regulatory obligations and informing stakeholders by: • presenting an overview of the asset population; • describing the condition and life cycle phase of the current fleet; • exploring key issues • outlining strategies to manage the emerging performance risks through inspection, maintenance, refurbishment and replacement activities | E66: No
B67: AMS 10-67 Power transformers and oil filled reactors | C67: The purpose of this AMS document is to present a current assessment of AusNet Services’ transmission power transformer and oil filled reactor population and condition. This document also specifies the key issues in the population presents key risks associated with asset failure. | D67: This strategy is intended to assist in managing the assets, meeting regulatory obligations and informing stakeholders by: • presenting an overview of the asset population; • describing the condition and life cycle phase of the current fleet; • understanding asset behaviour through a risk assessment; • exploring key issues • outlining strategies to manage the emerging performance risks through inspection, maintenance, refurbishment and replacement activities | E67: No
B68: AMS 10-68 Protection systems (Secondary Systems) | C68: The purpose of this AMS document is to present a current assessment of the secondary systems associated to AusNet Services’ transmission network. This document also specifies the key issues in the population presents key risks associated with asset failure. | D68: This strategy is intended to assist in managing the assets, meeting regulatory obligations and informing stakeholders by: • presenting an overview of the asset population; • describing the condition and life cycle phase of the current fleet; • exploring key issues • outlining strategies to manage the emerging performance risks through inspection, maintenance, refurbishment and replacement activities | E68: No
B69: AMS 10-71 Static VAR compensators | C69: The purpose of this AMS document is to present a current assessment of AusNet Services’ transmission static var compensator population and condition. This document also specifies the key issues in the population presents key risks associated with asset failure. | D69: This strategy is intended to assist in managing the assets, meeting regulatory obligations and informing stakeholders by: • presenting an overview of the asset population; • describing the condition and life cycle phase of the current fleet; • understanding asset behaviour through a risk assessment; • exploring key issues • outlining strategies to manage the emerging performance risks through inspection, maintenance, refurbishment and replacement activities | E69: No
B70: AMS 10-73 Surge arresters | C70: The purpose of this AMS document is to present a current assessment of AusNet Services’ transmission surge arrester population and condition. This document also specifies the key issues in the population presents key risks associated with asset failure. | D70: This strategy is intended to assist in managing the assets, meeting regulatory obligations and informing stakeholders by: • presenting an overview of the asset population; • describing the condition and life cycle phase of the current fleet; • understanding asset behaviour through a risk assessment; • exploring key issues • outlining strategies to manage the emerging performance risks through inspection, maintenance, refurbishment and replacement activities | E70: No
B71: AMS 10-75 Transmission lines Insulators | C71: The purpose of this AMS document is to present a current assessment of AusNet Services’ transmission line insulator population and condition. This document also specifies the key issues in the population presents key risks associated with asset failure. | D71: This strategy is intended to assist in managing the assets, meeting regulatory obligations and informing stakeholders by: • presenting an overview of the asset population; • describing the condition and life cycle phase of the current fleet; • exploring key issues • outlining strategies to manage the emerging performance risks through inspection, maintenance, refurbishment and replacement activities | E71: No
B72: AMS 10-77 Transmission line structures | C72: The purpose of this AMS document is to present a current assessment of AusNet Services’ transmission line structure population and condition. This document also specifies the key issues in the population presents key risks associated with asset failure. | D72: This strategy is intended to assist in managing the assets, meeting regulatory obligations and informing stakeholders by: • presenting an overview of the asset population; • describing the condition and life cycle phase of the current fleet; • understanding asset behaviour through a risk assessment; • exploring key issues • outlining strategies to manage the emerging performance risks through inspection, maintenance, refurbishment and replacement activities | E72: No
B73: AMS 10-78 Transmission line structures foundations | C73: The purpose of this AMS document is to present a current assessment of AusNet Services’ transmission line structure foundation population and condition. This document also specifies the key issues in the population presents key risks associated with asset failure. | D73: This strategy is intended to assist in managing the assets, meeting regulatory obligations and informing stakeholders by: • presenting an overview of the asset population; • describing the condition and life cycle phase of the current fleet; • understanding asset behaviour through a risk assessment; • exploring key issues • outlining strategies to manage the emerging performance risks through inspection, maintenance, refurbishment and replacement activities | E73: No
B74: AMS 10-79 Transmission Line Conductors and Ground Wires | C74: The purpose of this document is to define the asset management strategies for AusNet Services’ population of transmission line conductors and ground wires. This document also specifies the key issues in the population presents key risks associated with asset failure. | D74: This strategy is intended to assist in managing the assets, meeting regulatory obligations and informing stakeholders by: • presenting an overview of the asset population; • describing the condition and life cycle phase of the current fleet; • understanding asset behaviour through a risk assessment; • exploring key issues • outlining strategies to manage the emerging performance risks through inspection, maintenance, and replacement activities | E74: Yes.
B75: Capital expenditure policies and procedures (including capex approval policies and procedures and replacement policy)
B76: <insert relevant policy, plan, strategy etc>
B77: Internal standards for network planning, design, maintenance and operation
B78: AMS 10-11 Asset Replacement and Refurbishment | C78: This document outlines the objectives of asset replacement and refurbishment to achieve sustainable outcomes in: • Safety of customers, the community and workers • Quality, reliability and security of supply of electricity transmission services • Compliance with codes, licences, contracts, industry standards and obligations • Quality, reliability and security of supply performance risks • Minimising total asset life cycle costs through the consideration of capital costs, operation and maintenance costs and operational risk costs • Minimising the volatility of renewal works and associated material, skill and revenue requirements. • Minimising project delivery risks and the potential impact of renewal works on network availability, market participants and connected parties | D78: This document outlines the asset replacement and refurbishment strategies that underpin the management of assets in the Victorian electricity transmission network. In the context of this document the term 'renewal' is used to mean refurbishment or replacement. | E78: No
B79: AMS 10-13 Condition Monitoring | C79: This document defines the scope of condition monitoring strategies for assets forming the Victorian electricity transmission network for the period until 2022. Its purpose is to use condition monitoring to guide the establishment of economic asset maintenance, refurbishment and replacement programs while focussed on sustainable management of worker and public safety, network reliability, and security risks. This strategy also focuses the development of condition monitoring techniques, processes and systems on the objective measurement of the condition of key network assets. | D79: This document describes the condition monitoring activities used to determine the the lifecycle phase of an asset. The methods described underpin inspection, maintenance and replacement activities. These include the deployment of Smart Aerial Image Processing technology, which has been successfully trialed in recent years, and for which an opex step change is being sought for a network-wide roll out. | E79: Yes.
B80: AMS 10-14 Environmental Management | C80: This documents sets out the environmental objective to protect the environment by responsibly managing the effects of our activities, while taking into account community concerns and threats to the functionality of the transmission network. | D80: This document describes that on environmental matters, AusNet Services will: • Conduct all operations in accordance with legislation. • Responsibly minimise adverse environmental effects and maximise favourable effects where possible. • Inform and consult with the community on significant environmental matters and respond effectively to environmental concerns raised by the community. | E80: No
B81: AMS10-17 Network Performance Monitoring | C81: This document outlines how AusNet Services’ asset management practices is measured directly by the performance of extra high voltage network elements and their impact on the availability and reliability of the Victorian electricity transmission network in which they operate. | D81: This document summarises the assessment of electricity transmission network business performance providing the measure and strategies to be implemented to address regulatory and performance targets | E81: No
B82: AMS10-22 Risk Assessment | C82: This document discusses the identification, analysis and quantification of risks that are associated with assets forming the Victorian electricity transmission network. The main component of this document is the assessment of asset failure risks by individual asset or asset class using reliability centred maintenance (RCM) techniques including Availability Work Bench (AWB) software models such as RCMCost and AVSim. | D82: This document summarises the assessment of electricity transmission network business risks using the AusNet Services Risk Management Framework. It also references the assessment of network safety risks undertaken using the AusNet Services Risk Management Framework as part of the establishment and maintenance of an accepted Electricity Safety Management Scheme (ESMS). | E82: No
B83: AMS 10-24 Asset Renewal Planning Guide | C83: This document covers AusNet Services’ regulated electricity transmission assets operating across Victoria, including: • Transmission lines, power cables and associated easements and access tracks; • Terminal stations, switching stations, communication stations and depots including associated electrical plant, buildings and civil infrastructure; • Protection, control, metering and communications equipment; • Related functions and facilities such as spares, maintenance and test equipment; and Asset management processes and systems such as System Control and Data Acquisition (SCADA) and asset management information systems (including SAP). | D83: This document provides a framework for AusNet Services’ asset renewal planning for the Victorian electricity transmission network. | E83: No
B157: Procurement and contracting out policies
B158: <insert relevant policy, plan, strategy etc>
B159: Information technology policies or strategies
B160: <insert relevant policy, plan, strategy etc>
B196: Demand management policies or strategies
B197: <insert relevant policy, plan, strategy etc>
B200: Self insurance guidelines or policy
B201: <insert relevant policy, plan, strategy etc>
B202: Land and easement acquisition polices
B203: <insert relevant policy, plan, strategy etc>
B206: Asset security plans and policies
B207: <insert relevant policy, plan, strategy etc>
B218: Disaster recovery policy
B219: <insert relevant policy, plan, strategy etc>

Sheet 7.2 Contingent projects
B1: =(LOOKUP(dms_Model,dms_Model_List,dms_Worksheet_List)) -> REGULATORY REPORTING STATEMENT
B2: =dms_TradingName -> AusNet (T)
B3: =CONCATENATE(FRCP_y1," to ",FRCP_y5) -> 2017-18 to 2021-22
B4: 7.2 CONTINGENT PROJECTS
B7: TABLE 7.2.1 - PROPOSED CONTINGENT PROJECTS FOR THE FORTHCOMING REGULATORY CONTROL PERIOD
B8: Instructions
B9: The TNSP is required to populate all input cells (yellow) in table 7.2.1 presented below. Additional rows may be added by the TNSP if required.
B11: Proposed contingent project name | C11: Proposed contingent capital expenditure ($0's, nominal) | D11: Proposed trigger events | E11: =CONCATENATE("Proposed MAR for ", FRCP_y1," ($0's, nominal)") -> Proposed MAR for 2017-18 ($0's, nominal) | F11: =CONCATENATE("5 per cent of the ", FRCP_y1," ($0's, nominal) MAR") -> 5 per cent of the 2017-18 ($0's, nominal) MAR
B12: Replace one or both of the Brooklyn and Templestowe synchronous condensers with reactive plant providing a similar, or reduced, level of service. Note that the replacement assets may not be located at these sites. | C12: $70m (direct cost plus overheads) | D12: Formal confirmation from AEMO that the magnitude of the expected benefits provided by the synchronous condensers justify the replacement of the Brooklyn and/or Templestowe Terminal Station synchronous condensers with reactive plant providing a similar, or reduced, level of service. | E12: 595.429462 | F12: =+E12*0.05 -> 29.7714731
E13: =+$E$12 -> 595.429462 | F13: =+E13*0.05 -> 29.7714731
E14: =+$E$12 -> 595.429462 | F14: 29.7714731
E15: 595.429462 | F15: 29.7714731
E16: 595.429462 | F16: 29.7714731
E17: 595.429462 | F17: 29.7714731
E18: 595.429462 | F18: 29.7714731
E19: 595.429462 | F19: 29.7714731
E20: 595.429462 | F20: 29.7714731
E21: 595.429462 | F21: 29.7714731
E22: 595.429462 | F22: 29.7714731
E23: 595.429462 | F23: 29.7714731
E24: 595.429462 | F24: 29.7714731
E25: 595.429462 | F25: 29.7714731
E26: 595.429462 | F26: 29.7714731
E27: 595.429462 | F27: 29.7714731
E28: 595.429462 | F28: 29.7714731
E29: 595.429462 | F29: 29.7714731
E30: 595.429462 | F30: 29.7714731
E31: 595.429462 | F31: 29.7714731

Sheet 7.3 Obligations
B1: =(LOOKUP(dms_Model,dms_Model_List,dms_Worksheet_List)) -> REGULATORY REPORTING STATEMENT
B2: =dms_TradingName -> AusNet (T)
B3: =CONCATENATE(FRCP_y1," to ",FRCP_y5) -> 2017-18 to 2021-22
B4: 7.3 OBLIGATIONS, REQUIREMENTS & STANDARDS
B7: Instructions
B8: Outline those obligations and requirements that the TNSP identifies as having a material impact on expenditure requirements.
B11: TABLE 7.3.1 - OBLIGATIONS OR REQUIREMENTS
C12: Brief description | D12: Relevance to regulatory proposal | E12: Expenditure impact
C13: Description of relevant obligations or requirements within the instrument (e.g. safety obligations, reliability targets) | D13: Identify what element of the proposal/supporting documents the obligation or requirement is relevant to e.g. replacement capex, capacity utilisation thresholds, opex | E13: Is the obligation or requirement identified in the response to section 4 'Step Changes' of the notice (yes or no)?
B14: Legislation
B15: National Electricity Law (NEL) | C15: Impose obligations including registration, distribution losses, network connections, economic regulation and metering. | D15: Submission document | E15: No
B16: Electricity Industry Act 2000 | C16: Sets out key obligations relating to distribution of electricity in Victoria including matters such as licences and compliance with industry codes, standards, rules and guidelines. | D16: Chapter 4 Capex, Chapter 5 Opex | E16: No
B17: Electricity Safety Act 1998 | C17: Establishes safety framework for distribution of electricity in Victoria. | D17: Chapter 4 Capex, Chapter 5 Opex, Chapter 12 Cost pass through | E17: No
B18: Electricity Safety (Bushfire Mitigation) Regulations 2013 | C18: Requires the preparation of bushfire mitigation plans and specifies inspection of assets. | D18: Chapter 4 Capex, Chapter 5 Opex, Chapter 12 Cost pass through | E18: No
B19: Electricity Safety (Electric Line Clearance) Regulations 2010 | C19: Prescribes line clearance requirements including vegetation clearing | D19: Chapter 4 Capex, Chapter 5 Opex | E19: No
B20: Electricity Safety (Management) Regulations 2009 | C20: Sets out requirements for Electricity Safety Management Schemes. | D20: Chapter 4 Capex, Chapter 5 Opex | E20: No
B21: Electricity System Code | C21: Requires particular power quality and connection characteristics. | D21: Chapter 4 Capex, Chapter 5 Opex | E21: No
B22: Electricity Transmission Licence | C22: Sets out obligations of AusNet Services in relation to transmission of electricity in Victoria including requirements to connect customers, offer services, undertake network augmentation and comply with orders, codes and guidelines. | D22: Chapter 4 Capex, Chapter 5 Opex | E22: No
B23: Emergency Management Act 2013 | C23: Establishes arrangments for management of emergencies in Victoria | D23: Chapter 4 Capex, Chapter 5 Opex | E23: Yes
B24: Terrorism (Community Protection) Act 2003 | C24: Obliges providers of essential services including electricity to plan for the protection of services from the effects of terrorist acts. | D24: Chapter 4 Capex, Chapter 5 Opex | E24: No
B25: Energy and Water Ombudsman Charter 2006 | C25: Describes how electricity licence holders must participate in a customer dispute resolution scheme and how this scheme operates in Victoria. | D25: Chapter 4 Capex, Chapter 5 Opex | E25: No
B26: Occupational Health and Safety Act 2004 | C26: Sets out duties of employers and persons who manage or control workplaces to provide for the health, safety and welfare of employees and other persons including the public. Describes the principle of eliminating or reducing risks so far as is practicable. | D26: Chapter 4 Capex, Chapter 5 Opex | E26: No
B27: Occupational Health and Safety Regulations 2007 | C27: Detail many aspects of OH&S including manual handling, exposure to noise, prevention of falls, work in confined spaces, operating plant, and asbestos control & handling. | D27: Chapter 4 Capex, Chapter 5 Opex | E27: No
B28: National Greenhouse and Energy Reporting Act 2007 | C28: Provides for reporting and dissemination of information related to greenhouse emissions including annual reporting. | D28: Chapter 4 Capex, Chapter 5 Opex | E28: No
B29: National Greenhouse and Energy Reporting Regulations 2008 | C29: Sets out requirements for reporting greenhouse emissions. | D29: Chapter 4 Capex, Chapter 5 Opex | E29: No
B30: Environment Protection Act 1970 | C30: Legislative framework for the protection of the environment in Victoria. | D30: Chapter 4 Capex, Chapter 5 Opex | E30: No
B31: Environmental Protection (Residential Noise) Regulations 2008 | C31: Prescribes items and times during which noise resulting from their use is deemed to be unreasonable on residential properties. | D31: Chapter 4 Capex, Chapter 5 Opex | E31: No
B32: Aboriginal Heritage Act 2006 | C32: Promotes the recognition, protection and conservation of Aboriginal culture in Victoria; recognition of Aboriginal people as the primary guardians of their cultural heritage; and management of Aboriginal cultural heritage as an integral part of land management. | D32: Chapter 4 Capex, Chapter 5 Opex | E32: No
B33: Land Act 1958 | C33: Defines Crown Land and conditions relating to Crown Land which prohibit a number of activities including refuelling of vehicles, removal of vegetation and disposal of waste. | D33: Chapter 4 Capex, Chapter 5 Opex | E33: No
B34: National Measurement Act 1960 and Regulations | C34: The National Measurement Act establishes a national system of units and standards of measuremnet of physical quantities and provides for a national system of trade measurements. The National Trade Measurement Regulations were amended in remove the exemption for electricity meters. Electricity meters installed prior to 1 January 2013 are exempt, whilst electricity meters installed after 1 January 2013 must comply with the National Measurement Act and Regulations. | D34: Chapter 4 Capex, Chapter 5 Opex | E34: No
B35: Privacy Act 1988 (cth) | C35: Obligations to protect the privacy of individuals and the responsible and transparent handling of personal information in accordance with the Australian Privacy Principles (APPs). | D35: Submission document | E35: No
B226: Licences
B231: Rules
B236: Orders
B238: Codes
B254: Guidelines
B293: Default agreements
B295: Other

Sheet 7.4 Shared Assets
B1: =(LOOKUP(dms_Model,dms_Model_List,dms_Worksheet_List)) -> REGULATORY REPORTING STATEMENT
B2: =dms_TradingName -> AusNet (T)
B3: =CONCATENATE(FRCP_y1," to ",FRCP_y5) -> 2017-18 to 2021-22
B4: 7.4 SHARED ASSETS
B6: TABLE 7.4.1 - TOTAL UNREGULATED REVENUE EARNED WITH SHARED ASSETS
B8: Name of shared asset unregulated service | C8: Description of shared assets used to provide the service | D8: Shared asset unregulated revenue ($0's, nominal) | M8: =CONCATENATE("Shared asset unregulated revenue ($0's, real ", dms_DollarReal,")") -> Shared asset unregulated revenue ($0's, real March 2017)
D9: =PRCP_y1 -> 2007-08 | E9: =PRCP_y2 -> 2008-09 | F9: =PRCP_y3 -> 2009-10 | G9: =PRCP_y4 -> 2010-11 | H9: =PRCP_y5 -> 2011-12 | I9: =CRCP_y1 -> 2012-13 | J9: =CRCP_y2 -> 2013-14 | K9: =CRCP_y3 -> 2014-15 | L9: =CRCP_y4 -> 2015-16 | M9: =CRCP_y5 -> 2016-17 | N9: =CONCATENATE("Total ", PRCP_y1, "-", CRCP_y5) -> Total 2007-08-2016-17 | O9: =FRCP_y1 -> 2017-18 | P9: =FRCP_y2 -> 2018-19 | Q9: =FRCP_y3 -> 2019-20 | R9: =FRCP_y4 -> 2020-21 | S9: =FRCP_y5 -> 2021-22 | T9: =CONCATENATE("Total ",FRCP_y1, "-", FRCP_y5) -> Total 2017-18-2021-22
B10: HV CT & VT Testing | C10: Yarraville Laboratory, Mobile and fixed Test Equip | D10: 219464.3238 | E10: 230427.4704 | F10: 333547.6021 | G10: 468049.7307 | H10: 148503.0539 | I10: 735984.0212 | J10: 660086.5308 | K10: 759006.7902 | L10: 965541.9951 | M10: 1033129.935 | N10: =SUM(D10:M10) -> 5553741.453 | O10: 1092684.543 | P10: 1142327.758 | Q10: 1194226.382 | R10: 1248482.881 | S10: 1305204.379 | T10: =SUM(O10:S10) -> 5982925.943
B11: Transformer Testing (incl Condition Monitoring) | C11: Yarraville Laboratory, Mobile and fixed Test Equip | D11: 536573.5 | E11: 650349.76 | F11: 714074.2 | G11: 1468296.15 | H11: 1719075.76 | I11: 1210117.75 | J11: 1213850.75 | K11: 1037626.73 | L11: 1320000 | M11: 1412400 | N11: =SUM(D11:M11) -> 11282364.6 | O11: 1493817.569 | P11: 1561685.197 | Q11: 1632636.21 | R11: 1706810.694 | S11: 1784355.097 | T11: =SUM(O11:S11) -> 8179304.768
B12: Chemical Testing & Analysis | C12: Yarraville Laboratory, laboratory Test Equip | D12: 529867.85 | E12: 513485.5 | F12: 636463.2 | G12: 1294737.02 | H12: 1613616.29 | I12: 1739416.2 | J12: 1906633.7 | K12: 2102734.03 | L12: 1760000 | M12: 1883200 | N12: 13980153.79 | O12: 1991756.759 | P12: 2082246.93 | Q12: 2176848.28 | R12: 2275747.591 | S12: 2379140.13 | T12: 10905739.69
B13: Calibration & Electrical Testing (incl NATA accredited) | C13: Yarraville Laboratory, laboratory Test Equip | D13: 178400.5762 | E13: 187312.4196 | F13: 271137.8479 | G13: 380473.4193 | H13: 120735.1161 | I13: 602448.6288 | J13: 539002.1392 | K13: 620174.7498 | L13: 788759.9036 | M13: 843973.0969 | N13: 4532417.897 | O13: 892623.7895 | P13: 933177.777 | Q13: 911751.6141 | R13: 953174.6234 | S13: 931289.3243 | T13: 4622017.128
B14: Fibre Optic Cable Leasing | C14: ~1000 km of fibre optic network at all stages in its lifecycle (0-20 years old). Total SPAN fibre optic network length ~2500 km | D14: 78020.56 | E14: 79340.29 | F14: 98091.4 | G14: 326954.6 | H14: 639474.58 | I14: 607687.63 | J14: 1112326.98 | K14: 1168154.68 | L14: 1594386.958 | M14: 1705994.045 | N14: 7410431.723 | O14: 1804335.796 | P14: 1886310.993 | Q14: 1972010.515 | R14: 2061603.568 | S14: 2155267.042 | T14: 9879527.914
B15: Leasing Access to third parties – Wireless Base Stations on EHV Towers | C15: 175 x EHV towers | D15: 3573328.9 | E15: 3602424.84 | F15: 3944284 | G15: 3895014.66 | H15: 4955602.89 | I15: 4729969.26 | J15: 4645563.31 | K15: 1870548.08 | L15: 4969158.061 | M15: 5316999.125 | N15: 41502893.13 | O15: 5623496.68 | P15: 5878985.293 | Q15: 6146081.352 | R15: 6425312.209 | S15: 6717229.178 | T15: 30791104.71
B16: Leasing Access to third parties – Various communication equipment on communication towers | C16: 20 x communication towers | D16: 1632446.03 | E16: 1646048.97 | F16: 1163911.78 | G16: 1499266.04 | H16: 1294997.41 | I16: 1495079.87 | J16: 1667284.27 | K16: 1079411.28 | L16: 1603011.894 | M16: 1715222.727 | N16: 14796680.27 | O16: 1814096.463 | P16: 1896515.11 | Q16: 1982678.23 | R16: 2072755.941 | S16: 2166926.094 | T16: 9932971.839
B17: Property Leasing to third parties | C17: Various network properties / sites | D17: 792723.31 | E17: 559177.99 | F17: 577568.54 | G17: 653626 | H17: 704631 | I17: 875460.71 | J17: 596416.19 | K17: 309456.96 | L17: 290977.124 | M17: 170040.4 | N17: 5530078.224 | O17: 147820.7226 | P17: 124032.1598 | Q17: 75855.63095 | R17: 40486.80742 | S17: 39622.87765 | T17: 427818.1984
N18: 0 | T18: 0
N19: 0 | T19: 0
N20: 0 | T20: 0
N21: =SUM(D21:M21) -> 0 | T21: =SUM(O21:S21) -> 0
N22: =SUM(D22:M22) -> 0 | T22: =SUM(O22:S22) -> 0
N23: =SUM(D23:M23) -> 0 | T23: =SUM(O23:S23) -> 0
N24: =SUM(D24:M24) -> 0 | T24: =SUM(O24:S24) -> 0
B26: TABLE 7.4.2 - SHARED ASSET UNREGULATED SERVICES - APPORTIONMENT METHODOLOGY
B28: Name of shared asset unregulated service for which revenues were apportioned | C28: Apportionment methodology

Sheet 7.5 EBSS
C1: REGULATORY REPORTING STATEMENT
C2: =dms_TradingName -> AusNet (T)
C3: =FRCP_span -> 2017-18 to 2021-22
C4: 7.5 EBSS
C7: Instructions The DNSP is required to populate all input cells (yellow) in table 7.5.1 presented below. Efficiency gains are calculated using the formulae below. Adjusted target and actual amounts are used to calculate the carry-over amounts. We will calculate the efficiency gain in 2014–15 (year 7) as follows: E7 = (F7 – A7) – (F6 – A6) + (F3 – A3) where F7 is the forecast opex we approved for year 7, and A7 is the actual opex incurred for year 7, and so on. The formula references year 3 because it is the base year used to forecast opex.
C10: CPI
C12: ABS CPI index (old base)
C13: ABS CPI index (rebased index)
C16: Actual and estimated inflation
D17: Actual | N17: Estimated
D18: 2005-06 | E18: 2006-07 | F18: =PRCP_y1 -> 2007-08 | G18: =PRCP_y2 -> 2008-09 | H18: =PRCP_y3 -> 2009-10 | I18: =PRCP_y4 -> 2010-11 | J18: =PRCP_y5 -> 2011-12 | K18: =CRCP_y1 -> 2012-13 | L18: =CRCP_y2 -> 2013-14 | M18: =CRCP_y3 -> 2014-15 | N18: =CRCP_y4 -> 2015-16 | O18: =CRCP_y5 -> 2016-17
C19: Actual CPI - Dec quarter (old base) | E19: 155.5 | F19: 160.1 | G19: 166 | H19: 169.5 | I19: 174 | J19: 179.4
C20: Actual CPI - Dec quarter (rebased in Sep 2012) | J20: 99.8 | K20: 102 | L20: 104.8 | M20: 106.6 | N20: =+M20*(1+2.5%) -> 109.265 | O20: =+N20*(1+2.5%) -> 111.996625
C21: Actual inflation rate (consistent with annual revenue adj) | F21: =F19/E19-1 -> 0.02958199357 | G21: 0.03685196752 | H21: 0.02108433735 | I21: 0.02654867257 | J21: 0.03103448276 | K21: =K20/J20-1 -> 0.02204408818 | L21: =L20/K20-1 -> 0.02745098039 | M21: 0.01717557252 | N21: 0.025 | O21: 0.025
C22: Actual inflation rate (lagged by one year) | G22: =+F21 -> 0.02958199357 | H22: 0.03685196752 | I22: 0.02108433735 | J22: 0.02654867257 | K22: 0.03103448276 | L22: 0.02204408818 | M22: 0.02745098039 | N22: 0.01717557252 | O22: =+N21 -> 0.025
C23: =CONCATENATE("Reconstructed cumulative index (",CRCP_y5,"=1)") -> Reconstructed cumulative index (2016-17=1) | F23: =G23/(1+G22) -> 0.7916941318 | G23: 0.8151140225 | H23: 0.845152578 | I23: 0.86297206 | J23: 0.8858828227 | K23: 0.9133757379 | L23: 0.9335102732 | M23: 0.9591360454 | N23: =O23/(1+O22) -> 0.9756097561 | O23: 1
C27: TABLE 7.5.1 - The carryover amounts that arise from applying the EBSS during the current regulatory control period
C29: Table 7.5.1.1 - Opex allowance applicable to EBSS (EBSS target)
D30: Previous period | H30: Current regulatory control period | L30: Previous period | P30: Current regulatory control period
D31: =CONCATENATE("$m, real ", (PRCP_y1)) -> $m, real 2007-08 | H31: =CONCATENATE("$m, real ", CRCP_y2) -> $m, real 2013-14 | L31: $m, real 2016-17 | P31: =CONCATENATE("$m, real ", CRCP_y5) -> $m, real 2016-17
D32: =PRCP_y4 -> 2010-11 | E32: =PRCP_y5 -> 2011-12 | F32: =CRCP_y1 -> 2012-13 | G32: =CRCP_y2 -> 2013-14 | H32: =CRCP_y3 -> 2014-15 | I32: =CRCP_y4 -> 2015-16 | J32: =CRCP_y5 -> 2016-17 | L32: =PRCP_y4 -> 2010-11 | M32: =PRCP_y5 -> 2011-12 | N32: =CRCP_y1 -> 2012-13 | O32: =CRCP_y2 -> 2013-14 | P32: =CRCP_y3 -> 2014-15 | Q32: =CRCP_y4 -> 2015-16 | R32: =CRCP_y5 -> 2016-17
A33: ED_EBS7511_00001 | C33: Total opex allowance | D33: 163.6567357 | E33: 171.3074299 | F33: 168.5793724 | G33: 176.8087447 | H33: 185.1351554 | I33: 189.8099122 | J33: 188.0055947 | L33: =+D33/$F$23 -> 206.7171261 | M33: =+E33/$F$23 -> 216.3808257 | N33: 212.9349778 | O33: 223.3296138 | P33: =+H33/$L$23 -> 198.3214976 | Q33: =+I33/$L$23 -> 203.3292162 | R33: 201.3963853
C34: Approved excludable costs - allowance
C35: Equity raising costs | D35: 1.570242433 | E35: 1.500921856 | F35: 1.434105769 | G35: 1.37480315 | L35: =-D1/$F$23 -> 0 | M35: =-E35/$F$23 -> -1.89583552 | N35: -1.81143918 | O35: -1.736533208
C36: Opex glide path | D36: 5.067521035 | E36: 3.378347357 | F36: 1.689173678 | G36: 0 | L36: 0 | M36: -4.267238092 | N36: -2.133619046 | O36: 0
A37: ED_EBS7511_00002 | C37: Easement land tax | D37: 82.32564709 | E37: 90.97269373 | F37: 88.67814669 | G37: 97.99070449 | H37: 100.9190293 | I37: 103.442005 | J37: 100.9190293 | L37: =-D3/$F$23 -> 0 | M37: -114.9088898 | N37: -112.0106151 | O37: -123.7734379 | P37: =+-H37/$L$23 -> -108.1070366 | Q37: =+-I37/$L$23 -> -110.8097125 | R37: -108.1070366
A38: ED_EBS7511_00003 | C38: Self insurance | D38: 2.091917 | E38: 2.091917 | F38: 2.091917 | G38: 2.091917 | H38: 1.7 | I38: 1.7 | J38: 1.6 | L38: =-D38/$F$23 -> -2.642329804 | M38: -2.642329804 | N38: -2.642329804 | O38: -2.642329804 | P38: =+-H38/$L$23 -> -1.821083333 | Q38: -1.821083333 | R38: -1.713960784
A39: ED_EBS7511_00004 | C39: Rebates made under the Availability Incentive Scheme | D39: 2.789851383 | E39: 2.789851383 | F39: 2.789851383 | G39: 2.789851383 | H39: 2.281293 | I39: 2.281293 | J39: 2.281293 | L39: -3.523900546 | M39: -3.523900546 | N39: -3.523900546 | O39: -3.523900546 | P39: -2.443779212 | Q39: -2.443779212 | R39: -2.443779212
A40: ED_EBS7511_00005 | C40: Debt Raising costs | D40: 1.099704923 | E40: 1.109704166 | F40: 1.121581658 | G40: 1.123062181 | H40: 1.549610545 | I40: 1.556109859 | J40: 1.577585208 | L40: -1.389052766 | M40: -1.40168295 | N40: -1.416685577 | O40: -1.418555647 | P40: -1.659982316 | Q40: -1.666944546 | R40: -1.689949487
A41: ED_EBS7511_00006 | C41: Priority projects approved under STPIS network capability component | H41: 0 | I41: 0 | J41: 0 | P41: 0 | Q41: 0 | R41: 0
C42: Movements in provisions related to opex | D42: 2.180654662 | E42: 2.180654662 | F42: 2.180654662 | G42: 2.180654662 | H42: 0 | I42: 0 | J42: 0 | L42: -2.754415594 | M42: -2.754415594 | N42: -2.754415594 | O42: -2.754415594 | P42: 0 | Q42: 0 | R42: 0
A43: ED_EBS7511_00008 | C43: Capitalisation policy changes | D43: 0 | E43: 0 | F43: 0 | G43: 0 | H43: 0 | I43: 0 | J43: 0 | L43: =D43/$F$23 -> 0 | M43: =E43/$F$23 -> 0 | N43: 0 | O43: 0 | P43: =+H43/$L$23 -> 0 | Q43: =+I43/$L$23 -> 0 | R43: 0
A44: ED_EBS7511_00010 | C44: Other adjustments or exclusions required by the EBSS | D44: 0 | E44: 0 | F44: 0 | G44: 0 | H44: 0 | I44: 0 | J44: 0 | L44: =D44/$F$23 -> 0 | M44: 0 | N44: 0 | O44: 0 | P44: =+H44/$L$23 -> 0 | Q44: 0 | R44: 0
C45: Forecast opex for EBSS purposes | D45: =(D33-SUM(D35:D42)+SUM(D43:D44)) -> 66.53119717 | E45: =(E33-SUM(E35:E42)+SUM(E43:E44)) -> 67.28333976 | F45: =(F33-SUM(F35:F42)+SUM(F43:F44)) -> 68.59394157 | G45: =(G33-SUM(G35:G42)+SUM(G43:G44)) -> 69.25775183 | H45: =(H33-SUM(H35:H42)+SUM(H43:H44)) -> 78.6852226 | I45: =(I33-SUM(I35:I42)+SUM(I43:I44)) -> 80.83050433 | J45: 81.6276872 | L45: =+SUM(L33:L44) -> 196.4074274 | M45: 84.98653338 | N45: 86.64197297 | O45: 87.48044106 | P45: 84.28961615 | Q45: 86.58769663 | R45: 87.44165923
C47: Table 7.5.1.2 - Actual and estimated opex applicable to EBSS
D48: Previous period | H48: Current regulatory control period | L48: Previous period | P48: Current regulatory control period
D49: $m, Actual | H49: $m, Actual | L49: $m, real 2016-17 | P49: =CONCATENATE("$m, real ", CRCP_y5) -> $m, real 2016-17
D50: =PRCP_y4 -> 2010-11 | E50: =PRCP_y5 -> 2011-12 | F50: =CRCP_y1 -> 2012-13 | G50: =CRCP_y2 -> 2013-14 | H50: =CRCP_y3 -> 2014-15 | I50: =CRCP_y4 -> 2015-16 | J50: =CRCP_y5 -> 2016-17 | L50: =PRCP_y4 -> 2010-11 | M50: =PRCP_y5 -> 2011-12 | N50: =CRCP_y1 -> 2012-13 | O50: =CRCP_y2 -> 2013-14 | P50: =CRCP_y3 -> 2014-15 | Q50: =CRCP_y4 -> 2015-16 | R50: =CRCP_y5 -> 2016-17
A51: ED_EBS7512_0001 | C51: Total opex | D51: 168.3687806 | E51: 172.084132 | F51: 175.472058 | G51: 186.176273 | H51: 188.3381773 | L51: =+D51/I$23*(1+I$22)^0.5 -> 197.1494813 | M51: =+E51/J$23*(1+J$22)^0.5 -> 196.8132431 | N51: 195.0720705 | O51: =+G51/L$23*(1+L$22)^0.5 -> 201.6229875 | P51: 199.0392406
C52: Approved excludable costs
C53: Equity raising costs | D53: 0 | E53: 0 | F53: 0 | G53: 0 | L53: =-D53/I$23*(1+I$22)^0.5 -> 0 | M53: 0 | N53: 0 | O53: 0
C54: Opex glide path | D54: 0 | E54: 0 | F54: 0 | G54: 0 | L54: 0 | M54: 0 | N54: 0 | O54: 0
A55: ED_EBS7512_0002 | C55: =C37 -> Easement land tax | D55: 93.27116 | E55: 99.342245 | F55: 99.342245 | G55: 103.442005 | H55: 103.442005 | L55: =-D55/I$23*(1+I$22)^0.5 -> -109.2147888 | M55: -113.6180843 | N55: -110.4386513 | O55: -112.0244043 | P55: -109.3194084
A56: ED_EBS7512_0003 | C56: Self insurance | D56: 2.280256794 | E56: 2.340794585 | F56: 2.413439934 | G56: 2.463920716 | H56: 1.74165 | L56: =-D56/I$23*(1+I$22)^0.5 -> -2.670040388 | M56: -2.677175218 | N56: -2.683018199 | O56: -2.66834784 | P56: -1.840607668
A57: ED_EBS7512_0004 | C57: Rebates made under the Availability Incentive Scheme | D57: 2.60973393 | E57: 2.17239603 | F57: 2.01139545 | G57: 3.10947598 | H57: 2.40279536 | L57: -3.055837839 | M57: =-E57/J$23*(1+J$22)^0.5 -> -2.484577183 | N57: -2.236065842 | O57: -3.367463677 | P57: -2.539318212
A58: ED_EBS7512_0005 | C58: Debt Raising costs | D58: 0 | E58: 0 | F58: 0 | G58: 0 | H58: 0 | L58: 0 | M58: 0 | N58: 0 | O58: 0 | P58: 0
A59: ED_EBS7512_0006 | C59: Priority projects approved under STPIS network capability component | H59: 0.25119547 | L59: 0 | M59: 0 | N59: 0 | O59: 0 | P59: -0.2654679805
A60: ED_EBS7512_0008 | C60: Movements in provisions related to opex | D60: 0.335996 | E60: 0.619859 | F60: 1.26153 | G60: 1.374140328 | H60: -0.1307895098 | L60: -0.3934306401 | M60: -0.7089349763 | N60: -1.402441346 | O60: -1.488150309 | P60: 0.1382207531
A61: ED_EBS7512_0008 | C61: Opex associated with approved cost pass through | D61: 0 | E61: 0 | F61: 0 | G61: 0 | H61: 0 | L61: 0 | M61: 0 | N61: 0 | O61: 0 | P61: 0
A62: ED_EBS7512_0009 | C62: =C43 -> Capitalisation policy changes | D62: 0 | E62: 0 | F62: 0 | G62: 0 | H62: 0 | L62: =D62/I$23*(1+I$22)^0.5 -> 0 | M62: =E62/J$23*(1+J$22)^0.5 -> 0 | N62: 0 | O62: 0 | P62: 0
A63: ED_EBS7512_0011 | C63: Other adjustments or exclusions required by the EBSS | D63: 0 | E63: 0 | F63: 0 | G63: 0 | H63: 0 | L63: =D63/I$23*(1+I$22)^0.5 -> 0 | M63: 0 | N63: 0 | O63: 0 | P63: 0
C64: Actual opex for EBSS purposes | D64: =(D51-SUM(D53:D61)+SUM(D62:D63)) -> 69.87163387 | E64: =(E51-SUM(E53:E61)+SUM(E62:E63)) -> 67.60883739 | F64: =(F51-SUM(F53:F61)+SUM(F62:F63)) -> 70.44344758 | G64: =(G51-SUM(G53:G61)+SUM(G62:G63)) -> 75.78673096 | H64: =(H51-SUM(H55:H61)+SUM(H62:H63)) -> 80.63132097 | I64: =(I51-SUM(I55:I61)+SUM(I62:I63)) -> 0 | J64: =(J51-SUM(J55:J61)+SUM(J62:J63)) -> 0 | L64: =L51+SUM(L53:L63) -> 81.81538362 | M64: =M51+SUM(M53:M63) -> 77.32447142 | N64: 78.31189383 | O64: 82.07462136 | P64: =P51+SUM(P55:P63) -> 85.21265907 | Q64: =+Q45-(P45-P64) -> 87.51073954 | R64: =+R45-(P45-P64) -> 88.36470215
L66: =CONCATENATE("Incremental gain ($m, ",CRCP_y5,")") -> Incremental gain ($m, 2016-17)
A67: ED_EBS7512_0012 | P67: =(P45-P64)-(O45-O64)+(L45-L64) -> 108.2631812 | Q67: =(Q45-Q64)-(P45-P64) -> 0 | R67: =(R45-R64)-(Q45-Q64) -> 0
L69: Carryover
P70: Current regulatory control period | S70: Forthcoming regulatory control period
N71: =CONCATENATE("$m, real ", CRCP_y5) -> $m, real 2016-17
P72: =CRCP_y3 -> 2014-15 | Q72: =CRCP_y4 -> 2015-16 | R72: =CRCP_y5 -> 2016-17 | S72: =FRCP -> 2017-18 | T72: 2018-19 | U72: 2019-20 | V72: 2020-21 | W72: 2021-22 | X72: Total
A73: ED_EBS7512_0015 | L73: =CRCP_y3 -> 2014-15 | Q73: =$P$67 -> 108.2631812 | R73: =$P$67 -> 108.2631812 | S73: =$P$67 -> 108.2631812 | T73: =$P$67 -> 108.2631812 | U73: =$P$67 -> 108.2631812
A74: ED_EBS7512_0016 | L74: =CRCP_y4 -> 2015-16 | R74: =$Q$67 -> 0 | S74: =$Q$67 -> 0 | T74: =$Q$67 -> 0 | U74: =$Q$67 -> 0 | V74: =$Q$67 -> 0
A75: ED_EBS7512_0017 | L75: =CRCP_y5 -> 2016-17 | S75: =+$R$67 -> 0 | T75: =+$R$67 -> 0 | U75: =+$R$67 -> 0 | V75: =+$R$67 -> 0 | W75: =+$R$67 -> 0
L76: =CONCATENATE("Total Carryover Amount ($m, ",CRCP_y5,")") -> Total Carryover Amount ($m, 2016-17) | S76: =+SUM(S73:S75) -> 108.2631812 | T76: =+SUM(T73:T75) -> 108.2631812 | U76: =+SUM(U73:U75) -> 108.2631812 | V76: =+SUM(V73:V75) -> 0 | W76: =+SUM(W73:W75) -> 0 | X76: =SUM(S76:W76) -> 324.7895436
L78: =CONCATENATE("PTRM inputs ($m, ",CRCP_y5,")") -> PTRM inputs ($m, 2016-17) | S78: =S76 -> 108.2631812 | T78: =T76 -> 108.2631812 | U78: =U76 -> 108.2631812 | V78: =V76 -> 0 | W78: =W76 -> 0 | X78: =SUM(S78:W78) -> 324.7895436
C80: TABLE 7.5.2 - Proposed forecast opex for the EBSS for the forthcoming regulatory control period
D82: Forthcoming regulatory control period
D83: =CONCATENATE("$m, real ", CRCP_y5) -> $m, real 2016-17
D84: =FRCP -> 2017-18 | E84: 2018-19 | F84: 2019-20 | G84: 2020-21 | H84: 2021-22
A85: ED_EBS752_00001 | C85: Forecast opex | D85: 222.1158411 | E85: 217.3039401 | F85: 218.7909525 | G85: 221.108426 | H85: 222.3837331 | I85: =+SUM(D85:H85) -> 1101.702893
C86: Less excluded costs
A87: ED_EBS752_00002 | C87: Easement land tax | D87: 115.2700384 | E87: 115.2700384 | F87: 115.2700384 | G87: 115.2700384 | H87: 115.2700384 | I87: =+SUM(D87:H87) -> 576.3501921
A88: ED_EBS752_00003 | C88: Self insurance | D88: 2.717257626 | E88: 2.718608239 | F88: 2.701479837 | G88: 2.69476781 | H88: 2.684237582 | I88: 13.51635109
A89: ED_EBS752_00004 | C89: Priority projects approved under STPIS network capability component | D89: 0 | E89: 0 | F89: 0 | G89: 0 | H89: 0 | I89: 0
A90: ED_EBS752_00005 | D90: 0 | E90: 0 | F90: 0 | G90: 0 | H90: 0 | I90: 0
A91: ED_EBS752_00006 | D91: 0 | E91: 0 | F91: 0 | G91: 0 | H91: 0 | I91: 0
A92: ED_EBS752_00007 | D92: 0 | E92: 0 | F92: 0 | G92: 0 | H92: 0 | I92: 0
A93: ED_EBS752_00008 | D93: 0 | E93: 0 | F93: 0 | G93: 0 | H93: 0 | I93: 0
A94: ED_EBS752_00009 | D94: 0 | E94: 0 | F94: 0 | G94: 0 | H94: 0 | I94: 0
A95: ED_EBS752_00010 | D95: 0 | E95: 0 | F95: 0 | G95: 0 | H95: 0 | I95: 0
A96: ED_EBS752_00011 | D96: 0 | E96: 0 | F96: 0 | G96: 0 | H96: 0 | I96: 0
C97: =CONCATENATE("Adjusted forecast opex ($m, ",CRCP_y5,")") -> Adjusted forecast opex ($m, 2016-17) | D97: =+D85-SUM(D87:D96) -> 104.1285451 | E97: 99.31529342 | F97: 100.8194342 | G97: 103.1436198 | H97: 104.4294571 | I97: 511.8363496

Sheet 7.6 Indicative bill impact
B1: =(LOOKUP(dms_Model,dms_Model_List,dms_Worksheet_List)) -> REGULATORY REPORTING STATEMENT
B2: =dms_TradingName -> AusNet (T)
B3: =CONCATENATE(FRCP_y1," to ",FRCP_y5) -> 2017-18 to 2021-22
B4: 7.6 INDICATIVE IMPACT ON TRANSMISSION CHARGES AND ELECTRICITY BILLS
B7: Table 7.6.1 Indicative impact of the revenue proposal on the average residential electricity bills
B8: Instructions The TNSP is required to populate all input cells (yellow) in table 7.6.1 presented below. Transmission pricing impact should refer to AusNet related transmission costs only.
B10: Transmission costs as a proportion of a typical residential customer's electricity bill (per cent) | C10: 0.05
B11: Transmission costs as a proportion of a typical business customer's electricity bill (per cent) | C11: 0.04
B12: Source data: | C12: Based on customers located in AusNet Services' distribution network. Customer numbers and energy: AusNet Services' billing data, distribution Regulatory Accounts DUoS/ TUoS: AusNet Services (distribution) pricing data Proportion of bill attributed to network costs: AusNet Services (distribution) assumption, as per annual pricing proposal Proportion of TUoS attributable to AusNet Services (not AEMO): AEMO revenue data, AusNet Services' transmission pricing data Expected inflation: 2.35% (see transmission Revenue Proposal)
B14: Typical electricity bill - Residential customer
B15: Tariff type | C15: Description of tariff type | D15: =CONCATENATE("Annual bill amount ($", CRCP_y5,")") -> Annual bill amount ($2016-17)
B16: Residential | C16: Residential | D16: 1541
B19: <NSP to insert any additional items>
B20: <NSP to insert any additional items>
B21: Source data: | C21: Victorian DNSPs reset RIN data. Calculated as the average of reported typical residential customer electricity bills weighted by reported residential customer numbers for 2015. This has been escalated into real $2016-17 using AusNet Services' expected inflation of 2.35%.
B23: Typical electricity bill - Business customer
B24: Tariff type | C24: Description of tariff type | D24: =CONCATENATE("Annual bill amount ($", CRCP_y5,")") -> Annual bill amount ($2016-17)
B25: Small I & C | C25: Small I & C | D25: 6760
B26: Large I & C | C26: Large I & C | D26: 33484
B27: <NSP to insert any additional items>
B28: <NSP to insert any additional items>
B29: Source data: | C29: Based on small and large I&C customers located in AusNet Services' distribution network . Customer numbers and energy: AusNet Services' billing data, distribution Regulatory Accounts DUoS/ TUoS: AusNet Services (distribution) pricing data Proportion of bill attributed to network costs: AusNet Services (distribution) assumption, as per annual pricing proposal Proportion of TUoS attributable to AusNet Services (not AEMO): AEMO revenue data, AusNet Services' transmission pricing data Expected inflation: 2.35% (see transmission Revenue Proposal)
B31: Indicative annual average transmission price impact as shown in the proposed PTRM (per cent)
C32: =CRCP_y5 -> 2016-17 | D32: =FRCP_y1 -> 2017-18 | E32: =FRCP_y2 -> 2018-19 | F32: =FRCP_y3 -> 2019-20 | G32: =FRCP_y4 -> 2020-21 | H32: =FRCP_y5 -> 2021-22 | I32: Average
B33: Annual price path (per cent, nominal) | D33: 0.1193 | E33: 0.0224 | F33: 0.0213 | G33: 0.0231 | H33: 0.0289 | I33: =+AVERAGE(D33:H33) -> 0.043
B34: Annual price path (per cent, $2013-14) | D34: 0.0936 | E34: -0.001 | F34: -0.0021 | G34: -0.0004 | H34: 0.0053 | I34: =+AVERAGE(D34:H34) -> 0.01908
B37: Transmission bill component - Residential customer | C37: =CONCATENATE("Real ", CRCP_y5) -> Real 2016-17
B38: Tariff type | C38: =CRCP_y5 -> 2016-17 | D38: =FRCP_y1 -> 2017-18 | E38: =FRCP_y2 -> 2018-19 | F38: =FRCP_y3 -> 2019-20 | G38: =FRCP_y4 -> 2020-21 | H38: =FRCP_y5 -> 2021-22 | I38: =CONCATENATE("Total ",FRCP_y1," to ", FRCP_y5) -> Total 2017-18 to 2021-22 | J38: Annual average | K38: Annual impact on customer bill (%)
B40: =+B16 -> Residential | C40: =+D16*$C$10 -> 77.05 | D40: =+C40*(1+IF($C$37="Nominal",D$33,D$34)) -> 84.26188 | E40: =+D40*(1+IF($C$37="Nominal",E$33,E$34)) -> 84.17761812 | F40: =+E40*(1+IF($C$37="Nominal",F$33,F$34)) -> 84.00084512 | G40: =+F40*(1+IF($C$37="Nominal",G$33,G$34)) -> 83.96724478 | H40: =+G40*(1+IF($C$37="Nominal",H$33,H$34)) -> 84.41227118 | I40: =+SUM(D40:H40) -> 420.8198592 | J40: =+AVERAGE(D40:H40) -> 84.16397184
B41: Annual change | D41: =+D40-C40 -> 7.21188 | E41: =+E40-D40 -> -0.08426188 | F41: =+F40-E40 -> -0.1767729981 | G41: =+G40-F40 -> -0.03360033805 | H41: =+H40-G40 -> 0.4450263974 | I41: =+SUM(D41:H41) -> 7.362271181 | J41: =+AVERAGE(D41:H41) -> 1.472454236 | K41: =+J41/D16 -> 0.0009555186478
B43: =+B17 -> 0 | C43: =+D17*$C$10 -> 0 | D43: =+C43*(1+IF($C$37="Nominal",D$33,D$34)) -> 0 | E43: =+D43*(1+IF($C$37="Nominal",E$33,E$34)) -> 0 | F43: =+E43*(1+IF($C$37="Nominal",F$33,F$34)) -> 0 | G43: =+F43*(1+IF($C$37="Nominal",G$33,G$34)) -> 0 | H43: =+G43*(1+IF($C$37="Nominal",H$33,H$34)) -> 0 | I43: 0 | J43: =+AVERAGE(D43:H43) -> 0
B44: Annual change | D44: =+D43-C43 -> 0 | E44: =+E43-D43 -> 0 | F44: =+F43-E43 -> 0 | G44: =+G43-F43 -> 0 | H44: =+H43-G43 -> 0 | I44: 0 | J44: 0 | K44: =+J44/D17 -> 
B46: =+B18 -> 0 | C46: =+D18*$C$10 -> 0 | D46: =+C46*(1+IF($C$37="Nominal",D$33,D$34)) -> 0 | E46: =+D46*(1+IF($C$37="Nominal",E$33,E$34)) -> 0 | F46: =+E46*(1+IF($C$37="Nominal",F$33,F$34)) -> 0 | G46: =+F46*(1+IF($C$37="Nominal",G$33,G$34)) -> 0 | H46: =+G46*(1+IF($C$37="Nominal",H$33,H$34)) -> 0 | I46: 0 | J46: 0
B47: Annual change | D47: =+D46-C46 -> 0 | E47: =+E46-D46 -> 0 | F47: =+F46-E46 -> 0 | G47: =+G46-F46 -> 0 | H47: =+H46-G46 -> 0 | I47: 0 | J47: 0 | K47: =+J47/D18 -> 
B49: =+B19 -> <NSP to insert any additional items> | C49: =+D19*$C$10 -> 0 | D49: =+C49*(1+IF($C$37="Nominal",D$33,D$34)) -> 0 | E49: =+D49*(1+IF($C$37="Nominal",E$33,E$34)) -> 0 | F49: =+E49*(1+IF($C$37="Nominal",F$33,F$34)) -> 0 | G49: =+F49*(1+IF($C$37="Nominal",G$33,G$34)) -> 0 | H49: =+G49*(1+IF($C$37="Nominal",H$33,H$34)) -> 0 | I49: 0 | J49: 0
B50: Annual change | D50: =+D49-C49 -> 0 | E50: =+E49-D49 -> 0 | F50: =+F49-E49 -> 0 | G50: =+G49-F49 -> 0 | H50: =+H49-G49 -> 0 | I50: 0 | J50: 0 | K50: =+J50/D19 -> 
B52: =+B20 -> <NSP to insert any additional items> | C52: =+D20*$C$10 -> 0 | D52: =+C52*(1+IF($C$37="Nominal",D$33,D$34)) -> 0 | E52: =+D52*(1+IF($C$37="Nominal",E$33,E$34)) -> 0 | F52: =+E52*(1+IF($C$37="Nominal",F$33,F$34)) -> 0 | G52: =+F52*(1+IF($C$37="Nominal",G$33,G$34)) -> 0 | H52: =+G52*(1+IF($C$37="Nominal",H$33,H$34)) -> 0 | I52: =+SUM(D52:H52) -> 0 | J52: =+AVERAGE(D52:H52) -> 0
B53: Annual change | D53: =+D52-C52 -> 0 | E53: =+E52-D52 -> 0 | F53: =+F52-E52 -> 0 | G53: =+G52-F52 -> 0 | H53: =+H52-G52 -> 0 | I53: =+SUM(D53:H53) -> 0 | J53: =+AVERAGE(D53:H53) -> 0 | K53: =+J53/D20 -> 
B56: Transmission bill component - Business customer | C56: =CONCATENATE("Real ", CRCP_y5) -> Real 2016-17
B57: Tariff type | C57: =CRCP_y5 -> 2016-17 | D57: =FRCP_y1 -> 2017-18 | E57: =FRCP_y2 -> 2018-19 | F57: =FRCP_y3 -> 2019-20 | G57: =FRCP_y4 -> 2020-21 | H57: =FRCP_y5 -> 2021-22 | I57: =CONCATENATE("Total ",FRCP_y1," to ", FRCP_y5) -> Total 2017-18 to 2021-22 | J57: Annual average | K57: Annual impact on customer bill (%)
B59: =+B25 -> Small I & C | C59: =+D25*$C$11 -> 270.4 | D59: =+C59*(1+IF($C$56="Nominal",D$33,D$34)) -> 295.70944 | E59: =+D59*(1+IF(D56="Nominal",E$33,E$34)) -> 295.4137306 | F59: =+E59*(1+IF(E56="Nominal",F$33,F$34)) -> 294.7933617 | G59: =+F59*(1+IF(F56="Nominal",G$33,G$34)) -> 294.6754444 | H59: =+G59*(1+IF(G56="Nominal",H$33,H$34)) -> 296.2372242 | I59: =+SUM(D59:H59) -> 1476.829201 | J59: =+AVERAGE(D59:H59) -> 295.3658402
B60: Annual change | D60: =+D59-C59 -> 25.30944 | E60: =+E59-D59 -> -0.29570944 | F60: =+F59-E59 -> -0.6203688342 | G60: =+G59-F59 -> -0.1179173447 | H60: =+H59-G59 -> 1.561779855 | I60: =+SUM(D60:H60) -> 25.83722424 | J60: =+AVERAGE(D60:H60) -> 5.167444847 | K60: =+J60/D25 -> 0.0007644149182
B62: =+B26 -> Large I & C | C62: =+D26*$C$11 -> 1339.36 | D62: =+C62*(1+IF(C59="Nominal",D$33,D$34)) -> 1464.724096 | E62: =+D62*(1+IF(D59="Nominal",E$33,E$34)) -> 1463.259372 | F62: =+E62*(1+IF(E59="Nominal",F$33,F$34)) -> 1460.186527 | G62: =+F62*(1+IF(F59="Nominal",G$33,G$34)) -> 1459.602453 | H62: =+G62*(1+IF(G59="Nominal",H$33,H$34)) -> 1467.338346 | I62: 7315.110793 | J62: 1463.022159
B63: Annual change | D63: =+D62-C62 -> 125.364096 | E63: =+E62-D62 -> -1.464724096 | F63: =+F62-E62 -> -3.072844681 | G63: =+G62-F62 -> -0.5840746109 | H63: =+H62-G62 -> 7.735892999 | I63: 127.9783456 | J63: 25.59566912 | K63: =+J63/D26 -> 0.0007644149182
B65: =+B27 -> <NSP to insert any additional items> | C65: =+D27*$C$11 -> 0 | D65: =+C65*(1+IF(C62="Nominal",D$33,D$34)) -> 0 | E65: =+D65*(1+IF(D62="Nominal",E$33,E$34)) -> 0 | F65: =+E65*(1+IF(E62="Nominal",F$33,F$34)) -> 0 | G65: =+F65*(1+IF(F62="Nominal",G$33,G$34)) -> 0 | H65: =+G65*(1+IF(G62="Nominal",H$33,H$34)) -> 0 | I65: 0 | J65: 0
B66: Annual change | D66: =+D65-C65 -> 0 | E66: =+E65-D65 -> 0 | F66: =+F65-E65 -> 0 | G66: =+G65-F65 -> 0 | H66: =+H65-G65 -> 0 | I66: 0 | J66: 0 | K66: =+J66/D27 -> 
B68: =+B28 -> <NSP to insert any additional items> | C68: =+D28*$C$11 -> 0 | D68: =+C68*(1+IF(C65="Nominal",D$33,D$34)) -> 0 | E68: =+D68*(1+IF(D65="Nominal",E$33,E$34)) -> 0 | F68: =+E68*(1+IF(E65="Nominal",F$33,F$34)) -> 0 | G68: =+F68*(1+IF(F65="Nominal",G$33,G$34)) -> 0 | H68: =+G68*(1+IF(G65="Nominal",H$33,H$34)) -> 0 | I68: =+SUM(D68:H68) -> 0 | J68: =+AVERAGE(D68:H68) -> 0
B69: Annual change | D69: =+D68-C68 -> 0 | E69: =+E68-D68 -> 0 | F69: =+F68-E68 -> 0 | G69: =+G68-F68 -> 0 | H69: =+H68-G68 -> 0 | I69: =+SUM(D69:H69) -> 0 | J69: =+AVERAGE(D69:H69) -> 0 | K69: =+J69/D28 -> 

Sheet 7.7 STPIS
B1: =(LOOKUP(dms_Model,dms_Model_List,dms_Worksheet_List)) -> REGULATORY REPORTING STATEMENT
B2: =dms_TradingName -> AusNet (T)
B3: =CONCATENATE(FRCP_y1," to ",FRCP_y5) -> 2017-18 to 2021-22
B4: 7.7 SERVICE TARGET PERFORMANCE INCENTIVE SCHEME (STPIS)
B7: Instructions
B8: =dms_TradingName&" is required to provide the performance actuals for the most recent five years, and the proposed caps, collars and targets for the next regulatory control period for the parameters under the service component of the STPIS in table 7.7.1 below." -> AusNet (T) is required to provide the performance actuals for the most recent five years, and the proposed caps, collars and targets for the next regulatory control period for the parameters under the service component of the STPIS in table 7.7.1 below.
B10: Table 7.7.1 Historical performance and proposed caps, collars and targets for the service component of the STPIS
B11: Parameter | C11: Performance actuals | H11: Average of actual performance | I11: Collar | J11: Target | K11: Cap | L11: Weighting (% of MAR)
C12: =LEFT(PRCP_y3,2)&RIGHT(PRCP_y3,2) -> 2010 | D12: =(LEFT(PRCP_y4,2)&RIGHT(PRCP_y4,2)) -> 2011 | E12: =LEFT(PRCP_y5,2)&RIGHT(PRCP_y5,2) -> 2012 | F12: =(LEFT(CRCP_y1,2)&RIGHT(CRCP_y1,2)) -> 2013 | G12: =(LEFT(CRCP_y2,2)&RIGHT(CRCP_y2,2)) -> 2014
B13: Unplanned circuit outage event rate (per cent):
B14: Transmission line outage - fault | C14: Refer to unlocked sheet. | H14: =+AVERAGE(C14:G14) ->  | L14: 0.002
B15: Transformer outage – fault | H15: =+AVERAGE(C15:G15) ->  | L15: 0.002
B16: Reactive plant – fault | L16: 0.001
B17: Transmission line outage – forced outage | L17: 0.001
B18: Transformer outage – forced outage | L18: 0.001
B19: Reactive plant – forced outage | L19: 0.0005
B20: Loss of supply event frequency (minutes):
B21: > (x) system minutes | L21: 0.0015
B22: > (y) system minutes | L22: 0.0015
B23: Average outage duration (minutes):
B24: Proper operation of equipment (number of events):
B25: Failure of protection system | L25: 0
B26: Material failure of SCADA | L26: 0
B27: Incorrect operational isolation of primary or secondary equipment | L27: 0
B29: Instructions
B30: =dms_TradingName&" is required to provide a list of proposed priority projects for the network capability incentive parameter including a brief description and the cost for each proposed project in table 7.7.2 below." -> AusNet (T) is required to provide a list of proposed priority projects for the network capability incentive parameter including a brief description and the cost for each proposed project in table 7.7.2 below.
B32: Table 7.7.2 - Proposed priority projects for the network capability incentive parameter
B33: Project ranking | C33: Project/ Injection Point | D33: Description | E33: =CONCATENATE(("If applicable, the present value of quantified benefits associated with the project ($million, "),CRCP_y5) -> If applicable, the present value of quantified benefits associated with the project ($million, 2016-17 | F33: =CONCATENATE(("Project cost ($million, "),FRCP_y1) -> Project cost ($million, 2017-18 | N33: =CONCATENATE("Total proposed MAR for the ",FRCP_y1," to ",FRCP_y5," regulatory control period ($million, ",CRCP_y5) -> Total proposed MAR for the 2017-18 to 2021-22 regulatory control period ($million, 2016-17 | O33: Project cost as a proportion of the MAR
F34: =FRCP_y1 -> 2017-18 | G34: =FRCP_y2 -> 2018-19 | H34: =FRCP_y3 -> 2019-20 | I34: =FRCP_y4 -> 2020-21 | J34: =FRCP_y5 -> 2021-22 | K34: Opex | L34: Capex | M34: Total cost
B35: 1 | C35: Hazelwood to Jeeralang 220 kV No. 4 line | D35: Replace the existing interplant connections of the Hazelwood to Jeeralang 220 kV No.4 line at Hazelwood power station | E35: 1.987354066 | F35: 0.107078 | G35: 0 | H35: 0 | I35: 0 | J35: 0 | K35: 0 | L35: 0.107078 | M35: =+SUM(K35:L35) -> 0.107078 | N35: 2945.339785 | O35: =+M35/N35 -> 3.635505844e-05
B36: 2 | C36: South East to Heywood 275 kV No.1 and No. 2 lines | D36: Increase the operating temperature of the South East to Heywood 275 kV lines from 90°C to 100°C. | E36: 0.1684760822 | F36: 0.018138 | G36: 0 | H36: 0 | I36: 0 | J36: 0 | K36: 0 | L36: 0.018138 | M36: =+SUM(K36:L36) -> 0.018138 | N36: =+$N$35 -> 2945.339785 | O36: =+M36/N36 -> 6.158202899e-06
B37: 3 | M37: =+SUM(K37:L37) -> 0 | N37: =+$N$35 -> 2945.339785 | O37: 0
B38: 4 | M38: 0 | N38: 2945.339785 | O38: 0
B39: 5 | M39: 0 | N39: 2945.339785 | O39: 0
B40: 6 | M40: 0 | N40: 2945.339785 | O40: 0
B41: 7 | M41: 0 | N41: 2945.339785 | O41: 0
B42: 8 | M42: 0 | N42: 2945.339785 | O42: 0
B43: 9 | M43: 0 | N43: 2945.339785 | O43: 0
B44: 10 | M44: 0 | N44: 2945.339785 | O44: 0
B45: 11 | M45: 0 | N45: 2945.339785 | O45: 0
B46: 12 | M46: 0 | N46: 2945.339785 | O46: 0
B47: 13 | M47: 0 | N47: 2945.339785 | O47: 0
B48: 14 | M48: 0 | N48: 2945.339785 | O48: 0
B49: 15 | M49: 0 | N49: 2945.339785 | O49: 0
B50: 16 | M50: 0 | N50: 2945.339785 | O50: 0
B51: <NSP to insert additional lines if required> | M51: 0 | N51: 2945.339785 | O51: 0
B54: Instructions
B55: =dms_TradingName&" is required to provide the following information in table 7.7.3 below." -> AusNet (T) is required to provide the following information in table 7.7.3 below.
B57: Table 7.7.3 – Limits identified for proposed priority projects
B58: Limit identification | C58: Define limit | D58: Reason for the limit | E58: Is limit addressed by priority project
B59: HWPS - JLTS No.4 220 kV line | C59: 23 MVA lower than line short term rating | D59: Interplant connection at HWPS with lower rating than line short term rating | E59: Yes
B60: SESS - HYTS No.1 275 kV line | C60: The short term (15 min) rating of this line is 58MVA lower than the short term rating of the Tailem Bend to South East 275 kV line at 35°C | D60: The South East to Heywood lines will become the limiting elements constraining flows on the interconnector between Victoria and South Australia following the interconnector upgrade project and ElectraNet’s proposed NCIPAP project to uprate the 275 kV lines between South East and Tailem Bend to 120°C. | E60: Yes
B61: SESS - HYTS No.2 275 kV line | C61: The short term (15 min) rating of this line is 58MVA lower than the short term rating of the Tailem Bend to South East 275 kV line at 35°C | D61: The South East to Heywood lines will become the limiting elements constraining flows on the interconnector between Victoria and South Australia following the interconnector upgrade project and ElectraNet’s proposed NCIPAP project to uprate the 275 kV lines between South East and Tailem Bend to 120°C. | E61: Yes
B71: Instructions
B72: =dms_TradingName&" is required to provide performance data in accordance with Appendix C of the STPIS for the preceding six calendar years in table 7.7.4 below. "&dms_TradingName&" is also required to provide relevant information in the MIC workbook attached to Appendix G of the Notice." -> AusNet (T) is required to provide performance data in accordance with Appendix C of the STPIS for the preceding six calendar years in table 7.7.4 below. AusNet (T) is also required to provide relevant information in the MIC workbook attached to Appendix G of the Notice.
B74: Table 7.7.4 - Market impact component
B75: Year | C75: Month | D75: Market impact parameter count (DI) (without exclusions) | E75: Market impact parameter count (DI) (with exclusions) | F75: Market impact parameters (Hrs)
B76: =LEFT(PRCP_y2,4) -> 2008 | C76: January | F76: =+E76/12 -> 0
B77: 2008 | C77: February | F77: =+E77/12 -> 0
B78: 2008 | C78: March | F78: 0
B79: 2008 | C79: April | F79: 0
B80: 2008 | C80: May | F80: 0
B81: 2008 | C81: June | F81: 0
B82: 2008 | C82: July | F82: 0
B83: 2008 | C83: August | F83: 0
B84: 2008 | C84: September | F84: 0
B85: 2008 | C85: October | F85: 0
B86: 2008 | C86: November | F86: 0
B87: 2008 | C87: December | F87: 0
B88: =CONCATENATE("Total ",LEFT(PRCP_y2,4)) -> Total 2008 | D88: =+SUM(D76:D87) -> 0 | E88: =+SUM(E76:E87) -> 0 | F88: =+SUM(F76:F87) -> 0
B89: =LEFT(PRCP_y3,4) -> 2009 | C89: January | D89: 135 | E89: 135 | F89: =+E89/12 -> 11.25
B90: 2009 | C90: February | D90: 358 | E90: 82 | F90: =+E90/12 -> 6.833333333
B91: 2009 | C91: March | D91: 46 | E91: 24 | F91: 2
B92: 2009 | C92: April | D92: 290 | E92: 290 | F92: 24.16666667
B93: 2009 | C93: May | D93: 335 | E93: 313 | F93: 26.08333333
B94: 2009 | C94: June | D94: 41 | E94: 22 | F94: 1.833333333
B95: 2009 | C95: July | D95: 25 | E95: 25 | F95: 2.083333333
B96: 2009 | C96: August | D96: 1 | E96: 1 | F96: 0.08333333333
B97: 2009 | C97: September | D97: 259 | E97: 260 | F97: 21.66666667
B98: 2009 | C98: October | D98: 82 | E98: 82 | F98: 6.833333333
B99: 2009 | C99: November | D99: 149 | E99: 149 | F99: 12.41666667
B100: 2009 | C100: December | D100: 34 | E100: 34 | F100: 2.833333333
B101: =CONCATENATE("Total ", LEFT(PRCP_y3,4)) -> Total 2009 | D101: =+SUM(D89:D100) -> 1755 | E101: =+SUM(E89:E100) -> 1417 | F101: =+SUM(F89:F100) -> 118.0833333
B102: =LEFT(PRCP_y4,4) -> 2010 | C102: January | D102: 375 | E102: 314 | F102: =+E102/12 -> 26.16666667
B103: 2010 | C103: February | D103: 264 | E103: 264 | F103: =+E103/12 -> 22
B104: 2010 | C104: March | D104: 229 | E104: 229 | F104: 19.08333333
B105: 2010 | C105: April | D105: 206 | E105: 206 | F105: 17.16666667
B106: 2010 | C106: May | D106: 0 | E106: 0 | F106: 0
B107: 2010 | C107: June | D107: 322 | E107: 321 | F107: 26.75
B108: 2010 | C108: July | D108: 117 | E108: 45 | F108: 3.75
B109: 2010 | C109: August | D109: 8 | E109: 3 | F109: 0.25
B110: 2010 | C110: September | D110: 157 | E110: 157 | F110: 13.08333333
B111: 2010 | C111: October | D111: 117 | E111: 117 | F111: 9.75
B112: 2010 | C112: November | D112: 399 | E112: 398 | F112: 33.16666667
B113: 2010 | C113: December | D113: 80 | E113: 80 | F113: 6.666666667
B114: =CONCATENATE("Total ", LEFT(PRCP_y4,4)) -> Total 2010 | D114: =+SUM(D102:D113) -> 2274 | E114: =+SUM(E102:E113) -> 2134 | F114: =+SUM(F102:F113) -> 177.8333333
B115: =LEFT(PRCP_y5,4) -> 2011 | C115: January | D115: 27 | E115: 24 | F115: =+E115/12 -> 2
B116: 2011 | C116: February | D116: 524 | E116: 488 | F116: =+E116/12 -> 40.66666667
B117: 2011 | C117: March | D117: 355 | E117: 41 | F117: 3.416666667
B118: 2011 | C118: April | D118: 22 | E118: 22 | F118: 1.833333333
B119: 2011 | C119: May | D119: 583 | E119: 426 | F119: 35.5
B120: 2011 | C120: June | D120: 253 | E120: 42 | F120: 3.5
B121: 2011 | C121: July | D121: 74 | E121: 20 | F121: 1.666666667
B122: 2011 | C122: August | D122: 210 | E122: 181 | F122: 15.08333333
B123: 2011 | C123: September | D123: 410 | E123: 321 | F123: 26.75
B124: 2011 | C124: October | D124: 1081 | E124: 897 | F124: 74.75
B125: 2011 | C125: November | D125: 109 | E125: 90 | F125: 7.5
B126: 2011 | C126: December | D126: 135 | E126: 135 | F126: 11.25
B127: =CONCATENATE("Total ", LEFT(PRCP_y5,4)) -> Total 2011 | D127: =+SUM(D115:D126) -> 3783 | E127: =+SUM(E115:E126) -> 2687 | F127: =+SUM(F115:F126) -> 223.9166667
B128: =LEFT(CRCP_y1,4) -> 2012 | C128: January | D128: 326 | E128: 326 | F128: =+E128/12 -> 27.16666667
B129: 2012 | C129: February | D129: 130 | E129: 130 | F129: =+E129/12 -> 10.83333333
B130: 2012 | C130: March | D130: 281 | E130: 5 | F130: 0.4166666667
B131: 2012 | C131: April | D131: 412 | E131: 57 | F131: 4.75
B132: 2012 | C132: May | D132: 170 | E132: 124 | F132: 10.33333333
B133: 2012 | C133: June | D133: 273 | E133: 48 | F133: 4
B134: 2012 | C134: July | D134: 80 | E134: 6 | F134: 0.5
B135: 2012 | C135: August | D135: 239 | E135: 18 | F135: 1.5
B136: 2012 | C136: September | D136: 64 | E136: 8 | F136: 0.6666666667
B137: 2012 | C137: October | D137: 141 | E137: 141 | F137: 11.75
B138: 2012 | C138: November | D138: 355 | E138: 25 | F138: 2.083333333
B139: 2012 | C139: December | D139: 104 | E139: 21 | F139: 1.75
B140: =CONCATENATE("Total ", LEFT(CRCP_y1,4)) -> Total 2012 | D140: =+SUM(D128:D139) -> 2575 | E140: =+SUM(E128:E139) -> 909 | F140: =+SUM(F128:F139) -> 75.75
B141: =LEFT(CRCP_y2,4) -> 2013 | C141: January | D141: 70 | E141: 56 | F141: =+E141/12 -> 4.666666667
B142: 2013 | C142: February | D142: 98 | E142: 51 | F142: =+E142/12 -> 4.25
B143: 2013 | C143: March | D143: 967 | E143: 98 | F143: 8.166666667
B144: 2013 | C144: April | D144: 105 | E144: 105 | F144: 8.75
B145: 2013 | C145: May | D145: 121 | F145: 0
B146: 2013 | C146: June | D146: 138 | F146: 0
B147: 2013 | C147: July | D147: 86 | E147: 0 | F147: 0
B148: 2013 | C148: August | D148: 119 | E148: 12 | F148: 1
B149: 2013 | C149: September | D149: 161 | E149: 151 | F149: 12.58333333
B150: 2013 | C150: October | D150: 283 | E150: 270 | F150: 22.5
B151: 2013 | C151: November | D151: 28 | F151: 0
B152: 2013 | C152: December | D152: 14 | E152: 2 | F152: 0.1666666667
B153: =CONCATENATE("Total ", LEFT(CRCP_y2,4)) -> Total 2013 | D153: =+SUM(D141:D152) -> 2190 | E153: =+SUM(E141:E152) -> 745 | F153: =+SUM(F141:F152) -> 62.08333333
B154: =LEFT(CRCP_y3,4) -> 2014 | C154: January | D154: 86 | E154: 78 | F154: =+E154/12 -> 6.5
B155: 2014 | C155: February | D155: 0 | E155: 0 | F155: =+E155/12 -> 0
B156: 2014 | C156: March | D156: 8 | E156: 0 | F156: 0
B157: 2014 | C157: April | D157: 44 | E157: 17 | F157: 1.416666667
B158: 2014 | C158: May | D158: 124 | E158: 111 | F158: 9.25
B159: 2014 | C159: June | D159: 111 | E159: 96 | F159: 8
B160: 2014 | C160: July | D160: 67 | E160: 50 | F160: 4.166666667
B161: 2014 | C161: August | D161: 37 | E161: 37 | F161: 3.083333333
B162: 2014 | C162: September | D162: 227 | E162: 169 | F162: 14.08333333
B163: 2014 | C163: October | D163: 173.5 | E163: 172.5 | F163: 14.375
B164: 2014 | C164: November | D164: 80 | E164: 75 | F164: 6.25
B165: 2014 | C165: December | D165: 61 | E165: 46 | F165: 3.833333333
B166: =CONCATENATE("Total ", LEFT(CRCP_y3,4)) -> Total 2014 | D166: =+SUM(D154:D165) -> 1018.5 | E166: =+SUM(E154:E165) -> 851.5 | F166: =+SUM(F154:F165) -> 70.95833333

Sheet 2.10.2, 2.17.1 & 7.7.1
B2: TABLE 2.10.2 - CORPORATE OVERHEADS EXPENDITURE
E3: =CONCATENATE("EXPENDITURE Forecast ($0's. real ",dms_DollarReal,")") -> EXPENDITURE Forecast ($0's. real March 2017)
E4: =CRCP_y4 -> 2015-16 | F4: =CRCP_y5 -> 2016-17 | G4: =FRCP_y1 -> 2017-18 | H4: =FRCP_y2 -> 2018-19 | I4: =FRCP_y3 -> 2019-20 | J4: =FRCP_y4 -> 2020-21 | K4: =FRCP_y5 -> 2021-22
B5: CORPORATE OVERHEADS | C5: Total Overhead Expenditure - Prescribed Services | D5: TAXES AND CHARGES | E5: 5392801.086 | F5: 5486155.631 | G5: 5755552.686 | H5: 5862103.118 | I5: 5969794.328 | J5: 6081977.511 | K5: 6196412.06
D6: INSURANCE | E6: 4872827.544 | F6: 5156067.202 | G6: 5536558.211 | H6: 5681818.787 | I6: 5791864.259 | J6: 5904636.384 | K6: 6020221.56
D7: SELF-INSURANCE | E7: 1845019.426 | F7: 1845019.426 | G7: 2717257.626 | H7: 2718608.239 | I7: 2701479.837 | J7: 2694767.81 | K7: 2684237.582
D8: OH&S | E8: 1064677.8 | F8: 1120818.917 | G8: 1162249.86 | H8: 1178005.074 | I8: 1193670.643 | J8: 1188932.425 | K8: 1186649.879
D9: FINANCE | E9: 10818333.52 | F9: 11113763.8 | G9: 11564543.37 | H9: 11776070.92 | I9: 11989585.39 | J9: 12157387.41 | K9: 12335748.83
D10: HR | E10: 4451723.997 | F10: 4677874.606 | G10: 4894109.973 | H10: 4977349.403 | I10: 5060545.128 | J10: 5071003.99 | K10: 5090904.075
D11: IT SUPPORT | E11: 1157660.32 | F11: 1711275.081 | G11: 1747094.549 | H11: 1753084.541 | I11: 1755792.692 | J11: 1485872.636 | K11: 1243574.085
D12: OTHER | E12: 6013497.394 | F12: 7247820.625 | G12: 7403894.044 | H12: 7488325.251 | I12: 7567032.202 | J12: 7072062.097 | K12: 6637708.748
D13: AVAILABILITY REBATE | E13: 0 | F13: 0 | G13: 0 | H13: 0 | I13: 0 | J13: 0 | K13: 0
D14: EASEMENT TAX | E14: 115270038.4 | F14: 115270038.4 | G14: 115270038.4 | H14: 115270038.4 | I14: 115270038.4 | J14: 115270038.4 | K14: 115270038.4
C16: Total Overhead Expenditure - Negotiated Services | D16: Total
C17: Total Overhead Expenditure - Unregulated Services | D17: Total
B22: Table 2.17.1 Forecast opex step changes
D23: Actual ($0's, nominal) | G23: =CONCATENATE("Forecast ($0's, real ", dms_DollarReal, ")") -> Forecast ($0's, real March 2017)
B24: Step change | C24: Description | D24: =CRCP_y1 -> 2012-13 | E24: =CRCP_y2 -> 2013-14 | F24: =CRCP_y3 -> 2014-15 | G24: =CRCP_y4 -> 2015-16 | H24: =CRCP_y5 -> 2016-17 | I24: =FRCP_y1 -> 2017-18 | J24: =FRCP_y2 -> 2018-19 | K24: =FRCP_y3 -> 2019-20 | L24: =FRCP_y4 -> 2020-21 | M24: =FRCP_y5 -> 2021-22
B25: AEMO Power System Security Functions Agreement | C25: As per 2014-17 determination (referred to as "AEMO operating agreement" in AER final decision) | D25: 0 | E25: 22240.1952 | F25: 30294.43746 | G25: 32092.4558 | H25: 32092.4558
B26: Transitional arrangements for the Economic Regulation of NSP’s rule change | C26: As per 2014-17 determination | D26: 324817.5113 | E26: 328357.4863 | F26: 531667.1366 | G26: 1176723.379 | H26: 855798.8212
B27: Fire services levy | C27: As per 2014-17 determination | D27: 0 | E27: 112885.44 | F27: 109308.74 | G27: 1005793.611 | H27: 1005793.611
B28: Controller simulator training | C28: As per 2014-17 determination | D28: 0 | E28: 0 | F28: 0 | G28: 327984.8982 | H28: 327984.8982
B29: Security of critical infrastructure | C29: As per 2014-17 determination | D29: 0 | E29: 0 | F29: 40392.58329 | G29: 42789.94106 | H29: 42789.94106
B30: Establishment of IT security team | C30: As per 2017-22 Revenue Proposal | D30: 0 | E30: 0 | F30: 0 | G30: 0 | H30: 656000 | I30: 656000 | J30: 656000 | K30: 656000 | L30: 656000 | M30: 656000
B31: New emergency response arrangements | C31: As per 2017-22 Revenue Proposal | D31: 0 | E31: 0 | F31: 0 | G31: 201292.7027 | H31: 201292.7027 | I31: 201292.7027 | J31: 201292.7027 | K31: 201292.7027 | L31: 201292.7027 | M31: 201292.7027
B32: Roll out of SAIP | C32: As per 2017-22 Revenue Proposal | D32: 0 | E32: 0 | F32: 125649.64 | G32: 103454.8105 | H32: 103454.8105 | I32: 349157.2317 | J32: 349157.2317 | K32: 73168.30528 | L32: 73168.30528 | M32: 73168.30528
B33: Lease of WMTS 22kV mobile switchboard | C33: As per 2017-22 Revenue Proposal | D33: 0 | E33: 0 | F33: 0 | G33: 25886.40724 | H33: 51772.81448 | I33: 709287.5584 | J33: 300282.324 | K33: 265076.8102 | L33: 697897.5393 | M33: 51772.81448
B34: Decommissioning of synchronous condensers | C34: As per 2017-22 Revenue Proposal | D34: 0 | E34: 0 | F34: 0 | G34: 0 | H34: 0 | I34: 4343340.883 | J34: 0 | K34: 0 | L34: 0 | M34: 0
B35: Decommissioning of Morwell Power Station assets | C35: As per 2017-22 Revenue Proposal | D35: 0 | E35: 0 | F35: 0 | G35: 0 | H35: 0 | I35: 1891778.641 | J35: 0 | K35: 0 | L35: 0 | M35: 0
D36: 324817.5113 | E36: 463483.1215 | F36: 837312.5374 | G36: 2916018.206 | H36: 3276980.055 | I36: 8150857.017 | J36: 1506732.258 | K36: 1195537.818 | L36: 1628358.547 | M36: 982233.8225
B39: Table 7.7.1 Historical performance and proposed caps, collars and targets for the service component of the STPIS
B40: Parameter | C40: Performance actuals | H40: Average of actual performance | I40: Collar | J40: Target | K40: Cap | L40: Weighting (% of MAR)
C41: =LEFT(PRCP_y3,2)&RIGHT(PRCP_y3,2) -> 2010 | D41: =(LEFT(PRCP_y4,2)&RIGHT(PRCP_y4,2)) -> 2011 | E41: =LEFT(PRCP_y5,2)&RIGHT(PRCP_y5,2) -> 2012 | F41: =(LEFT(CRCP_y1,2)&RIGHT(CRCP_y1,2)) -> 2013 | G41: =(LEFT(CRCP_y2,2)&RIGHT(CRCP_y2,2)) -> 2014
B42: Unplanned circuit outage event rate (per cent):
B43: Transmission line outage - fault | C43: 0.16807 | D43: 0.2437 | E43: 0.325 | F43: 0.20661 | G43: 0.305785124 | H43: =+AVERAGE(C43:G43) -> 0.2498330248 | I43: 0.35713 | J43: 0.2498330248 | K43: 0.15919 | L43: 0.002
B44: Transformer outage – fault | C44: 0.07258064516 | D44: 0.119047619 | E44: 0.2125984252 | F44: 0.3125 | G44: 0.2283464567 | H44: =+AVERAGE(C44:G44) -> 0.1890146292 | I44: 0.35845 | J44: 0.1890146292 | K44: 0.0469 | L44: 0.002
B45: Reactive plant – fault | C45: 0.27143 | D45: 0.34286 | E45: 0.45714 | F45: 0.47143 | G45: 0.2571428571 | H45: 0.3600005714 | I45: 0.55698 | J45: 0.3600005714 | K45: 0.21727 | L45: 0.001
B46: Transmission line outage – forced outage | C46: 0.14286 | D46: 0.16807 | E46: 0.14167 | F46: 0.12397 | G46: 0.1570247934 | H46: 0.1467189587 | I46: 0.17295 | J46: 0.1467189587 | K46: 0.12317 | L46: 0.001
B47: Transformer outage – forced outage | C47: 0.1370967742 | D47: 0.04761904762 | E47: 0.1338582677 | F47: 0.109375 | G47: 0.1181102362 | H47: 0.1092118651 | I47: 0.15368 | J47: 0.1092118651 | K47: 0.06198 | L47: 0.001
B48: Reactive plant – forced outage | C48: 0.14286 | D48: 0.22857 | E48: 0.22857 | F48: 0.35714 | G48: 0.3857142857 | H48: 0.2685708571 | I48: 0.4414 | J48: 0.2685708571 | K48: 0.1336 | L48: 0.0005
B49: Loss of supply event frequency (minutes):
B50: > (x) system minutes | C50: 1 | D50: 0 | E50: 2 | F50: 5 | G50: 3 | H50: 2.2 | I50: 5 | J50: 3 | K50: 0 | L50: 0.0015
B51: > (y) system minutes | C51: 0 | D51: 0 | E51: 1 | F51: 1 | G51: 0 | H51: 0.4 | I51: 2 | J51: 1 | K51: 0 | L51: 0.0015
B52: Average outage duration (minutes): | C52: 92.5 | D52: 4 | E52: 230 | F52: 19.9 | G52: 24 | H52: 74.08 | I52: 253.82 | J52: 74.08 | K52: 1.72
B53: Proper operation of equipment (number of events):
B54: Failure of protection system | C54: 14 | D54: 23 | E54: 33 | F54: 41 | G54: 33 | H54: 28.8 | I54: 38 | J54: 28.8 | K54: 20 | L54: 0
B55: Material failure of SCADA | C55: 0 | D55: 0 | E55: 1 | F55: 6 | G55: 2 | H55: 1.8 | I55: 6 | J55: 1.8 | K55: 0 | L55: 0
B56: Incorrect operational isolation of primary or secondary equipment | C56: 7 | D56: 5 | E56: 8 | F56: 4 | G56: 6 | H56: 6 | I56: 10 | J56: 6 | K56: 2 | L56: 0
